Organisation Name,Organisation Code,Unique Ref No,Effective Date,Directorate  where expenditure incurred,Supplier Name,Payment Date,Net Amount,Purpose of Spend,Procurement Classification (Higher Level),Procurement Classification (Lower Level),Capital/Revenue
Walsall Council,http://opendatacommunities.org/id/metropolitan-district-council/walsall,WC88-01,31/01/2018,Economy & Environment,11KBW,04/01/2018,"4,200.00",63116-EXTERNAL BARRISTERS-SERVICES-FEES,POLLUTION DIVISION,Supplies & Services,Revenue
Walsall Council,http://opendatacommunities.org/id/metropolitan-district-council/walsall,WC88-02,31/01/2018,Economy & Environment,21ST CENTURY GLAZIERS,03/01/2018,"4,990.96",40003-GLAZING-OP MTCE,NAG - MAINTENANCE,Premises,Revenue
Walsall Council,http://opendatacommunities.org/id/metropolitan-district-council/walsall,WC88-03,31/01/2018,Childrens,247 CARS (WILLENHALL) LIMITED,01/01/2018,"3,536.00",52000-WITH DRIVER-HIRE OF VEHICLES,HOME TO SCHOOL TRANSPORT,Transport,Revenue
Walsall Council,http://opendatacommunities.org/id/metropolitan-district-council/walsall,WC88-04,31/01/2018,Childrens,29 BEDFORD ROW CHAMBERS,16/01/2018,"43,500.00",73014-LEGAL FEES-PRIV CONTRACTOR FEES,GENERAL MANAGEMENT SUPPORT (INC LEGAL),Third Party Payments,Revenue
Walsall Council,http://opendatacommunities.org/id/metropolitan-district-council/walsall,WC88-05,31/01/2018,Resources and Transformation,38TH WALSALL (1ST WALSALL WOOD) SCOUT GROUP,29/01/2018,523.82,63000-PROFESSIONAL FEES AND SERVICES,CORPORATE EXPENSES,Supplies & Services,Revenue
Walsall Council,http://opendatacommunities.org/id/metropolitan-district-council/walsall,WC88-06,31/01/2018,Childrens,39 ESSEX STREET LLP PFA,30/01/2018,750.00,73014-LEGAL FEES-PRIV CONTRACTOR FEES,PERFORMANCE & OUTCOMES TEAM (C&YP),Third Party Payments,Revenue
Walsall Council,http://opendatacommunities.org/id/metropolitan-district-council/walsall,WC88-07,31/01/2018,Childrens,39 ESSEX STREET LLP PFA,30/01/2018,"1,120.40",73014-LEGAL FEES-PRIV CONTRACTOR FEES,PERFORMANCE & OUTCOMES TEAM (C&YP),Third Party Payments,Revenue
Walsall Council,http://opendatacommunities.org/id/metropolitan-district-council/walsall,WC88-08,31/01/2018,Childrens,39 ESSEX STREET LLP PFA,30/01/2018,"1,243.00",73014-LEGAL FEES-PRIV CONTRACTOR FEES,PERFORMANCE & OUTCOMES TEAM (C&YP),Third Party Payments,Revenue
Walsall Council,http://opendatacommunities.org/id/metropolitan-district-council/walsall,WC88-09,31/01/2018,Childrens,39 ESSEX STREET LLP PFA,30/01/2018,"2,755.60",73014-LEGAL FEES-PRIV CONTRACTOR FEES,PERFORMANCE & OUTCOMES TEAM (C&YP),Third Party Payments,Revenue
Walsall Council,http://opendatacommunities.org/id/metropolitan-district-council/walsall,WC88-10,31/01/2018,Childrens,39 ESSEX STREET LLP PFA,30/01/2018,"4,726.35",73014-LEGAL FEES-PRIV CONTRACTOR FEES,PERFORMANCE & OUTCOMES TEAM (C&YP),Third Party Payments,Revenue
Walsall Council,http://opendatacommunities.org/id/metropolitan-district-council/walsall,WC88-11,31/01/2018,Childrens,5 CARE SERVICES LTD,03/01/2018,280.00,63000-PROFESSIONAL FEES AND SERVICES,DIRECTLY COMMISSIONED NURSING SERVICES,Supplies & Services,Revenue
Walsall Council,http://opendatacommunities.org/id/metropolitan-district-council/walsall,WC88-12,31/01/2018,Adult Social Care,5 CARE SERVICES LTD,22/01/2018,454.08,73019-PSE'S-PRIV CONTRACTOR FEES,INTEGRATED DISCHARGE TEAM,Third Party Payments,Revenue
Walsall Council,http://opendatacommunities.org/id/metropolitan-district-council/walsall,WC88-13,31/01/2018,Childrens,5 CARE SERVICES LTD,05/01/2018,861.00,63000-PROFESSIONAL FEES AND SERVICES,DIRECTLY COMMISSIONED NURSING SERVICES,Supplies & Services,Revenue
Walsall Council,http://opendatacommunities.org/id/metropolitan-district-council/walsall,WC88-14,31/01/2018,Childrens,5 CARE SERVICES LTD,05/01/2018,"1,218.00",63000-PROFESSIONAL FEES AND SERVICES,DIRECTLY COMMISSIONED NURSING SERVICES,Supplies & Services,Revenue
Walsall Council,http://opendatacommunities.org/id/metropolitan-district-council/walsall,WC88-15,31/01/2018,Childrens,5 CARE SERVICES LTD,05/01/2018,"1,813.00",63000-PROFESSIONAL FEES AND SERVICES,DIRECTLY COMMISSIONED NURSING SERVICES,Supplies & Services,Revenue
Walsall Council,http://opendatacommunities.org/id/metropolitan-district-council/walsall,WC88-16,31/01/2018,Adult Social Care,5 CARE SERVICES LTD,08/01/2018,"43,926.06",73372-DOMICILIARY CARE,OP PACKAGE/PLACEMENT COSTS,Third Party Payments,Revenue
Walsall Council,http://opendatacommunities.org/id/metropolitan-district-council/walsall,WC88-17,31/01/2018,Resources and Transformation,A D T FIRE AND SECURITY PLC,26/01/2018,"-1,812.43",73002-SECURITY-PRIV CONTRACTOR FEES,CENTRALISED MAINTENANCE,Third Party Payments,Revenue
Walsall Council,http://opendatacommunities.org/id/metropolitan-district-council/walsall,WC88-18,31/01/2018,Resources and Transformation,A D T FIRE AND SECURITY PLC,05/01/2018,263.82,73002-SECURITY-PRIV CONTRACTOR FEES,CENTRALISED MAINTENANCE,Third Party Payments,Revenue
Walsall Council,http://opendatacommunities.org/id/metropolitan-district-council/walsall,WC88-19,31/01/2018,Childrens,A D T FIRE AND SECURITY PLC,24/01/2018,354.00,"40000-REPAIRS,ALTERATIONS & MAINTENANCE-PREM","43A HILTON ROAD, WILLENHALL",Premises,Revenue
Walsall Council,http://opendatacommunities.org/id/metropolitan-district-council/walsall,WC88-20,31/01/2018,Resources and Transformation,A D T FIRE AND SECURITY PLC,22/01/2018,"1,128.93",63239-EXTERNAL WORKS-PAYMENT TO CONTRACTOR,CENTRALISED MAINTENANCE,Third Party Payments,Revenue
Walsall Council,http://opendatacommunities.org/id/metropolitan-district-council/walsall,WC88-21,31/01/2018,Resources and Transformation,A D T FIRE AND SECURITY PLC,19/01/2018,"1,992.58",73002-SECURITY-PRIV CONTRACTOR FEES,CENTRALISED MAINTENANCE,Third Party Payments,Revenue
Walsall Council,http://opendatacommunities.org/id/metropolitan-district-council/walsall,WC88-22,31/01/2018,Economy & Environment,A F BLAKEMORE & SON LTD,04/01/2018,213.41,61018-DRINKS-PROVISIONS,WALSALL GALA CENTRE,Supplies & Services,Revenue
Walsall Council,http://opendatacommunities.org/id/metropolitan-district-council/walsall,WC88-23,31/01/2018,Resources and Transformation,A F BLAKEMORE & SON LTD,29/01/2018,225.08,61016-FOOD AND BEVERAGES-PROVISIONS,WALSALL TOWN HALL,Supplies & Services,Revenue
Walsall Council,http://opendatacommunities.org/id/metropolitan-district-council/walsall,WC88-24,31/01/2018,Economy & Environment,A F BLAKEMORE & SON LTD,26/01/2018,239.58,61018-DRINKS-PROVISIONS,WALSALL GALA CENTRE,Supplies & Services,Revenue
Walsall Council,http://opendatacommunities.org/id/metropolitan-district-council/walsall,WC88-25,31/01/2018,Adult Social Care,A F BLAKEMORE & SON LTD,29/01/2018,240.49,61016-FOOD AND BEVERAGES-PROVISIONS,GOSCOTE,Supplies & Services,Revenue
Walsall Council,http://opendatacommunities.org/id/metropolitan-district-council/walsall,WC88-26,31/01/2018,Economy & Environment,A F BLAKEMORE & SON LTD,08/01/2018,281.91,61018-DRINKS-PROVISIONS,OAK PARK,Supplies & Services,Revenue
Walsall Council,http://opendatacommunities.org/id/metropolitan-district-council/walsall,WC88-27,31/01/2018,Economy & Environment,A F BLAKEMORE & SON LTD,22/01/2018,300.12,61018-DRINKS-PROVISIONS,OAK PARK,Supplies & Services,Revenue
Walsall Council,http://opendatacommunities.org/id/metropolitan-district-council/walsall,WC88-28,31/01/2018,Economy & Environment,A F BLAKEMORE & SON LTD,04/01/2018,341.52,61002-DRY FOODS-PROVISIONS,BLOXWICH LEISURE CENTRE,Supplies & Services,Revenue
Walsall Council,http://opendatacommunities.org/id/metropolitan-district-council/walsall,WC88-29,31/01/2018,Economy & Environment,A F BLAKEMORE & SON LTD,08/01/2018,360.88,61018-DRINKS-PROVISIONS,OAK PARK,Supplies & Services,Revenue
Walsall Council,http://opendatacommunities.org/id/metropolitan-district-council/walsall,WC88-30,31/01/2018,Economy & Environment,A F BLAKEMORE & SON LTD,19/01/2018,382.27,61002-DRY FOODS-PROVISIONS,BLOXWICH LEISURE CENTRE,Supplies & Services,Revenue
Walsall Council,http://opendatacommunities.org/id/metropolitan-district-council/walsall,WC88-31,31/01/2018,Adult Social Care,A F BLAKEMORE & SON LTD,02/01/2018,411.34,61016-FOOD AND BEVERAGES-PROVISIONS,HOLLYBANK,Supplies & Services,Revenue
Walsall Council,http://opendatacommunities.org/id/metropolitan-district-council/walsall,WC88-32,31/01/2018,Adult Social Care,A F BLAKEMORE & SON LTD,10/01/2018,439.92,61016-FOOD AND BEVERAGES-PROVISIONS,GOSCOTE,Supplies & Services,Revenue
Walsall Council,http://opendatacommunities.org/id/metropolitan-district-council/walsall,WC88-33,31/01/2018,Economy & Environment,A F BLAKEMORE & SON LTD,29/01/2018,447.25,61018-DRINKS-PROVISIONS,OAK PARK,Supplies & Services,Revenue
Walsall Council,http://opendatacommunities.org/id/metropolitan-district-council/walsall,WC88-34,31/01/2018,Adult Social Care,A F BLAKEMORE & SON LTD,22/01/2018,529.22,61016-FOOD AND BEVERAGES-PROVISIONS,GOSCOTE,Supplies & Services,Revenue
Walsall Council,http://opendatacommunities.org/id/metropolitan-district-council/walsall,WC88-35,31/01/2018,Adult Social Care,A F BLAKEMORE & SON LTD,29/01/2018,548.58,61016-FOOD AND BEVERAGES-PROVISIONS,HOLLYBANK,Supplies & Services,Revenue
Walsall Council,http://opendatacommunities.org/id/metropolitan-district-council/walsall,WC88-36,31/01/2018,Adult Social Care,A F BLAKEMORE & SON LTD,02/01/2018,573.28,61016-FOOD AND BEVERAGES-PROVISIONS,HOLLYBANK,Supplies & Services,Revenue
Walsall Council,http://opendatacommunities.org/id/metropolitan-district-council/walsall,WC88-37,31/01/2018,Adult Social Care,A F BLAKEMORE & SON LTD,29/01/2018,655.21,61016-FOOD AND BEVERAGES-PROVISIONS,HOLLYBANK,Supplies & Services,Revenue
Walsall Council,http://opendatacommunities.org/id/metropolitan-district-council/walsall,WC88-38,31/01/2018,Economy & Environment,A F BLAKEMORE & SON LTD,26/01/2018,874.19,61002-DRY FOODS-PROVISIONS,BLOXWICH LEISURE CENTRE,Supplies & Services,Revenue
Walsall Council,http://opendatacommunities.org/id/metropolitan-district-council/walsall,WC88-39,31/01/2018,Economy & Environment,A F BLAKEMORE & SON LTD,22/01/2018,"1,002.72",61008-CONFECTIONERY/SNACKS-PROVISIONS,OAK PARK,Supplies & Services,Revenue
Walsall Council,http://opendatacommunities.org/id/metropolitan-district-council/walsall,WC88-40,31/01/2018,Economy & Environment,A KARIMS CHUCKERY PHARMACY,17/01/2018,286.74,71007-CONTRIBUTION TO PCT,PUBLIC HEALTH BUSINESS SUPPORT,Third Party Payments,Revenue
Walsall Council,http://opendatacommunities.org/id/metropolitan-district-council/walsall,WC88-41,31/01/2018,Economy & Environment,A KARIMS CHUCKERY PHARMACY,29/01/2018,300.00,71007-CONTRIBUTION TO PCT,PUBLIC HEALTH BUSINESS SUPPORT,Third Party Payments,Revenue
Walsall Council,http://opendatacommunities.org/id/metropolitan-district-council/walsall,WC88-42,31/01/2018,Adult Social Care,A STAR SUPPORT SERVICES LIMITED,11/01/2018,"2,088.00",73374-SUPPORTED & OTHER ACCOMMODATION,LD PACKAGE/PLACEMENT COSTS,Third Party Payments,Revenue
Walsall Council,http://opendatacommunities.org/id/metropolitan-district-council/walsall,WC88-43,31/01/2018,Economy & Environment,A1 STAGE,10/01/2018,620.00,63000-PROFESSIONAL FEES AND SERVICES,FOREST ARTS CENTRE,Supplies & Services,Revenue
Walsall Council,http://opendatacommunities.org/id/metropolitan-district-council/walsall,WC88-44,31/01/2018,Childrens,REDACTED,05/01/2018,378.00,76422-DIRECT PAYMENTS TO SOCIAL SERVICES CLIENTS,FAMILY SUPPORT - DIRECT PAYMENTS,Transfer Payments,Revenue
Walsall Council,http://opendatacommunities.org/id/metropolitan-district-council/walsall,WC88-45,31/01/2018,Adult Social Care,ABBEY COURT NURSING & RESIDEN,16/01/2018,"1,878.91",73373-RESIDENTIAL & NURSING CARE PLACEMENTS,OP PACKAGE/PLACEMENT COSTS,Third Party Payments,Revenue
Walsall Council,http://opendatacommunities.org/id/metropolitan-district-council/walsall,WC88-46,31/01/2018,Adult Social Care,ABBEY COURT NURSING & RESIDEN,16/01/2018,"2,037.15",73373-RESIDENTIAL & NURSING CARE PLACEMENTS,OP PACKAGE/PLACEMENT COSTS,Third Party Payments,Revenue
Walsall Council,http://opendatacommunities.org/id/metropolitan-district-council/walsall,WC88-47,31/01/2018,Adult Social Care,ABBEY COURT NURSING & RESIDEN,16/01/2018,"2,144.62",73373-RESIDENTIAL & NURSING CARE PLACEMENTS,OP PACKAGE/PLACEMENT COSTS,Third Party Payments,Revenue
Walsall Council,http://opendatacommunities.org/id/metropolitan-district-council/walsall,WC88-48,31/01/2018,Adult Social Care,ABBEY COURT NURSING & RESIDEN,16/01/2018,"2,214.28",73373-RESIDENTIAL & NURSING CARE PLACEMENTS,OP PACKAGE/PLACEMENT COSTS,Third Party Payments,Revenue
Walsall Council,http://opendatacommunities.org/id/metropolitan-district-council/walsall,WC88-49,31/01/2018,Adult Social Care,ABBEY HEALTHCARE HOMES LTD,16/01/2018,"1,699.16",73373-RESIDENTIAL & NURSING CARE PLACEMENTS,PD PACKAGE/PLACEMENT COSTS,Third Party Payments,Revenue
Walsall Council,http://opendatacommunities.org/id/metropolitan-district-council/walsall,WC88-50,31/01/2018,Adult Social Care,ABBEY HEALTHCARE HOMES LTD,16/01/2018,"1,699.16",73373-RESIDENTIAL & NURSING CARE PLACEMENTS,PD PACKAGE/PLACEMENT COSTS,Third Party Payments,Revenue
Walsall Council,http://opendatacommunities.org/id/metropolitan-district-council/walsall,WC88-51,31/01/2018,Adult Social Care,ABBEY HEALTHCARE HOMES LTD,10/01/2018,"1,699.28",73373-RESIDENTIAL & NURSING CARE PLACEMENTS,PD PACKAGE/PLACEMENT COSTS,Third Party Payments,Revenue
Walsall Council,http://opendatacommunities.org/id/metropolitan-district-council/walsall,WC88-52,31/01/2018,Adult Social Care,ABBEY HEALTHCARE HOMES LTD,10/01/2018,"2,294.08",73373-RESIDENTIAL & NURSING CARE PLACEMENTS,PD PACKAGE/PLACEMENT COSTS,Third Party Payments,Revenue
Walsall Council,http://opendatacommunities.org/id/metropolitan-district-council/walsall,WC88-53,31/01/2018,Adult Social Care,ABBEY HEALTHCARE HOMES LTD,16/01/2018,"2,294.08",73373-RESIDENTIAL & NURSING CARE PLACEMENTS,PD PACKAGE/PLACEMENT COSTS,Third Party Payments,Revenue
Walsall Council,http://opendatacommunities.org/id/metropolitan-district-council/walsall,WC88-54,31/01/2018,Adult Social Care,ABBEY HEALTHCARE HOMES LTD,16/01/2018,"2,294.08",73373-RESIDENTIAL & NURSING CARE PLACEMENTS,PD PACKAGE/PLACEMENT COSTS,Third Party Payments,Revenue
Walsall Council,http://opendatacommunities.org/id/metropolitan-district-council/walsall,WC88-55,31/01/2018,Childrens,ABC DAY NURSERY (WILLENHALL) LIMITED,02/01/2018,"22,133.60",66505-OTHER-GRANTS TO OTHER ORGS,EARLY YEARS - 2 YR OLDS,Third Party Payments,Revenue
Walsall Council,http://opendatacommunities.org/id/metropolitan-district-council/walsall,WC88-56,31/01/2018,Childrens,ABC DAY NURSERY (WILLENHALL) LIMITED,02/01/2018,"25,344.00",66505-OTHER-GRANTS TO OTHER ORGS,EARLY YEARS - 3 YR OLDS,Third Party Payments,Revenue
Walsall Council,http://opendatacommunities.org/id/metropolitan-district-council/walsall,WC88-57,31/01/2018,Childrens,ABC FOSTERING,29/01/2018,"1,546.97",74037-INDEPENDENT FOSTER CARE-OTH AGENCY PROVISION,EXTERNAL FOSTER CARE PROVISION,Third Party Payments,Revenue
Walsall Council,http://opendatacommunities.org/id/metropolitan-district-council/walsall,WC88-58,31/01/2018,Childrens,ABC FOSTERING,29/01/2018,"1,546.97",74037-INDEPENDENT FOSTER CARE-OTH AGENCY PROVISION,EXTERNAL FOSTER CARE PROVISION,Third Party Payments,Revenue
Walsall Council,http://opendatacommunities.org/id/metropolitan-district-council/walsall,WC88-59,31/01/2018,Childrens,ABC FOSTERING,29/01/2018,"1,546.97",74037-INDEPENDENT FOSTER CARE-OTH AGENCY PROVISION,EXTERNAL FOSTER CARE PROVISION,Third Party Payments,Revenue
Walsall Council,http://opendatacommunities.org/id/metropolitan-district-council/walsall,WC88-60,31/01/2018,Childrens,ABC FOSTERING,29/01/2018,"2,635.20",74037-INDEPENDENT FOSTER CARE-OTH AGENCY PROVISION,EXTERNAL FOSTER CARE PROVISION,Third Party Payments,Revenue
Walsall Council,http://opendatacommunities.org/id/metropolitan-district-council/walsall,WC88-61,31/01/2018,Childrens,ABC FOSTERING,29/01/2018,"2,859.48",74037-INDEPENDENT FOSTER CARE-OTH AGENCY PROVISION,EXTERNAL FOSTER CARE PROVISION,Third Party Payments,Revenue
Walsall Council,http://opendatacommunities.org/id/metropolitan-district-council/walsall,WC88-62,31/01/2018,Childrens,ABC FOSTERING,29/01/2018,"3,042.00",74037-INDEPENDENT FOSTER CARE-OTH AGENCY PROVISION,EXTERNAL FOSTER CARE PROVISION,Third Party Payments,Revenue
Walsall Council,http://opendatacommunities.org/id/metropolitan-district-council/walsall,WC88-63,31/01/2018,Childrens,ABC FOSTERING,29/01/2018,"3,182.40",74037-INDEPENDENT FOSTER CARE-OTH AGENCY PROVISION,EXTERNAL FOSTER CARE PROVISION,Third Party Payments,Revenue
Walsall Council,http://opendatacommunities.org/id/metropolitan-district-council/walsall,WC88-64,31/01/2018,Adult Social Care,REDACTED,05/01/2018,"1,557.68",76422-DIRECT PAYMENTS TO SOCIAL SERVICES CLIENTS,LD PACKAGE/PLACEMENT COSTS,Transfer Payments,Revenue
Walsall Council,http://opendatacommunities.org/id/metropolitan-district-council/walsall,WC88-65,31/01/2018,Adult Social Care,REDACTED,05/01/2018,"1,764.00",76422-DIRECT PAYMENTS TO SOCIAL SERVICES CLIENTS,LD PACKAGE/PLACEMENT COSTS,Transfer Payments,Revenue
Walsall Council,http://opendatacommunities.org/id/metropolitan-district-council/walsall,WC88-66,31/01/2018,Childrens,ABLEWELL CARS,17/01/2018,636.00,52000-WITH DRIVER-HIRE OF VEHICLES,HOME TO SCHOOL TRANSPORT,Transport,Revenue
Walsall Council,http://opendatacommunities.org/id/metropolitan-district-council/walsall,WC88-67,31/01/2018,Economy & Environment,ABRSM,10/01/2018,"2,287.00",63124-FEES & LICENCES-SERVICES,MUSIC HUB FOREST ARTS,Supplies & Services,Revenue
Walsall Council,http://opendatacommunities.org/id/metropolitan-district-council/walsall,WC88-68,31/01/2018,Childrens,ABU BAKR NURSERY,02/01/2018,"7,608.80",66505-OTHER-GRANTS TO OTHER ORGS,EARLY YEARS - 2 YR OLDS,Third Party Payments,Revenue
Walsall Council,http://opendatacommunities.org/id/metropolitan-district-council/walsall,WC88-69,31/01/2018,Childrens,ABU BAKR NURSERY,02/01/2018,"22,176.00",66505-OTHER-GRANTS TO OTHER ORGS,EARLY YEARS - 3 YR OLDS,Third Party Payments,Revenue
Walsall Council,http://opendatacommunities.org/id/metropolitan-district-council/walsall,WC88-70,31/01/2018,Economy & Environment,AC COACHING & SPORTS DEVELOPMENT LIMITED,17/01/2018,460.00,63000-PROFESSIONAL FEES AND SERVICES,DOORSTEP SPORTS CLUBS,Supplies & Services,Revenue
Walsall Council,http://opendatacommunities.org/id/metropolitan-district-council/walsall,WC88-71,31/01/2018,Childrens,AC EDUCATION,12/01/2018,"1,000.00",30030-EXTERNAL TRAINING,VIRTUAL SCHOOL CENTRAL PUPIL PREMIUM,Employees,Revenue
Walsall Council,http://opendatacommunities.org/id/metropolitan-district-council/walsall,WC88-72,31/01/2018,Adult Social Care,ACCORD HOUSING ASSOCIATION LTD#135,11/01/2018,252.28,73374-SUPPORTED & OTHER ACCOMMODATION,MENTAL HEALTH PACKAGE/PLACEMENT COSTS,Third Party Payments,Revenue
Walsall Council,http://opendatacommunities.org/id/metropolitan-district-council/walsall,WC88-73,31/01/2018,Adult Social Care,ACCORD HOUSING ASSOCIATION LTD#135,09/01/2018,267.12,73374-SUPPORTED & OTHER ACCOMMODATION,MENTAL HEALTH PACKAGE/PLACEMENT COSTS,Third Party Payments,Revenue
Walsall Council,http://opendatacommunities.org/id/metropolitan-district-council/walsall,WC88-74,31/01/2018,Adult Social Care,ACCORD HOUSING ASSOCIATION LTD#135,09/01/2018,311.64,73374-SUPPORTED & OTHER ACCOMMODATION,MENTAL HEALTH PACKAGE/PLACEMENT COSTS,Third Party Payments,Revenue
Walsall Council,http://opendatacommunities.org/id/metropolitan-district-council/walsall,WC88-75,31/01/2018,Adult Social Care,ACCORD HOUSING ASSOCIATION LTD#135,09/01/2018,437.78,73374-SUPPORTED & OTHER ACCOMMODATION,MENTAL HEALTH PACKAGE/PLACEMENT COSTS,Third Party Payments,Revenue
Walsall Council,http://opendatacommunities.org/id/metropolitan-district-council/walsall,WC88-76,31/01/2018,Resources and Transformation,ACCORD HOUSING ASSOCIATION LTD#135,23/01/2018,443.11,32000-MISC FEES AND EXPENSES,WALSALL TOWN HALL,Employees,Revenue
Walsall Council,http://opendatacommunities.org/id/metropolitan-district-council/walsall,WC88-77,31/01/2018,Adult Social Care,ACCORD HOUSING ASSOCIATION LTD#135,30/01/2018,476.67,73373-RESIDENTIAL & NURSING CARE PLACEMENTS,LD PACKAGE/PLACEMENT COSTS,Third Party Payments,Revenue
Walsall Council,http://opendatacommunities.org/id/metropolitan-district-council/walsall,WC88-78,31/01/2018,Adult Social Care,ACCORD HOUSING ASSOCIATION LTD#135,11/01/2018,598.20,73374-SUPPORTED & OTHER ACCOMMODATION,MENTAL HEALTH PACKAGE/PLACEMENT COSTS,Third Party Payments,Revenue
Walsall Council,http://opendatacommunities.org/id/metropolitan-district-council/walsall,WC88-79,31/01/2018,Adult Social Care,ACCORD HOUSING ASSOCIATION LTD#135,11/01/2018,604.48,73374-SUPPORTED & OTHER ACCOMMODATION,MENTAL HEALTH PACKAGE/PLACEMENT COSTS,Third Party Payments,Revenue
Walsall Council,http://opendatacommunities.org/id/metropolitan-district-council/walsall,WC88-80,31/01/2018,Adult Social Care,ACCORD HOUSING ASSOCIATION LTD#135,11/01/2018,661.12,73374-SUPPORTED & OTHER ACCOMMODATION,MENTAL HEALTH PACKAGE/PLACEMENT COSTS,Third Party Payments,Revenue
Walsall Council,http://opendatacommunities.org/id/metropolitan-district-council/walsall,WC88-81,31/01/2018,Childrens,ACCORD HOUSING ASSOCIATION LTD#135,26/01/2018,665.64,76010-ACCOMMODATION AND RELATED COSTS-ASSISTANCE TO S/S CLIENTS,TRANSITION AND LEAVING CARE PLACEMENTS,Transfer Payments,Revenue
Walsall Council,http://opendatacommunities.org/id/metropolitan-district-council/walsall,WC88-82,31/01/2018,Adult Social Care,ACCORD HOUSING ASSOCIATION LTD#135,09/01/2018,727.16,73374-SUPPORTED & OTHER ACCOMMODATION,OP PACKAGE/PLACEMENT COSTS,Third Party Payments,Revenue
Walsall Council,http://opendatacommunities.org/id/metropolitan-district-council/walsall,WC88-83,31/01/2018,Adult Social Care,ACCORD HOUSING ASSOCIATION LTD#135,24/01/2018,782.96,73374-SUPPORTED & OTHER ACCOMMODATION,OP PACKAGE/PLACEMENT COSTS,Third Party Payments,Revenue
Walsall Council,http://opendatacommunities.org/id/metropolitan-district-council/walsall,WC88-84,31/01/2018,Adult Social Care,ACCORD HOUSING ASSOCIATION LTD#135,11/01/2018,793.36,73374-SUPPORTED & OTHER ACCOMMODATION,MENTAL HEALTH PACKAGE/PLACEMENT COSTS,Third Party Payments,Revenue
Walsall Council,http://opendatacommunities.org/id/metropolitan-district-council/walsall,WC88-85,31/01/2018,Adult Social Care,ACCORD HOUSING ASSOCIATION LTD#135,11/01/2018,793.36,73374-SUPPORTED & OTHER ACCOMMODATION,MENTAL HEALTH PACKAGE/PLACEMENT COSTS,Third Party Payments,Revenue
Walsall Council,http://opendatacommunities.org/id/metropolitan-district-council/walsall,WC88-86,31/01/2018,Adult Social Care,ACCORD HOUSING ASSOCIATION LTD#135,11/01/2018,868.96,73374-SUPPORTED & OTHER ACCOMMODATION,MENTAL HEALTH PACKAGE/PLACEMENT COSTS,Third Party Payments,Revenue
Walsall Council,http://opendatacommunities.org/id/metropolitan-district-council/walsall,WC88-87,31/01/2018,Childrens,ACCORD HOUSING ASSOCIATION LTD#135,26/01/2018,998.46,76010-ACCOMMODATION AND RELATED COSTS-ASSISTANCE TO S/S CLIENTS,TRANSITION AND LEAVING CARE PLACEMENTS,Transfer Payments,Revenue
Walsall Council,http://opendatacommunities.org/id/metropolitan-district-council/walsall,WC88-88,31/01/2018,Adult Social Care,ACCORD HOUSING ASSOCIATION LTD#135,11/01/2018,"1,133.40",73374-SUPPORTED & OTHER ACCOMMODATION,MENTAL HEALTH PACKAGE/PLACEMENT COSTS,Third Party Payments,Revenue
Walsall Council,http://opendatacommunities.org/id/metropolitan-district-council/walsall,WC88-89,31/01/2018,Adult Social Care,ACCORD HOUSING ASSOCIATION LTD#135,11/01/2018,"1,227.84",73374-SUPPORTED & OTHER ACCOMMODATION,MENTAL HEALTH PACKAGE/PLACEMENT COSTS,Third Party Payments,Revenue
Walsall Council,http://opendatacommunities.org/id/metropolitan-district-council/walsall,WC88-90,31/01/2018,Adult Social Care,ACCORD HOUSING ASSOCIATION LTD#135,24/01/2018,"1,259.28",73374-SUPPORTED & OTHER ACCOMMODATION,LD PACKAGE/PLACEMENT COSTS,Third Party Payments,Revenue
Walsall Council,http://opendatacommunities.org/id/metropolitan-district-council/walsall,WC88-91,31/01/2018,Adult Social Care,ACCORD HOUSING ASSOCIATION LTD#135,11/01/2018,"1,322.28",73374-SUPPORTED & OTHER ACCOMMODATION,MENTAL HEALTH PACKAGE/PLACEMENT COSTS,Third Party Payments,Revenue
Walsall Council,http://opendatacommunities.org/id/metropolitan-district-council/walsall,WC88-92,31/01/2018,Adult Social Care,ACCORD HOUSING ASSOCIATION LTD#135,11/01/2018,"1,341.16",73374-SUPPORTED & OTHER ACCOMMODATION,MENTAL HEALTH PACKAGE/PLACEMENT COSTS,Third Party Payments,Revenue
Walsall Council,http://opendatacommunities.org/id/metropolitan-district-council/walsall,WC88-93,31/01/2018,Adult Social Care,ACCORD HOUSING ASSOCIATION LTD#135,24/01/2018,"1,529.15",73374-SUPPORTED & OTHER ACCOMMODATION,LD PACKAGE/PLACEMENT COSTS,Third Party Payments,Revenue
Walsall Council,http://opendatacommunities.org/id/metropolitan-district-council/walsall,WC88-94,31/01/2018,Adult Social Care,ACCORD HOUSING ASSOCIATION LTD#135,11/01/2018,"1,567.84",73374-SUPPORTED & OTHER ACCOMMODATION,MENTAL HEALTH PACKAGE/PLACEMENT COSTS,Third Party Payments,Revenue
Walsall Council,http://opendatacommunities.org/id/metropolitan-district-council/walsall,WC88-95,31/01/2018,Adult Social Care,ACCORD HOUSING ASSOCIATION LTD#135,30/01/2018,"1,680.00",73373-RESIDENTIAL & NURSING CARE PLACEMENTS,OP PACKAGE/PLACEMENT COSTS,Third Party Payments,Revenue
Walsall Council,http://opendatacommunities.org/id/metropolitan-district-council/walsall,WC88-96,31/01/2018,Adult Social Care,ACCORD HOUSING ASSOCIATION LTD#135,18/01/2018,"4,039.75",70000-SOCIAL SERVICES-FEES TO VOLUNTARY BODIES,COMPLEX NEEDS CONTRACTS/SLA's,Third Party Payments,Revenue
Walsall Council,http://opendatacommunities.org/id/metropolitan-district-council/walsall,WC88-97,31/01/2018,Adult Social Care,ACCORD HOUSING ASSOCIATION LTD#135,10/01/2018,"4,420.40",73373-RESIDENTIAL & NURSING CARE PLACEMENTS,LD PACKAGE/PLACEMENT COSTS,Third Party Payments,Revenue
Walsall Council,http://opendatacommunities.org/id/metropolitan-district-council/walsall,WC88-98,31/01/2018,Adult Social Care,ACCORD HOUSING ASSOCIATION LTD#135,23/01/2018,"4,420.40",73373-RESIDENTIAL & NURSING CARE PLACEMENTS,LD PACKAGE/PLACEMENT COSTS,Third Party Payments,Revenue
Walsall Council,http://opendatacommunities.org/id/metropolitan-district-council/walsall,WC88-99,31/01/2018,Adult Social Care,ACCORD HOUSING ASSOCIATION LTD#135,10/01/2018,"4,421.40",73373-RESIDENTIAL & NURSING CARE PLACEMENTS,LD PACKAGE/PLACEMENT COSTS,Third Party Payments,Revenue
Walsall Council,http://opendatacommunities.org/id/metropolitan-district-council/walsall,WC88-100,31/01/2018,Adult Social Care,ACCORD HOUSING ASSOCIATION LTD#135,10/01/2018,"4,421.40",73373-RESIDENTIAL & NURSING CARE PLACEMENTS,LD PACKAGE/PLACEMENT COSTS,Third Party Payments,Revenue
Walsall Council,http://opendatacommunities.org/id/metropolitan-district-council/walsall,WC88-101,31/01/2018,Adult Social Care,ACCORD HOUSING ASSOCIATION LTD#135,23/01/2018,"4,421.40",73373-RESIDENTIAL & NURSING CARE PLACEMENTS,LD PACKAGE/PLACEMENT COSTS,Third Party Payments,Revenue
Walsall Council,http://opendatacommunities.org/id/metropolitan-district-council/walsall,WC88-102,31/01/2018,Adult Social Care,ACCORD HOUSING ASSOCIATION LTD#135,23/01/2018,"4,421.40",73373-RESIDENTIAL & NURSING CARE PLACEMENTS,LD PACKAGE/PLACEMENT COSTS,Third Party Payments,Revenue
Walsall Council,http://opendatacommunities.org/id/metropolitan-district-council/walsall,WC88-103,31/01/2018,Adult Social Care,ACCORD HOUSING ASSOCIATION LTD#135,30/01/2018,"4,766.40",73373-RESIDENTIAL & NURSING CARE PLACEMENTS,LD PACKAGE/PLACEMENT COSTS,Third Party Payments,Revenue
Walsall Council,http://opendatacommunities.org/id/metropolitan-district-council/walsall,WC88-104,31/01/2018,Adult Social Care,ACCORD HOUSING ASSOCIATION LTD#135,18/01/2018,"4,979.00",70000-SOCIAL SERVICES-FEES TO VOLUNTARY BODIES,COMPLEX NEEDS CONTRACTS/SLA's,Third Party Payments,Revenue
Walsall Council,http://opendatacommunities.org/id/metropolitan-district-council/walsall,WC88-105,31/01/2018,Childrens,ACCORD HOUSING ASSOCIATION LTD#135,18/01/2018,"4,994.08",76010-ACCOMMODATION AND RELATED COSTS-ASSISTANCE TO S/S CLIENTS,SAFEGUARDING & FAMILY SUPPORT,Transfer Payments,Revenue
Walsall Council,http://opendatacommunities.org/id/metropolitan-district-council/walsall,WC88-106,31/01/2018,Adult Social Care,ACCORD HOUSING ASSOCIATION LTD#135,10/01/2018,"6,170.84",73373-RESIDENTIAL & NURSING CARE PLACEMENTS,LD PACKAGE/PLACEMENT COSTS,Third Party Payments,Revenue
Walsall Council,http://opendatacommunities.org/id/metropolitan-district-council/walsall,WC88-107,31/01/2018,Adult Social Care,ACCORD HOUSING ASSOCIATION LTD#135,10/01/2018,"6,170.84",73373-RESIDENTIAL & NURSING CARE PLACEMENTS,LD PACKAGE/PLACEMENT COSTS,Third Party Payments,Revenue
Walsall Council,http://opendatacommunities.org/id/metropolitan-district-council/walsall,WC88-108,31/01/2018,Adult Social Care,ACCORD HOUSING ASSOCIATION LTD#135,10/01/2018,"6,170.84",73373-RESIDENTIAL & NURSING CARE PLACEMENTS,LD PACKAGE/PLACEMENT COSTS,Third Party Payments,Revenue
Walsall Council,http://opendatacommunities.org/id/metropolitan-district-council/walsall,WC88-109,31/01/2018,Adult Social Care,ACCORD HOUSING ASSOCIATION LTD#135,23/01/2018,"6,170.84",73373-RESIDENTIAL & NURSING CARE PLACEMENTS,LD PACKAGE/PLACEMENT COSTS,Third Party Payments,Revenue
Walsall Council,http://opendatacommunities.org/id/metropolitan-district-council/walsall,WC88-110,31/01/2018,Adult Social Care,ACCORD HOUSING ASSOCIATION LTD#135,23/01/2018,"6,170.84",73373-RESIDENTIAL & NURSING CARE PLACEMENTS,LD PACKAGE/PLACEMENT COSTS,Third Party Payments,Revenue
Walsall Council,http://opendatacommunities.org/id/metropolitan-district-council/walsall,WC88-111,31/01/2018,Adult Social Care,ACCORD HOUSING ASSOCIATION LTD#135,23/01/2018,"6,170.84",73373-RESIDENTIAL & NURSING CARE PLACEMENTS,LD PACKAGE/PLACEMENT COSTS,Third Party Payments,Revenue
Walsall Council,http://opendatacommunities.org/id/metropolitan-district-council/walsall,WC88-112,31/01/2018,Childrens,ACCORD HOUSING ASSOCIATION LTD#135,09/01/2018,"6,655.50",63102-CONSULTANTS FEES - CORPORATE,TOXIC TRIO,Supplies & Services,Revenue
Walsall Council,http://opendatacommunities.org/id/metropolitan-district-council/walsall,WC88-113,31/01/2018,Adult Social Care,ACCORD HOUSING ASSOCIATION LTD#135,22/01/2018,"11,164.00",73365-BLOCK GROSS-SUPPORTING PEOPLE,OLDER PEOPLE SLA,Third Party Payments,Revenue
Walsall Council,http://opendatacommunities.org/id/metropolitan-district-council/walsall,WC88-114,31/01/2018,Adult Social Care,ACCORD HOUSING ASSOCIATION LTD#135,22/01/2018,"29,330.75",73365-BLOCK GROSS-SUPPORTING PEOPLE,OLDER PEOPLE SLA,Third Party Payments,Revenue
Walsall Council,http://opendatacommunities.org/id/metropolitan-district-council/walsall,WC88-115,31/01/2018,Adult Social Care,ACCORD HOUSING ASSOCIATION LTD#135,08/01/2018,"36,620.24",73372-DOMICILIARY CARE,OP PACKAGE/PLACEMENT COSTS,Third Party Payments,Revenue
Walsall Council,http://opendatacommunities.org/id/metropolitan-district-council/walsall,WC88-116,31/01/2018,Resources and Transformation,ACCORD HOUSING ASSOCIATION LTD#135,03/01/2018,"47,217.50",73365-BLOCK GROSS-SUPPORTING PEOPLE,HOMELESS PREVENTION GRANT,Third Party Payments,Revenue
Walsall Council,http://opendatacommunities.org/id/metropolitan-district-council/walsall,WC88-117,31/01/2018,Adult Social Care,ACE CARE AGENCY,12/01/2018,825.01,73372-DOMICILIARY CARE,OP PACKAGE/PLACEMENT COSTS,Third Party Payments,Revenue
Walsall Council,http://opendatacommunities.org/id/metropolitan-district-council/walsall,WC88-118,31/01/2018,Adult Social Care,ACE CARE AGENCY,12/01/2018,849.41,73372-DOMICILIARY CARE,OP PACKAGE/PLACEMENT COSTS,Third Party Payments,Revenue
Walsall Council,http://opendatacommunities.org/id/metropolitan-district-council/walsall,WC88-119,31/01/2018,Childrens,ACE RADIO CARS,17/01/2018,"1,786.69",52000-WITH DRIVER-HIRE OF VEHICLES,HOME TO SCHOOL TRANSPORT,Transport,Revenue
Walsall Council,http://opendatacommunities.org/id/metropolitan-district-council/walsall,WC88-120,31/01/2018,Adult Social Care,ACEPAY LTD (COTTAGE NUR HOME),30/01/2018,785.71,73373-RESIDENTIAL & NURSING CARE PLACEMENTS,OP PACKAGE/PLACEMENT COSTS,Third Party Payments,Revenue
Walsall Council,http://opendatacommunities.org/id/metropolitan-district-council/walsall,WC88-121,31/01/2018,Adult Social Care,ACEPAY LTD (COTTAGE NUR HOME),16/01/2018,"1,428.57",73373-RESIDENTIAL & NURSING CARE PLACEMENTS,OP PACKAGE/PLACEMENT COSTS,Third Party Payments,Revenue
Walsall Council,http://opendatacommunities.org/id/metropolitan-district-council/walsall,WC88-122,31/01/2018,Adult Social Care,ACEPAY LTD (COTTAGE NUR HOME),30/01/2018,"1,428.58",73373-RESIDENTIAL & NURSING CARE PLACEMENTS,OP PACKAGE/PLACEMENT COSTS,Third Party Payments,Revenue
Walsall Council,http://opendatacommunities.org/id/metropolitan-district-council/walsall,WC88-123,31/01/2018,Adult Social Care,ACEPAY LTD (COTTAGE NUR HOME),23/01/2018,"1,833.43",73373-RESIDENTIAL & NURSING CARE PLACEMENTS,OP PACKAGE/PLACEMENT COSTS,Third Party Payments,Revenue
Walsall Council,http://opendatacommunities.org/id/metropolitan-district-council/walsall,WC88-124,31/01/2018,Adult Social Care,ACEPAY LTD (COTTAGE NUR HOME),16/01/2018,"2,214.28",73373-RESIDENTIAL & NURSING CARE PLACEMENTS,OP PACKAGE/PLACEMENT COSTS,Third Party Payments,Revenue
Walsall Council,http://opendatacommunities.org/id/metropolitan-district-council/walsall,WC88-125,31/01/2018,Adult Social Care,ACEPAY LTD (COTTAGE NUR HOME),16/01/2018,"2,214.28",73373-RESIDENTIAL & NURSING CARE PLACEMENTS,OP PACKAGE/PLACEMENT COSTS,Third Party Payments,Revenue
Walsall Council,http://opendatacommunities.org/id/metropolitan-district-council/walsall,WC88-126,31/01/2018,Adult Social Care,ACEPAY LTD (COTTAGE NUR HOME),16/01/2018,"2,214.28",73373-RESIDENTIAL & NURSING CARE PLACEMENTS,OP PACKAGE/PLACEMENT COSTS,Third Party Payments,Revenue
Walsall Council,http://opendatacommunities.org/id/metropolitan-district-council/walsall,WC88-127,31/01/2018,Adult Social Care,ACEPAY LTD (COTTAGE NUR HOME),16/01/2018,"2,214.29",73373-RESIDENTIAL & NURSING CARE PLACEMENTS,OP PACKAGE/PLACEMENT COSTS,Third Party Payments,Revenue
Walsall Council,http://opendatacommunities.org/id/metropolitan-district-council/walsall,WC88-128,31/01/2018,Economy & Environment,ACIVICO LTD,05/01/2018,"1,225.15",01001-OTHER CONSULTANTS FEES,CFR 1008 WALSALL MARKET,Capital,Capital
Walsall Council,http://opendatacommunities.org/id/metropolitan-district-council/walsall,WC88-129,31/01/2018,Economy & Environment,ACIVICO LTD,23/01/2018,"2,150.00",60008-MAINTENANCE-FURNITURE & EQUIPMENT,DARLASTON LEISURE CENTRE,Supplies & Services,Revenue
Walsall Council,http://opendatacommunities.org/id/metropolitan-district-council/walsall,WC88-130,31/01/2018,Childrens,ACORN ABA LIMITED,15/01/2018,771.38,66502-TOP UP FUNDING -GRANTS TO SCHOOLS,INDEPENDENT PROVIDERS - SPECIAL & AP,Third Party Payments,Revenue
Walsall Council,http://opendatacommunities.org/id/metropolitan-district-council/walsall,WC88-131,31/01/2018,Adult Social Care,ACORN REST HOME,16/01/2018,"1,656.00",73373-RESIDENTIAL & NURSING CARE PLACEMENTS,OP PACKAGE/PLACEMENT COSTS,Third Party Payments,Revenue
Walsall Council,http://opendatacommunities.org/id/metropolitan-district-council/walsall,WC88-132,31/01/2018,Adult Social Care,ACORN REST HOME,10/01/2018,"2,140.00",73373-RESIDENTIAL & NURSING CARE PLACEMENTS,OP PACKAGE/PLACEMENT COSTS,Third Party Payments,Revenue
Walsall Council,http://opendatacommunities.org/id/metropolitan-district-council/walsall,WC88-133,31/01/2018,Childrens,ACORNS CHILDRENS HOSPICE TRUST,05/01/2018,750.00,63000-PROFESSIONAL FEES AND SERVICES,DIRECTLY COMMISSIONED NURSING SERVICES,Supplies & Services,Revenue
Walsall Council,http://opendatacommunities.org/id/metropolitan-district-council/walsall,WC88-134,31/01/2018,Childrens,ACORNS CHILDRENS HOSPICE TRUST,29/01/2018,750.00,63000-PROFESSIONAL FEES AND SERVICES,DIRECTLY COMMISSIONED NURSING SERVICES,Supplies & Services,Revenue
Walsall Council,http://opendatacommunities.org/id/metropolitan-district-council/walsall,WC88-135,31/01/2018,Childrens,ACORNS CHILDRENS HOSPICE TRUST,24/01/2018,818.84,63000-PROFESSIONAL FEES AND SERVICES,DIRECTLY COMMISSIONED NURSING SERVICES,Supplies & Services,Revenue
Walsall Council,http://opendatacommunities.org/id/metropolitan-district-council/walsall,WC88-136,31/01/2018,Childrens,ACORNS CHILDRENS HOSPICE TRUST,03/01/2018,911.89,63000-PROFESSIONAL FEES AND SERVICES,DIRECTLY COMMISSIONED NURSING SERVICES,Supplies & Services,Revenue
Walsall Council,http://opendatacommunities.org/id/metropolitan-district-council/walsall,WC88-137,31/01/2018,Resources and Transformation,ACT NOW TRAINING LTD,10/01/2018,299.00,64001-COURSE/CONFERENCE EXPENSES,BUSINESS IMPROVEMENT SERVICE,Supplies & Services,Revenue
Walsall Council,http://opendatacommunities.org/id/metropolitan-district-council/walsall,WC88-138,31/01/2018,Resources and Transformation,ACT NOW TRAINING LTD,10/01/2018,299.00,64001-COURSE/CONFERENCE EXPENSES,BUSINESS IMPROVEMENT SERVICE,Supplies & Services,Revenue
Walsall Council,http://opendatacommunities.org/id/metropolitan-district-council/walsall,WC88-139,31/01/2018,Childrens,ACTION FOR CHILDREN,23/01/2018,825.00,63000-PROFESSIONAL FEES AND SERVICES,FAMILY PLACEMENTS,Supplies & Services,Revenue
Walsall Council,http://opendatacommunities.org/id/metropolitan-district-council/walsall,WC88-140,31/01/2018,Economy & Environment,ACTION MIDLANDS LTD,12/01/2018,300.00,63000-PROFESSIONAL FEES AND SERVICES,YEI (IMPACT) PROGRAMME,Supplies & Services,Revenue
Walsall Council,http://opendatacommunities.org/id/metropolitan-district-council/walsall,WC88-141,31/01/2018,Economy & Environment,ACTION MIDLANDS LTD,12/01/2018,300.00,63000-PROFESSIONAL FEES AND SERVICES,YEI ESF FUNDING,Supplies & Services,Revenue
Walsall Council,http://opendatacommunities.org/id/metropolitan-district-council/walsall,WC88-142,31/01/2018,Economy & Environment,ACTION MIDLANDS LTD,12/01/2018,450.00,63000-PROFESSIONAL FEES AND SERVICES,YEI (IMPACT) PROGRAMME,Supplies & Services,Revenue
Walsall Council,http://opendatacommunities.org/id/metropolitan-district-council/walsall,WC88-143,31/01/2018,Economy & Environment,ACTION MIDLANDS LTD,12/01/2018,450.00,63000-PROFESSIONAL FEES AND SERVICES,YEI ESF FUNDING,Supplies & Services,Revenue
Walsall Council,http://opendatacommunities.org/id/metropolitan-district-council/walsall,WC88-144,31/01/2018,Adult Social Care,ACTION ON HEARING LOSS,05/01/2018,262.93,60520-HEALTH & SAFETY-MATERIALS,SENSORY/DEAF SERVICES,Supplies & Services,Revenue
Walsall Council,http://opendatacommunities.org/id/metropolitan-district-council/walsall,WC88-145,31/01/2018,Adult Social Care,ACTION ON HEARING LOSS,12/01/2018,"1,008.00",73374-SUPPORTED & OTHER ACCOMMODATION,MENTAL HEALTH PACKAGE/PLACEMENT COSTS,Third Party Payments,Revenue
Walsall Council,http://opendatacommunities.org/id/metropolitan-district-council/walsall,WC88-146,31/01/2018,Adult Social Care,ACTION ON HEARING LOSS,19/01/2018,"1,620.22",60013-DISABLED-EQUIPMENT,SENSORY/DEAF SERVICES,Supplies & Services,Revenue
Walsall Council,http://opendatacommunities.org/id/metropolitan-district-council/walsall,WC88-147,31/01/2018,Adult Social Care,ACTON BANKS LTD,10/01/2018,252.12,34305-AGENCY STAFF-EMPLOYEES,GOSCOTE,Employees,Revenue
Walsall Council,http://opendatacommunities.org/id/metropolitan-district-council/walsall,WC88-148,31/01/2018,Adult Social Care,ACTON BANKS LTD,10/01/2018,762.09,34305-AGENCY STAFF-EMPLOYEES,GOSCOTE,Employees,Revenue
Walsall Council,http://opendatacommunities.org/id/metropolitan-district-council/walsall,WC88-149,31/01/2018,Adult Social Care,ACTON BANKS LTD,10/01/2018,848.04,34305-AGENCY STAFF-EMPLOYEES,GOSCOTE,Employees,Revenue
Walsall Council,http://opendatacommunities.org/id/metropolitan-district-council/walsall,WC88-150,31/01/2018,Adult Social Care,ACTON BANKS LTD,10/01/2018,933.99,34305-AGENCY STAFF-EMPLOYEES,GOSCOTE,Employees,Revenue
Walsall Council,http://opendatacommunities.org/id/metropolitan-district-council/walsall,WC88-151,31/01/2018,Adult Social Care,ACTON BANKS LTD,24/01/2018,"2,565.19",73025-PROFESSIONAL SERVICES-PRIV CONTRACTOR & OTHER AGENCIES,HOLLYBANK,Third Party Payments,Revenue
Walsall Council,http://opendatacommunities.org/id/metropolitan-district-council/walsall,WC88-152,31/01/2018,Adult Social Care,ACTON BANKS LTD,10/01/2018,"3,703.67",73025-PROFESSIONAL SERVICES-PRIV CONTRACTOR & OTHER AGENCIES,HOLLYBANK,Third Party Payments,Revenue
Walsall Council,http://opendatacommunities.org/id/metropolitan-district-council/walsall,WC88-153,31/01/2018,Adult Social Care,ACTON BANKS LTD,03/01/2018,"4,190.40",73025-PROFESSIONAL SERVICES-PRIV CONTRACTOR & OTHER AGENCIES,HOLLYBANK,Third Party Payments,Revenue
Walsall Council,http://opendatacommunities.org/id/metropolitan-district-council/walsall,WC88-154,31/01/2018,Adult Social Care,ACTON BANKS LTD,22/01/2018,"4,395.26",73025-PROFESSIONAL SERVICES-PRIV CONTRACTOR & OTHER AGENCIES,HOLLYBANK,Third Party Payments,Revenue
Walsall Council,http://opendatacommunities.org/id/metropolitan-district-council/walsall,WC88-155,31/01/2018,Adult Social Care,ACTON BANKS LTD,12/01/2018,"4,594.11",73025-PROFESSIONAL SERVICES-PRIV CONTRACTOR & OTHER AGENCIES,HOLLYBANK,Third Party Payments,Revenue
Walsall Council,http://opendatacommunities.org/id/metropolitan-district-council/walsall,WC88-156,31/01/2018,Adult Social Care,ACTON BANKS LTD,10/01/2018,"5,431.82",73025-PROFESSIONAL SERVICES-PRIV CONTRACTOR & OTHER AGENCIES,HOLLYBANK,Third Party Payments,Revenue
Walsall Council,http://opendatacommunities.org/id/metropolitan-district-council/walsall,WC88-157,31/01/2018,Adult Social Care,REDACTED,05/01/2018,433.84,76422-DIRECT PAYMENTS TO SOCIAL SERVICES CLIENTS,OP PACKAGE/PLACEMENT COSTS,Transfer Payments,Revenue
Walsall Council,http://opendatacommunities.org/id/metropolitan-district-council/walsall,WC88-158,31/01/2018,Adult Social Care,REDACTED,05/01/2018,448.60,76422-DIRECT PAYMENTS TO SOCIAL SERVICES CLIENTS,LD PACKAGE/PLACEMENT COSTS,Transfer Payments,Revenue
Walsall Council,http://opendatacommunities.org/id/metropolitan-district-council/walsall,WC88-159,31/01/2018,Adult Social Care,ADASS,04/01/2018,"1,717.00",64500-PUBLICATIONS/ORGANISATIONS-SUBSCRIPTIONS,SENIOR MANAGEMENT TEAM,Supplies & Services,Revenue
Walsall Council,http://opendatacommunities.org/id/metropolitan-district-council/walsall,WC88-160,31/01/2018,Resources and Transformation,ADELIE FOODS LTD,12/01/2018,491.50,61305-CATERING,TOWN HALL RESTAURANT BISTRO,Supplies & Services,Revenue
Walsall Council,http://opendatacommunities.org/id/metropolitan-district-council/walsall,WC88-161,31/01/2018,Resources and Transformation,ADELIE FOODS LTD,19/01/2018,609.42,61305-CATERING,TOWN HALL RESTAURANT BISTRO,Supplies & Services,Revenue
Walsall Council,http://opendatacommunities.org/id/metropolitan-district-council/walsall,WC88-162,31/01/2018,Resources and Transformation,ADELIE FOODS LTD,18/01/2018,811.15,61305-CATERING,TOWN HALL RESTAURANT BISTRO,Supplies & Services,Revenue
Walsall Council,http://opendatacommunities.org/id/metropolitan-district-council/walsall,WC88-163,31/01/2018,Resources and Transformation,ADELIE FOODS LTD,30/01/2018,819.18,61305-CATERING,TOWN HALL RESTAURANT BISTRO,Supplies & Services,Revenue
Walsall Council,http://opendatacommunities.org/id/metropolitan-district-council/walsall,WC88-164,31/01/2018,Resources and Transformation,ADELIE FOODS LTD,11/01/2018,"1,065.05",61305-CATERING,TOWN HALL RESTAURANT BISTRO,Supplies & Services,Revenue
Walsall Council,http://opendatacommunities.org/id/metropolitan-district-council/walsall,WC88-165,31/01/2018,Adult Social Care,REDACTED,05/01/2018,964.00,76422-DIRECT PAYMENTS TO SOCIAL SERVICES CLIENTS,OP PACKAGE/PLACEMENT COSTS,Transfer Payments,Revenue
Walsall Council,http://opendatacommunities.org/id/metropolitan-district-council/walsall,WC88-166,31/01/2018,Adult Social Care,ADMIRAL SELF STORAGE LTD,05/01/2018,215.10,63000-PROFESSIONAL FEES AND SERVICES,MENTAL HEALTH MANAGEMENT TEAM,Supplies & Services,Revenue
Walsall Council,http://opendatacommunities.org/id/metropolitan-district-council/walsall,WC88-167,31/01/2018,Childrens,REDACTED,15/01/2018,333.12,74510-RESIDENTS ORDERS,ADOPTION ALLOWANCES,Third Party Payments,Revenue
Walsall Council,http://opendatacommunities.org/id/metropolitan-district-council/walsall,WC88-168,31/01/2018,Childrens,REDACTED,15/01/2018,361.12,74510-RESIDENTS ORDERS,ADOPTION ALLOWANCES,Third Party Payments,Revenue
Walsall Council,http://opendatacommunities.org/id/metropolitan-district-council/walsall,WC88-169,31/01/2018,Economy & Environment,ADS ELECTRICAL & HIGHWAY SERVICES LTD,29/01/2018,702.27,63000-PROFESSIONAL FEES AND SERVICES,FESTIVE DECORATIONS,Supplies & Services,Revenue
Walsall Council,http://opendatacommunities.org/id/metropolitan-district-council/walsall,WC88-170,31/01/2018,Adult Social Care,ADVANCE HEALTH CARE (UK) LTD,08/01/2018,-254.43,73372-DOMICILIARY CARE,OP PACKAGE/PLACEMENT COSTS,Third Party Payments,Revenue
Walsall Council,http://opendatacommunities.org/id/metropolitan-district-council/walsall,WC88-171,31/01/2018,Adult Social Care,ADVANCE HEALTH CARE (UK) LTD,01/01/2018,288.75,73019-PSE'S-PRIV CONTRACTOR FEES,TRANSITIONAL CARE SUPPORT TEAM,Third Party Payments,Revenue
Walsall Council,http://opendatacommunities.org/id/metropolitan-district-council/walsall,WC88-172,31/01/2018,Adult Social Care,ADVANCE HEALTH CARE (UK) LTD,01/01/2018,288.75,73019-PSE'S-PRIV CONTRACTOR FEES,TRANSITIONAL CARE SUPPORT TEAM,Third Party Payments,Revenue
Walsall Council,http://opendatacommunities.org/id/metropolitan-district-council/walsall,WC88-173,31/01/2018,Adult Social Care,ADVANCE HEALTH CARE (UK) LTD,01/01/2018,288.75,73019-PSE'S-PRIV CONTRACTOR FEES,TRANSITIONAL CARE SUPPORT TEAM,Third Party Payments,Revenue
Walsall Council,http://opendatacommunities.org/id/metropolitan-district-council/walsall,WC88-174,31/01/2018,Adult Social Care,ADVANCE HEALTH CARE (UK) LTD,19/01/2018,288.75,73019-PSE'S-PRIV CONTRACTOR FEES,TRANSITIONAL CARE SUPPORT TEAM,Third Party Payments,Revenue
Walsall Council,http://opendatacommunities.org/id/metropolitan-district-council/walsall,WC88-175,31/01/2018,Adult Social Care,ADVANCE HEALTH CARE (UK) LTD,26/01/2018,495.00,73025-PROFESSIONAL SERVICES-PRIV CONTRACTOR & OTHER AGENCIES,ACM MANAGEMENT TEAM,Third Party Payments,Revenue
Walsall Council,http://opendatacommunities.org/id/metropolitan-district-council/walsall,WC88-176,31/01/2018,Adult Social Care,ADVANCE HEALTH CARE (UK) LTD,26/01/2018,976.25,73025-PROFESSIONAL SERVICES-PRIV CONTRACTOR & OTHER AGENCIES,ACM MANAGEMENT TEAM,Third Party Payments,Revenue
Walsall Council,http://opendatacommunities.org/id/metropolitan-district-council/walsall,WC88-177,31/01/2018,Adult Social Care,ADVANCE HEALTH CARE (UK) LTD,22/01/2018,"1,471.25",73025-PROFESSIONAL SERVICES-PRIV CONTRACTOR & OTHER AGENCIES,ACM MANAGEMENT TEAM,Third Party Payments,Revenue
Walsall Council,http://opendatacommunities.org/id/metropolitan-district-council/walsall,WC88-178,31/01/2018,Adult Social Care,ADVANCE HEALTH CARE (UK) LTD,01/01/2018,"5,506.60",73025-PROFESSIONAL SERVICES-PRIV CONTRACTOR & OTHER AGENCIES,COMMUNITY INTERMEDIATE CARE,Third Party Payments,Revenue
Walsall Council,http://opendatacommunities.org/id/metropolitan-district-council/walsall,WC88-179,31/01/2018,Adult Social Care,ADVANCE HEALTH CARE (UK) LTD,01/01/2018,"6,599.73",73025-PROFESSIONAL SERVICES-PRIV CONTRACTOR & OTHER AGENCIES,COMMUNITY INTERMEDIATE CARE,Third Party Payments,Revenue
Walsall Council,http://opendatacommunities.org/id/metropolitan-district-council/walsall,WC88-180,31/01/2018,Adult Social Care,ADVANCE HEALTH CARE (UK) LTD,01/01/2018,"6,610.31",73025-PROFESSIONAL SERVICES-PRIV CONTRACTOR & OTHER AGENCIES,COMMUNITY INTERMEDIATE CARE,Third Party Payments,Revenue
Walsall Council,http://opendatacommunities.org/id/metropolitan-district-council/walsall,WC88-181,31/01/2018,Adult Social Care,ADVANCE HEALTH CARE (UK) LTD,19/01/2018,"6,861.25",73025-PROFESSIONAL SERVICES-PRIV CONTRACTOR & OTHER AGENCIES,COMMUNITY INTERMEDIATE CARE,Third Party Payments,Revenue
Walsall Council,http://opendatacommunities.org/id/metropolitan-district-council/walsall,WC88-182,31/01/2018,Adult Social Care,ADVANCE HEALTH CARE (UK) LTD,01/01/2018,"7,053.75",73025-PROFESSIONAL SERVICES-PRIV CONTRACTOR & OTHER AGENCIES,COMMUNITY INTERMEDIATE CARE,Third Party Payments,Revenue
Walsall Council,http://opendatacommunities.org/id/metropolitan-district-council/walsall,WC88-183,31/01/2018,Adult Social Care,ADVANCE HEALTH CARE (UK) LTD,17/01/2018,"7,232.50",73025-PROFESSIONAL SERVICES-PRIV CONTRACTOR & OTHER AGENCIES,COMMUNITY INTERMEDIATE CARE,Third Party Payments,Revenue
Walsall Council,http://opendatacommunities.org/id/metropolitan-district-council/walsall,WC88-184,31/01/2018,Adult Social Care,ADVANCE HEALTH CARE (UK) LTD,17/01/2018,"7,386.91",73025-PROFESSIONAL SERVICES-PRIV CONTRACTOR & OTHER AGENCIES,COMMUNITY INTERMEDIATE CARE,Third Party Payments,Revenue
Walsall Council,http://opendatacommunities.org/id/metropolitan-district-council/walsall,WC88-185,31/01/2018,Adult Social Care,ADVANCE HEALTH CARE (UK) LTD,19/01/2018,"7,865.00",73025-PROFESSIONAL SERVICES-PRIV CONTRACTOR & OTHER AGENCIES,COMMUNITY INTERMEDIATE CARE,Third Party Payments,Revenue
Walsall Council,http://opendatacommunities.org/id/metropolitan-district-council/walsall,WC88-186,31/01/2018,Adult Social Care,ADVANCE HEALTH CARE (UK) LTD,08/01/2018,"79,818.61",73372-DOMICILIARY CARE,OP PACKAGE/PLACEMENT COSTS,Third Party Payments,Revenue
Walsall Council,http://opendatacommunities.org/id/metropolitan-district-council/walsall,WC88-187,31/01/2018,Resources and Transformation,ADVANCED DIGITAL IMAGING,22/01/2018,"1,450.00",62008-OUTWORK-PRINT ROOM,PRINTING SERVICES,Supplies & Services,Revenue
Walsall Council,http://opendatacommunities.org/id/metropolitan-district-council/walsall,WC88-188,31/01/2018,Resources and Transformation,ADVANTAGE RESTORATION LTD,01/01/2018,"80,385.00","40000-REPAIRS,ALTERATIONS & MAINTENANCE-PREM",RECHARGEABLE - NON SCHOOLS MAINTENANCE,Premises,Revenue
Walsall Council,http://opendatacommunities.org/id/metropolitan-district-council/walsall,WC88-189,31/01/2018,Childrens,ADVENTURELAND DAY NURSERY,18/01/2018,640.00,66502-TOP UP FUNDING -GRANTS TO SCHOOLS,INDEPENDENT PROVIDERS - SPECIAL & AP,Third Party Payments,Revenue
Walsall Council,http://opendatacommunities.org/id/metropolitan-district-council/walsall,WC88-190,31/01/2018,Childrens,ADVENTURELAND DAY NURSERY,02/01/2018,"11,758.40",66505-OTHER-GRANTS TO OTHER ORGS,EARLY YEARS - 2 YR OLDS,Third Party Payments,Revenue
Walsall Council,http://opendatacommunities.org/id/metropolitan-district-council/walsall,WC88-191,31/01/2018,Childrens,ADVENTURELAND DAY NURSERY,02/01/2018,"15,312.00",66505-OTHER-GRANTS TO OTHER ORGS,EARLY YEARS - 3 YR OLDS,Third Party Payments,Revenue
Walsall Council,http://opendatacommunities.org/id/metropolitan-district-council/walsall,WC88-192,31/01/2018,Economy & Environment,AECOM LIMITED,15/01/2018,550.00,01009-SITE WORKS - OTHER CONTRACTORS,CFR 1198 A34 BIRMINGHAM ROAD (SKIP LANE TO WALSTEAD RD & APPROACHES),Capital,Capital
Walsall Council,http://opendatacommunities.org/id/metropolitan-district-council/walsall,WC88-193,31/01/2018,Economy & Environment,AECOM LIMITED,29/01/2018,580.00,01009-SITE WORKS - OTHER CONTRACTORS,CFR 1198 PRIMLEY AVENUE,Capital,Capital
Walsall Council,http://opendatacommunities.org/id/metropolitan-district-council/walsall,WC88-194,31/01/2018,Economy & Environment,AECOM LIMITED,05/01/2018,"1,994.00",01001-OTHER CONSULTANTS FEES,CFR 1219 DARLASTON MONITORING AND EVALUATION,Capital,Capital
Walsall Council,http://opendatacommunities.org/id/metropolitan-district-council/walsall,WC88-195,31/01/2018,Economy & Environment,AFGHAN COMMUNITY & WELFARE CENTRE,03/01/2018,"4,720.00",66500-GRANTS TO OTHER ORGS,ESF COMMUNITY GRANTS,Third Party Payments,Revenue
Walsall Council,http://opendatacommunities.org/id/metropolitan-district-council/walsall,WC88-196,31/01/2018,Adult Social Care,AGE UK WALSALL,10/01/2018,"5,508.00",76423-DIRECT PAYMENTS SUPPORT,DIRECT PAYMENT SUPPORT ORGANISATIONS,Transfer Payments,Revenue
Walsall Council,http://opendatacommunities.org/id/metropolitan-district-council/walsall,WC88-197,31/01/2018,Economy & Environment,AGE UK WALSALL,17/01/2018,"7,437.50",63253-PAYMENT TO CONTRACTOR,MENTAL HEALTH,Third Party Payments,Revenue
Walsall Council,http://opendatacommunities.org/id/metropolitan-district-council/walsall,WC88-198,31/01/2018,Economy & Environment,AGE UK WALSALL,08/01/2018,"11,250.00",63000-PROFESSIONAL FEES AND SERVICES,FALLS PREVENTION,Supplies & Services,Revenue
Walsall Council,http://opendatacommunities.org/id/metropolitan-district-council/walsall,WC88-199,31/01/2018,Adult Social Care,AGINCARE UK LTD,12/01/2018,"1,559.04",73374-SUPPORTED & OTHER ACCOMMODATION,OP PACKAGE/PLACEMENT COSTS,Third Party Payments,Revenue
Walsall Council,http://opendatacommunities.org/id/metropolitan-district-council/walsall,WC88-200,31/01/2018,Childrens,AIM PROJECT,24/01/2018,410.00,30030-EXTERNAL TRAINING,SEXUALLY HARMFUL BEHAVIOUR,Employees,Revenue
Walsall Council,http://opendatacommunities.org/id/metropolitan-district-council/walsall,WC88-201,31/01/2018,Adult Social Care,REDACTED,05/01/2018,"1,882.00",76422-DIRECT PAYMENTS TO SOCIAL SERVICES CLIENTS,LD PACKAGE/PLACEMENT COSTS,Transfer Payments,Revenue
Walsall Council,http://opendatacommunities.org/id/metropolitan-district-council/walsall,WC88-202,31/01/2018,Adult Social Care,REDACTED,05/01/2018,"1,277.00",76422-DIRECT PAYMENTS TO SOCIAL SERVICES CLIENTS,OP PACKAGE/PLACEMENT COSTS,Transfer Payments,Revenue
Walsall Council,http://opendatacommunities.org/id/metropolitan-district-council/walsall,WC88-203,31/01/2018,Childrens,AJK TRAVEL,15/01/2018,"6,456.80",52000-WITH DRIVER-HIRE OF VEHICLES,HOME TO SCHOOL TRANSPORT,Transport,Revenue
Walsall Council,http://opendatacommunities.org/id/metropolitan-district-council/walsall,WC88-204,31/01/2018,Childrens,AJK TRAVEL,17/01/2018,"14,204.96",52000-WITH DRIVER-HIRE OF VEHICLES,HOME TO SCHOOL TRANSPORT,Transport,Revenue
Walsall Council,http://opendatacommunities.org/id/metropolitan-district-council/walsall,WC88-205,31/01/2018,Adult Social Care,REDACTED,05/01/2018,728.00,76422-DIRECT PAYMENTS TO SOCIAL SERVICES CLIENTS,OP PACKAGE/PLACEMENT COSTS,Transfer Payments,Revenue
Walsall Council,http://opendatacommunities.org/id/metropolitan-district-council/walsall,WC88-206,31/01/2018,Childrens,ALBRIGHTON CARE LTD,29/01/2018,"9,980.00",74036-EXTERNAL RESIDENTIAL CARE-OTH AGENCY PROVISION,INDEPENDENT RESIDENTIAL HOMES,Third Party Payments,Revenue
Walsall Council,http://opendatacommunities.org/id/metropolitan-district-council/walsall,WC88-207,31/01/2018,Childrens,ALBRIGHTON CARE LTD,29/01/2018,"17,000.00",74036-EXTERNAL RESIDENTIAL CARE-OTH AGENCY PROVISION,INDEPENDENT RESIDENTIAL HOMES,Third Party Payments,Revenue
Walsall Council,http://opendatacommunities.org/id/metropolitan-district-council/walsall,WC88-208,31/01/2018,Economy & Environment,ALDERBROOK HEALTHCARE LTD,25/01/2018,"1,217.90",63000-PROFESSIONAL FEES AND SERVICES,CORONERS SERVICE,Supplies & Services,Revenue
Walsall Council,http://opendatacommunities.org/id/metropolitan-district-council/walsall,WC88-209,31/01/2018,Economy & Environment,ALDERBROOK HEALTHCARE LTD,25/01/2018,"2,545.00",63000-PROFESSIONAL FEES AND SERVICES,CORONERS SERVICE,Supplies & Services,Revenue
Walsall Council,http://opendatacommunities.org/id/metropolitan-district-council/walsall,WC88-210,31/01/2018,Adult Social Care,ALDERGROVE MANOR LTD,23/01/2018,"1,839.68",73373-RESIDENTIAL & NURSING CARE PLACEMENTS,MENTAL HEALTH PACKAGE/PLACEMENT COSTS,Third Party Payments,Revenue
Walsall Council,http://opendatacommunities.org/id/metropolitan-district-council/walsall,WC88-211,31/01/2018,Adult Social Care,ALDERGROVE MANOR LTD,16/01/2018,"2,000.00",73373-RESIDENTIAL & NURSING CARE PLACEMENTS,OP PACKAGE/PLACEMENT COSTS,Third Party Payments,Revenue
Walsall Council,http://opendatacommunities.org/id/metropolitan-district-council/walsall,WC88-212,31/01/2018,Adult Social Care,ALDERGROVE MANOR LTD,16/01/2018,"2,000.00",73373-RESIDENTIAL & NURSING CARE PLACEMENTS,OP PACKAGE/PLACEMENT COSTS,Third Party Payments,Revenue
Walsall Council,http://opendatacommunities.org/id/metropolitan-district-council/walsall,WC88-213,31/01/2018,Adult Social Care,ALDERGROVE MANOR LTD,16/01/2018,"2,000.00",73373-RESIDENTIAL & NURSING CARE PLACEMENTS,OP PACKAGE/PLACEMENT COSTS,Third Party Payments,Revenue
Walsall Council,http://opendatacommunities.org/id/metropolitan-district-council/walsall,WC88-214,31/01/2018,Adult Social Care,ALDERGROVE MANOR LTD,23/01/2018,"2,000.00",73373-RESIDENTIAL & NURSING CARE PLACEMENTS,OP PACKAGE/PLACEMENT COSTS,Third Party Payments,Revenue
Walsall Council,http://opendatacommunities.org/id/metropolitan-district-council/walsall,WC88-215,31/01/2018,Childrens,ALDRIDGE & BARONS LIMITED,17/01/2018,"1,842.60",52000-WITH DRIVER-HIRE OF VEHICLES,HOME TO SCHOOL TRANSPORT,Transport,Revenue
Walsall Council,http://opendatacommunities.org/id/metropolitan-district-council/walsall,WC88-216,31/01/2018,Childrens,ALDRIDGE & BARONS LIMITED,01/01/2018,"21,245.00",52000-WITH DRIVER-HIRE OF VEHICLES,HOME TO SCHOOL TRANSPORT,Transport,Revenue
Walsall Council,http://opendatacommunities.org/id/metropolitan-district-council/walsall,WC88-217,31/01/2018,Childrens,ALDRIDGE & BARONS LIMITED,01/01/2018,"23,472.75",52000-WITH DRIVER-HIRE OF VEHICLES,HOME TO SCHOOL TRANSPORT,Transport,Revenue
Walsall Council,http://opendatacommunities.org/id/metropolitan-district-council/walsall,WC88-218,31/01/2018,Economy & Environment,ALDRIDGE SHED,22/01/2018,625.00,63253-PAYMENT TO CONTRACTOR,MENTAL HEALTH,Third Party Payments,Revenue
Walsall Council,http://opendatacommunities.org/id/metropolitan-district-council/walsall,WC88-219,31/01/2018,Adult Social Care,REDACTED,05/01/2018,"1,204.00",76422-DIRECT PAYMENTS TO SOCIAL SERVICES CLIENTS,PD PACKAGE/PLACEMENT COSTS,Transfer Payments,Revenue
Walsall Council,http://opendatacommunities.org/id/metropolitan-district-council/walsall,WC88-220,31/01/2018,Adult Social Care,ALEXANDRA HOUSE CARE SERVICES LTD T/A STONEBRIDGE NURSING HOME,10/01/2018,"7,117.44",73373-RESIDENTIAL & NURSING CARE PLACEMENTS,LD PACKAGE/PLACEMENT COSTS,Third Party Payments,Revenue
Walsall Council,http://opendatacommunities.org/id/metropolitan-district-council/walsall,WC88-221,31/01/2018,Adult Social Care,ALEXANDRA HOUSE CARE SERVICES LTD T/A STONEBRIDGE NURSING HOME,16/01/2018,"7,117.44",73373-RESIDENTIAL & NURSING CARE PLACEMENTS,LD PACKAGE/PLACEMENT COSTS,Third Party Payments,Revenue
Walsall Council,http://opendatacommunities.org/id/metropolitan-district-council/walsall,WC88-222,31/01/2018,Childrens,REDACTED,05/01/2018,582.66,76422-DIRECT PAYMENTS TO SOCIAL SERVICES CLIENTS,FAMILY SUPPORT - DIRECT PAYMENTS,Transfer Payments,Revenue
Walsall Council,http://opendatacommunities.org/id/metropolitan-district-council/walsall,WC88-223,31/01/2018,Adult Social Care,REDACTED,05/01/2018,"1,733.20",76422-DIRECT PAYMENTS TO SOCIAL SERVICES CLIENTS,OP PACKAGE/PLACEMENT COSTS,Transfer Payments,Revenue
Walsall Council,http://opendatacommunities.org/id/metropolitan-district-council/walsall,WC88-224,31/01/2018,Childrens,REDACTED,05/01/2018,288.00,76422-DIRECT PAYMENTS TO SOCIAL SERVICES CLIENTS,FAMILY SUPPORT - DIRECT PAYMENTS,Transfer Payments,Revenue
Walsall Council,http://opendatacommunities.org/id/metropolitan-district-council/walsall,WC88-225,31/01/2018,Adult Social Care,REDACTED,05/01/2018,898.00,76422-DIRECT PAYMENTS TO SOCIAL SERVICES CLIENTS,PD PACKAGE/PLACEMENT COSTS,Transfer Payments,Revenue
Walsall Council,http://opendatacommunities.org/id/metropolitan-district-council/walsall,WC88-226,31/01/2018,Adult Social Care,REDACTED,05/01/2018,612.00,76422-DIRECT PAYMENTS TO SOCIAL SERVICES CLIENTS,OP PACKAGE/PLACEMENT COSTS,Transfer Payments,Revenue
Walsall Council,http://opendatacommunities.org/id/metropolitan-district-council/walsall,WC88-227,31/01/2018,Adult Social Care,REDACTED,12/01/2018,"1,251.64",73374-SUPPORTED & OTHER ACCOMMODATION,LD PACKAGE/PLACEMENT COSTS,Third Party Payments,Revenue
Walsall Council,http://opendatacommunities.org/id/metropolitan-district-council/walsall,WC88-228,31/01/2018,Adult Social Care,REDACTED,15/01/2018,"1,251.64",73374-SUPPORTED & OTHER ACCOMMODATION,LD PACKAGE/PLACEMENT COSTS,Third Party Payments,Revenue
Walsall Council,http://opendatacommunities.org/id/metropolitan-district-council/walsall,WC88-229,31/01/2018,Childrens,ALLEYNE'S ACADEMY,16/01/2018,480.00,77300-ISB-FORMULA ALLOCATION,OUT OF BOROUGH SCHOOLS,Transfer Payments,Revenue
Walsall Council,http://opendatacommunities.org/id/metropolitan-district-council/walsall,WC88-230,31/01/2018,Capital Financing,ALLPAY LTD,12/01/2018,"7,213.93",82500-BANK CHARGES-CENTRAL EXPENSES,BANK CHARGES,Supplies & Services,Revenue
Walsall Council,http://opendatacommunities.org/id/metropolitan-district-council/walsall,WC88-231,31/01/2018,Capital Financing,ALLPAY LTD,12/01/2018,"7,387.18",82500-BANK CHARGES-CENTRAL EXPENSES,BANK CHARGES,Supplies & Services,Revenue
Walsall Council,http://opendatacommunities.org/id/metropolitan-district-council/walsall,WC88-232,31/01/2018,Resources and Transformation,ALLSORTS OFFICE SUPPLIES LTD,17/01/2018,"1,340.00",63800-COMPUTER EQUIPMENT AND SUPPLIES,RECHARGEABLE EQUIPMENT,Supplies & Services,Revenue
Walsall Council,http://opendatacommunities.org/id/metropolitan-district-council/walsall,WC88-233,31/01/2018,Adult Social Care,ALMA COURT,09/01/2018,"2,700.00",73374-SUPPORTED & OTHER ACCOMMODATION,OP PACKAGE/PLACEMENT COSTS,Third Party Payments,Revenue
Walsall Council,http://opendatacommunities.org/id/metropolitan-district-council/walsall,WC88-234,31/01/2018,Adult Social Care,ALMA COURT,09/01/2018,"2,790.00",73374-SUPPORTED & OTHER ACCOMMODATION,OP PACKAGE/PLACEMENT COSTS,Third Party Payments,Revenue
Walsall Council,http://opendatacommunities.org/id/metropolitan-district-council/walsall,WC88-235,31/01/2018,Adult Social Care,ALMA COURT,09/01/2018,"2,790.00",73374-SUPPORTED & OTHER ACCOMMODATION,OP PACKAGE/PLACEMENT COSTS,Third Party Payments,Revenue
Walsall Council,http://opendatacommunities.org/id/metropolitan-district-council/walsall,WC88-236,31/01/2018,Adult Social Care,ALMA COURT,12/01/2018,"2,790.00",73374-SUPPORTED & OTHER ACCOMMODATION,OP PACKAGE/PLACEMENT COSTS,Third Party Payments,Revenue
Walsall Council,http://opendatacommunities.org/id/metropolitan-district-council/walsall,WC88-237,31/01/2018,Adult Social Care,ALMA COURT,16/01/2018,"6,316.87",73373-RESIDENTIAL & NURSING CARE PLACEMENTS,MENTAL HEALTH PACKAGE/PLACEMENT COSTS,Third Party Payments,Revenue
Walsall Council,http://opendatacommunities.org/id/metropolitan-district-council/walsall,WC88-238,31/01/2018,Childrens,ALMOZENE NURSERY & CHILDRENS CENTRE,16/01/2018,534.48,66505-OTHER-GRANTS TO OTHER ORGS,EARLY YEARS - 2 YR OLDS,Third Party Payments,Revenue
Walsall Council,http://opendatacommunities.org/id/metropolitan-district-council/walsall,WC88-239,31/01/2018,Childrens,ALMOZENE NURSERY & CHILDRENS CENTRE,02/01/2018,"6,916.80",66505-OTHER-GRANTS TO OTHER ORGS,EARLY YEARS - 2 YR OLDS,Third Party Payments,Revenue
Walsall Council,http://opendatacommunities.org/id/metropolitan-district-council/walsall,WC88-240,31/01/2018,Childrens,ALMOZENE NURSERY & CHILDRENS CENTRE,02/01/2018,"8,448.00",66505-OTHER-GRANTS TO OTHER ORGS,EARLY YEARS - 3 YR OLDS,Third Party Payments,Revenue
Walsall Council,http://opendatacommunities.org/id/metropolitan-district-council/walsall,WC88-241,31/01/2018,Adult Social Care,ALPHA HEALTH CARE LTD,16/01/2018,492.86,73373-RESIDENTIAL & NURSING CARE PLACEMENTS,OP PACKAGE/PLACEMENT COSTS,Third Party Payments,Revenue
Walsall Council,http://opendatacommunities.org/id/metropolitan-district-council/walsall,WC88-242,31/01/2018,Adult Social Care,ALPHA HEALTH CARE LTD,16/01/2018,"1,656.00",73373-RESIDENTIAL & NURSING CARE PLACEMENTS,OP PACKAGE/PLACEMENT COSTS,Third Party Payments,Revenue
Walsall Council,http://opendatacommunities.org/id/metropolitan-district-council/walsall,WC88-243,31/01/2018,Adult Social Care,ALPHA HEALTH CARE LTD,16/01/2018,"1,656.00",73373-RESIDENTIAL & NURSING CARE PLACEMENTS,OP PACKAGE/PLACEMENT COSTS,Third Party Payments,Revenue
Walsall Council,http://opendatacommunities.org/id/metropolitan-district-council/walsall,WC88-244,31/01/2018,Adult Social Care,ALPHA HEALTH CARE LTD,16/01/2018,"1,656.00",73373-RESIDENTIAL & NURSING CARE PLACEMENTS,OP PACKAGE/PLACEMENT COSTS,Third Party Payments,Revenue
Walsall Council,http://opendatacommunities.org/id/metropolitan-district-council/walsall,WC88-245,31/01/2018,Adult Social Care,ALPHA HEALTH CARE LTD,16/01/2018,"1,840.00",73373-RESIDENTIAL & NURSING CARE PLACEMENTS,OP PACKAGE/PLACEMENT COSTS,Third Party Payments,Revenue
Walsall Council,http://opendatacommunities.org/id/metropolitan-district-council/walsall,WC88-246,31/01/2018,Adult Social Care,ALPHA HEALTH CARE LTD,16/01/2018,"2,000.00",73373-RESIDENTIAL & NURSING CARE PLACEMENTS,OP PACKAGE/PLACEMENT COSTS,Third Party Payments,Revenue
Walsall Council,http://opendatacommunities.org/id/metropolitan-district-council/walsall,WC88-247,31/01/2018,Adult Social Care,ALPHA HEALTH CARE LTD,16/01/2018,"2,200.00",73373-RESIDENTIAL & NURSING CARE PLACEMENTS,OP PACKAGE/PLACEMENT COSTS,Third Party Payments,Revenue
Walsall Council,http://opendatacommunities.org/id/metropolitan-district-council/walsall,WC88-248,31/01/2018,Adult Social Care,ALPHA HEALTH CARE LTD,16/01/2018,"2,200.00",73373-RESIDENTIAL & NURSING CARE PLACEMENTS,OP PACKAGE/PLACEMENT COSTS,Third Party Payments,Revenue
Walsall Council,http://opendatacommunities.org/id/metropolitan-district-council/walsall,WC88-249,31/01/2018,Adult Social Care,ALPHA HEALTH CARE LTD,16/01/2018,"2,200.00",73373-RESIDENTIAL & NURSING CARE PLACEMENTS,OP PACKAGE/PLACEMENT COSTS,Third Party Payments,Revenue
Walsall Council,http://opendatacommunities.org/id/metropolitan-district-council/walsall,WC88-250,31/01/2018,Adult Social Care,ALPHA HEALTH CARE LTD,16/01/2018,"2,200.00",73373-RESIDENTIAL & NURSING CARE PLACEMENTS,OP PACKAGE/PLACEMENT COSTS,Third Party Payments,Revenue
Walsall Council,http://opendatacommunities.org/id/metropolitan-district-council/walsall,WC88-251,31/01/2018,Adult Social Care,ALPHA HEALTH CARE LTD,16/01/2018,"2,200.00",73373-RESIDENTIAL & NURSING CARE PLACEMENTS,MENTAL HEALTH PACKAGE/PLACEMENT COSTS,Third Party Payments,Revenue
Walsall Council,http://opendatacommunities.org/id/metropolitan-district-council/walsall,WC88-252,31/01/2018,Adult Social Care,ALPHA HEALTH CARE LTD,16/01/2018,"2,300.00",73373-RESIDENTIAL & NURSING CARE PLACEMENTS,OP PACKAGE/PLACEMENT COSTS,Third Party Payments,Revenue
Walsall Council,http://opendatacommunities.org/id/metropolitan-district-council/walsall,WC88-253,31/01/2018,Adult Social Care,ALPHA HEALTH CARE LTD,16/01/2018,"2,326.00",73373-RESIDENTIAL & NURSING CARE PLACEMENTS,MENTAL HEALTH PACKAGE/PLACEMENT COSTS,Third Party Payments,Revenue
Walsall Council,http://opendatacommunities.org/id/metropolitan-district-council/walsall,WC88-254,31/01/2018,Adult Social Care,ALPHA HEALTH CARE LTD,16/01/2018,"2,379.80",73373-RESIDENTIAL & NURSING CARE PLACEMENTS,OP PACKAGE/PLACEMENT COSTS,Third Party Payments,Revenue
Walsall Council,http://opendatacommunities.org/id/metropolitan-district-council/walsall,WC88-255,31/01/2018,Adult Social Care,ALPHA HEALTH CARE LTD,16/01/2018,"2,379.80",73373-RESIDENTIAL & NURSING CARE PLACEMENTS,OP PACKAGE/PLACEMENT COSTS,Third Party Payments,Revenue
Walsall Council,http://opendatacommunities.org/id/metropolitan-district-council/walsall,WC88-256,31/01/2018,Adult Social Care,ALPHA HEALTH CARE LTD,16/01/2018,"2,379.80",73373-RESIDENTIAL & NURSING CARE PLACEMENTS,OP PACKAGE/PLACEMENT COSTS,Third Party Payments,Revenue
Walsall Council,http://opendatacommunities.org/id/metropolitan-district-council/walsall,WC88-257,31/01/2018,Adult Social Care,ALPHA HEALTH CARE LTD,16/01/2018,"2,445.20",73373-RESIDENTIAL & NURSING CARE PLACEMENTS,OP PACKAGE/PLACEMENT COSTS,Third Party Payments,Revenue
Walsall Council,http://opendatacommunities.org/id/metropolitan-district-council/walsall,WC88-258,31/01/2018,Adult Social Care,ALPHA HEALTH CARE LTD,16/01/2018,"2,645.20",73373-RESIDENTIAL & NURSING CARE PLACEMENTS,OP PACKAGE/PLACEMENT COSTS,Third Party Payments,Revenue
Walsall Council,http://opendatacommunities.org/id/metropolitan-district-council/walsall,WC88-259,31/01/2018,Adult Social Care,ALPHA HEALTH CARE LTD,16/01/2018,"2,725.20",73373-RESIDENTIAL & NURSING CARE PLACEMENTS,OP PACKAGE/PLACEMENT COSTS,Third Party Payments,Revenue
Walsall Council,http://opendatacommunities.org/id/metropolitan-district-council/walsall,WC88-260,31/01/2018,Adult Social Care,ALPHA HEALTH CARE LTD,16/01/2018,"3,299.29",73373-RESIDENTIAL & NURSING CARE PLACEMENTS,MENTAL HEALTH PACKAGE/PLACEMENT COSTS,Third Party Payments,Revenue
Walsall Council,http://opendatacommunities.org/id/metropolitan-district-council/walsall,WC88-261,31/01/2018,Adult Social Care,ALPHA HEALTH CARE LTD,16/01/2018,"5,338.84",73373-RESIDENTIAL & NURSING CARE PLACEMENTS,MENTAL HEALTH PACKAGE/PLACEMENT COSTS,Third Party Payments,Revenue
Walsall Council,http://opendatacommunities.org/id/metropolitan-district-council/walsall,WC88-262,31/01/2018,Adult Social Care,ALPHA HEALTH CARE LTD,16/01/2018,"10,284.14",73373-RESIDENTIAL & NURSING CARE PLACEMENTS,OP PACKAGE/PLACEMENT COSTS,Third Party Payments,Revenue
Walsall Council,http://opendatacommunities.org/id/metropolitan-district-council/walsall,WC88-263,31/01/2018,Childrens,AMAH NURSERIES LIMITED T/A BANANA MOON WALSALL,02/01/2018,"1,824.00",66505-OTHER-GRANTS TO OTHER ORGS,EARLY YEARS - 3 YR OLDS,Third Party Payments,Revenue
Walsall Council,http://opendatacommunities.org/id/metropolitan-district-council/walsall,WC88-264,31/01/2018,Childrens,AMAH NURSERIES LIMITED T/A BANANA MOON WALSALL,02/01/2018,"5,533.60",66505-OTHER-GRANTS TO OTHER ORGS,EARLY YEARS - 2 YR OLDS,Third Party Payments,Revenue
Walsall Council,http://opendatacommunities.org/id/metropolitan-district-council/walsall,WC88-265,31/01/2018,Childrens,AMAH NURSERIES LIMITED T/A BANANA MOON WALSALL,16/01/2018,"8,448.00",66505-OTHER-GRANTS TO OTHER ORGS,EARLY YEARS - 3 YR OLDS,Third Party Payments,Revenue
Walsall Council,http://opendatacommunities.org/id/metropolitan-district-council/walsall,WC88-266,31/01/2018,Childrens,REDACTED,15/01/2018,808.04,74009-ADOPTION ALLOWANCE,ADOPTION ALLOWANCES,Transfer Payments,Revenue
Walsall Council,http://opendatacommunities.org/id/metropolitan-district-council/walsall,WC88-267,31/01/2018,Childrens,REDACTED,29/01/2018,9.24,60006-NEW-FURNITURE & EQUIPMENT,INTERNAL FOSTER CARE PROVISION,Supplies & Services,Revenue
Walsall Council,http://opendatacommunities.org/id/metropolitan-district-council/walsall,WC88-268,31/01/2018,Childrens,REDACTED,29/01/2018,530.96,74508-INTERNAL FOSTER CARERS-CARER FEES,INTERNAL FOSTER CARE PROVISION,Transfer Payments,Revenue
Walsall Council,http://opendatacommunities.org/id/metropolitan-district-council/walsall,WC88-269,31/01/2018,Childrens,REDACTED,29/01/2018,650.92,74501-MAINTENANCE ALLOWANCE-FOSTER CARERS,INTERNAL FOSTER CARE PROVISION,Transfer Payments,Revenue
Walsall Council,http://opendatacommunities.org/id/metropolitan-district-council/walsall,WC88-270,31/01/2018,Adult Social Care,REDACTED,05/01/2018,880.00,76422-DIRECT PAYMENTS TO SOCIAL SERVICES CLIENTS,LD PACKAGE/PLACEMENT COSTS,Transfer Payments,Revenue
Walsall Council,http://opendatacommunities.org/id/metropolitan-district-council/walsall,WC88-271,31/01/2018,Economy & Environment,AMEY LG LIMITED,10/01/2018,398.34,60500-GENERAL MATERIALS,COMMUNITY PROTECTION,Supplies & Services,Revenue
Walsall Council,http://opendatacommunities.org/id/metropolitan-district-council/walsall,WC88-272,31/01/2018,Economy & Environment,AMEY LG LIMITED,10/01/2018,404.51,73025-PROFESSIONAL SERVICES-PRIV CONTRACTOR & OTHER AGENCIES,SECTION 38 OF HIGHWAYS ACT - SUPERVISION,Third Party Payments,Revenue
Walsall Council,http://opendatacommunities.org/id/metropolitan-district-council/walsall,WC88-273,31/01/2018,Economy & Environment,AMEY LG LIMITED,09/01/2018,519.76,01006-SITE WORKS MAIN CONTRACTORS,CFR 1198 WEST BROMWICH ROAD (GREENSIDE WAY TO WALSTEAD ROAD),Capital,Capital
Walsall Council,http://opendatacommunities.org/id/metropolitan-district-council/walsall,WC88-274,31/01/2018,Economy & Environment,AMEY LG LIMITED,29/01/2018,569.25,73025-PROFESSIONAL SERVICES-PRIV CONTRACTOR & OTHER AGENCIES,TRAFFIC MANAGEMENT,Third Party Payments,Revenue
Walsall Council,http://opendatacommunities.org/id/metropolitan-district-council/walsall,WC88-275,31/01/2018,Economy & Environment,AMEY LG LIMITED,01/01/2018,"1,287.14",73025-PROFESSIONAL SERVICES-PRIV CONTRACTOR & OTHER AGENCIES,ASSET MANAGEMENT,Third Party Payments,Revenue
Walsall Council,http://opendatacommunities.org/id/metropolitan-district-council/walsall,WC88-276,31/01/2018,Economy & Environment,AMEY LG LIMITED,23/01/2018,"6,731.57",01006-SITE WORKS MAIN CONTRACTORS,CFR 1198 SAFER ROUTES TO SCHOOL PARK HALL INF & JNR,Capital,Capital
Walsall Council,http://opendatacommunities.org/id/metropolitan-district-council/walsall,WC88-277,31/01/2018,Economy & Environment,AMEY LG LIMITED,23/01/2018,"7,236.00",01006-SITE WORKS MAIN CONTRACTORS,CFR 1198 MEASURES TO ENCOURAGE WALKING UPGRADE OF ZEBRA CROSSINGS,Capital,Capital
Walsall Council,http://opendatacommunities.org/id/metropolitan-district-council/walsall,WC88-278,31/01/2018,Economy & Environment,AMEY LG LIMITED,23/01/2018,"8,866.05",01006-SITE WORKS MAIN CONTRACTORS,CFR 1198 MEASURES TO ENCOURAGE WALKING UPGRADE OF ZEBRA CROSSINGS,Capital,Capital
Walsall Council,http://opendatacommunities.org/id/metropolitan-district-council/walsall,WC88-279,31/01/2018,Economy & Environment,AMEY LG LIMITED,31/01/2018,"12,318.14",73025-PROFESSIONAL SERVICES-PRIV CONTRACTOR & OTHER AGENCIES,TRAFFIC MANAGEMENT,Third Party Payments,Revenue
Walsall Council,http://opendatacommunities.org/id/metropolitan-district-council/walsall,WC88-280,31/01/2018,Economy & Environment,AMEY LG LIMITED,01/01/2018,"12,655.93",73025-PROFESSIONAL SERVICES-PRIV CONTRACTOR & OTHER AGENCIES,TRAFFIC MANAGEMENT,Third Party Payments,Revenue
Walsall Council,http://opendatacommunities.org/id/metropolitan-district-council/walsall,WC88-281,31/01/2018,Childrens,AMG NURSING CARE SERVICES,01/01/2018,"2,274.48",63000-PROFESSIONAL FEES AND SERVICES,DIRECTLY COMMISSIONED NURSING SERVICES,Supplies & Services,Revenue
Walsall Council,http://opendatacommunities.org/id/metropolitan-district-council/walsall,WC88-282,31/01/2018,Adult Social Care,AMG NURSING CARE SERVICES,05/01/2018,"3,627.00",73374-SUPPORTED & OTHER ACCOMMODATION,PD PACKAGE/PLACEMENT COSTS,Third Party Payments,Revenue
Walsall Council,http://opendatacommunities.org/id/metropolitan-district-council/walsall,WC88-283,31/01/2018,Adult Social Care,AMG NURSING CARE SERVICES,05/01/2018,"3,640.00",73374-SUPPORTED & OTHER ACCOMMODATION,PD PACKAGE/PLACEMENT COSTS,Third Party Payments,Revenue
Walsall Council,http://opendatacommunities.org/id/metropolitan-district-council/walsall,WC88-284,31/01/2018,Adult Social Care,AMG NURSING CARE SERVICES,22/01/2018,"3,640.00",73374-SUPPORTED & OTHER ACCOMMODATION,PD PACKAGE/PLACEMENT COSTS,Third Party Payments,Revenue
Walsall Council,http://opendatacommunities.org/id/metropolitan-district-council/walsall,WC88-285,31/01/2018,Adult Social Care,AMG NURSING CARE SERVICES,05/01/2018,"10,711.68",73374-SUPPORTED & OTHER ACCOMMODATION,OP PACKAGE/PLACEMENT COSTS,Third Party Payments,Revenue
Walsall Council,http://opendatacommunities.org/id/metropolitan-district-council/walsall,WC88-286,31/01/2018,Childrens,REDACTED,15/01/2018,9.24,60006-NEW-FURNITURE & EQUIPMENT,FAMILY & FRIENDS FOSTER CARE PROVISION,Supplies & Services,Revenue
Walsall Council,http://opendatacommunities.org/id/metropolitan-district-council/walsall,WC88-287,31/01/2018,Childrens,REDACTED,15/01/2018,345.24,74508-INTERNAL FOSTER CARERS-CARER FEES,FAMILY & FRIENDS FOSTER CARE PROVISION,Transfer Payments,Revenue
Walsall Council,http://opendatacommunities.org/id/metropolitan-district-council/walsall,WC88-288,31/01/2018,Childrens,REDACTED,15/01/2018,650.92,74501-MAINTENANCE ALLOWANCE-FOSTER CARERS,FAMILY & FRIENDS FOSTER CARE PROVISION,Transfer Payments,Revenue
Walsall Council,http://opendatacommunities.org/id/metropolitan-district-council/walsall,WC88-289,31/01/2018,Childrens,REDACTED,15/01/2018,425.08,74510-RESIDENTS ORDERS,ADOPTION ALLOWANCES,Third Party Payments,Revenue
Walsall Council,http://opendatacommunities.org/id/metropolitan-district-council/walsall,WC88-290,31/01/2018,Adult Social Care,REDACTED,05/01/2018,"1,140.00",76422-DIRECT PAYMENTS TO SOCIAL SERVICES CLIENTS,OP PACKAGE/PLACEMENT COSTS,Transfer Payments,Revenue
Walsall Council,http://opendatacommunities.org/id/metropolitan-district-council/walsall,WC88-291,31/01/2018,Adult Social Care,ANCHOR,30/01/2018,"-1,250.72",73373-RESIDENTIAL & NURSING CARE PLACEMENTS,MENTAL HEALTH PACKAGE/PLACEMENT COSTS,Third Party Payments,Revenue
Walsall Council,http://opendatacommunities.org/id/metropolitan-district-council/walsall,WC88-292,31/01/2018,Adult Social Care,ANCHOR,30/01/2018,-722.86,73373-RESIDENTIAL & NURSING CARE PLACEMENTS,OP PACKAGE/PLACEMENT COSTS,Third Party Payments,Revenue
Walsall Council,http://opendatacommunities.org/id/metropolitan-district-council/walsall,WC88-293,31/01/2018,Adult Social Care,ANCHOR,10/01/2018,0.01,73373-RESIDENTIAL & NURSING CARE PLACEMENTS,OP PACKAGE/PLACEMENT COSTS,Third Party Payments,Revenue
Walsall Council,http://opendatacommunities.org/id/metropolitan-district-council/walsall,WC88-294,31/01/2018,Adult Social Care,ANCHOR,23/01/2018,0.02,73373-RESIDENTIAL & NURSING CARE PLACEMENTS,OP PACKAGE/PLACEMENT COSTS,Third Party Payments,Revenue
Walsall Council,http://opendatacommunities.org/id/metropolitan-district-council/walsall,WC88-295,31/01/2018,Adult Social Care,ANCHOR,30/01/2018,42.86,73373-RESIDENTIAL & NURSING CARE PLACEMENTS,OP PACKAGE/PLACEMENT COSTS,Third Party Payments,Revenue
Walsall Council,http://opendatacommunities.org/id/metropolitan-district-council/walsall,WC88-296,31/01/2018,Adult Social Care,ANCHOR,30/01/2018,254.57,73373-RESIDENTIAL & NURSING CARE PLACEMENTS,OP PACKAGE/PLACEMENT COSTS,Third Party Payments,Revenue
Walsall Council,http://opendatacommunities.org/id/metropolitan-district-council/walsall,WC88-297,31/01/2018,Adult Social Care,ANCHOR,30/01/2018,260.00,73373-RESIDENTIAL & NURSING CARE PLACEMENTS,OP PACKAGE/PLACEMENT COSTS,Third Party Payments,Revenue
Walsall Council,http://opendatacommunities.org/id/metropolitan-district-council/walsall,WC88-298,31/01/2018,Adult Social Care,ANCHOR,23/01/2018,290.57,73373-RESIDENTIAL & NURSING CARE PLACEMENTS,OP PACKAGE/PLACEMENT COSTS,Third Party Payments,Revenue
Walsall Council,http://opendatacommunities.org/id/metropolitan-district-council/walsall,WC88-299,31/01/2018,Adult Social Care,ANCHOR,23/01/2018,290.57,73373-RESIDENTIAL & NURSING CARE PLACEMENTS,OP PACKAGE/PLACEMENT COSTS,Third Party Payments,Revenue
Walsall Council,http://opendatacommunities.org/id/metropolitan-district-council/walsall,WC88-300,31/01/2018,Adult Social Care,ANCHOR,23/01/2018,302.82,73373-RESIDENTIAL & NURSING CARE PLACEMENTS,OP PACKAGE/PLACEMENT COSTS,Third Party Payments,Revenue
Walsall Council,http://opendatacommunities.org/id/metropolitan-district-council/walsall,WC88-301,31/01/2018,Adult Social Care,ANCHOR,10/01/2018,305.73,73373-RESIDENTIAL & NURSING CARE PLACEMENTS,OP PACKAGE/PLACEMENT COSTS,Third Party Payments,Revenue
Walsall Council,http://opendatacommunities.org/id/metropolitan-district-council/walsall,WC88-302,31/01/2018,Adult Social Care,ANCHOR,30/01/2018,322.86,73373-RESIDENTIAL & NURSING CARE PLACEMENTS,OP PACKAGE/PLACEMENT COSTS,Third Party Payments,Revenue
Walsall Council,http://opendatacommunities.org/id/metropolitan-district-council/walsall,WC88-303,31/01/2018,Adult Social Care,ANCHOR,30/01/2018,322.86,73373-RESIDENTIAL & NURSING CARE PLACEMENTS,OP PACKAGE/PLACEMENT COSTS,Third Party Payments,Revenue
Walsall Council,http://opendatacommunities.org/id/metropolitan-district-council/walsall,WC88-304,31/01/2018,Adult Social Care,ANCHOR,30/01/2018,322.86,73373-RESIDENTIAL & NURSING CARE PLACEMENTS,OP PACKAGE/PLACEMENT COSTS,Third Party Payments,Revenue
Walsall Council,http://opendatacommunities.org/id/metropolitan-district-council/walsall,WC88-305,31/01/2018,Adult Social Care,ANCHOR,30/01/2018,322.86,73373-RESIDENTIAL & NURSING CARE PLACEMENTS,OP PACKAGE/PLACEMENT COSTS,Third Party Payments,Revenue
Walsall Council,http://opendatacommunities.org/id/metropolitan-district-council/walsall,WC88-306,31/01/2018,Adult Social Care,ANCHOR,30/01/2018,322.86,73373-RESIDENTIAL & NURSING CARE PLACEMENTS,OP PACKAGE/PLACEMENT COSTS,Third Party Payments,Revenue
Walsall Council,http://opendatacommunities.org/id/metropolitan-district-council/walsall,WC88-307,31/01/2018,Adult Social Care,ANCHOR,30/01/2018,356.43,73373-RESIDENTIAL & NURSING CARE PLACEMENTS,OP PACKAGE/PLACEMENT COSTS,Third Party Payments,Revenue
Walsall Council,http://opendatacommunities.org/id/metropolitan-district-council/walsall,WC88-308,31/01/2018,Adult Social Care,ANCHOR,10/01/2018,382.85,73373-RESIDENTIAL & NURSING CARE PLACEMENTS,OP PACKAGE/PLACEMENT COSTS,Third Party Payments,Revenue
Walsall Council,http://opendatacommunities.org/id/metropolitan-district-council/walsall,WC88-309,31/01/2018,Adult Social Care,ANCHOR,30/01/2018,525.71,73373-RESIDENTIAL & NURSING CARE PLACEMENTS,OP PACKAGE/PLACEMENT COSTS,Third Party Payments,Revenue
Walsall Council,http://opendatacommunities.org/id/metropolitan-district-council/walsall,WC88-310,31/01/2018,Adult Social Care,ANCHOR,16/01/2018,778.57,73373-RESIDENTIAL & NURSING CARE PLACEMENTS,OP PACKAGE/PLACEMENT COSTS,Third Party Payments,Revenue
Walsall Council,http://opendatacommunities.org/id/metropolitan-district-council/walsall,WC88-311,31/01/2018,Adult Social Care,ANCHOR,30/01/2018,808.57,73373-RESIDENTIAL & NURSING CARE PLACEMENTS,OP PACKAGE/PLACEMENT COSTS,Third Party Payments,Revenue
Walsall Council,http://opendatacommunities.org/id/metropolitan-district-council/walsall,WC88-312,31/01/2018,Adult Social Care,ANCHOR,30/01/2018,985.72,73373-RESIDENTIAL & NURSING CARE PLACEMENTS,OP PACKAGE/PLACEMENT COSTS,Third Party Payments,Revenue
Walsall Council,http://opendatacommunities.org/id/metropolitan-district-council/walsall,WC88-313,31/01/2018,Adult Social Care,ANCHOR,30/01/2018,"1,117.14",73373-RESIDENTIAL & NURSING CARE PLACEMENTS,OP PACKAGE/PLACEMENT COSTS,Third Party Payments,Revenue
Walsall Council,http://opendatacommunities.org/id/metropolitan-district-council/walsall,WC88-314,31/01/2018,Adult Social Care,ANCHOR,16/01/2018,"1,401.43",73373-RESIDENTIAL & NURSING CARE PLACEMENTS,OP PACKAGE/PLACEMENT COSTS,Third Party Payments,Revenue
Walsall Council,http://opendatacommunities.org/id/metropolitan-district-council/walsall,WC88-315,31/01/2018,Adult Social Care,ANCHOR,30/01/2018,"1,479.29",73373-RESIDENTIAL & NURSING CARE PLACEMENTS,MENTAL HEALTH PACKAGE/PLACEMENT COSTS,Third Party Payments,Revenue
Walsall Council,http://opendatacommunities.org/id/metropolitan-district-council/walsall,WC88-316,31/01/2018,Adult Social Care,ANCHOR,16/01/2018,"1,655.84",73373-RESIDENTIAL & NURSING CARE PLACEMENTS,OP PACKAGE/PLACEMENT COSTS,Third Party Payments,Revenue
Walsall Council,http://opendatacommunities.org/id/metropolitan-district-council/walsall,WC88-317,31/01/2018,Adult Social Care,ANCHOR,23/01/2018,"1,656.00",73373-RESIDENTIAL & NURSING CARE PLACEMENTS,OP PACKAGE/PLACEMENT COSTS,Third Party Payments,Revenue
Walsall Council,http://opendatacommunities.org/id/metropolitan-district-council/walsall,WC88-318,31/01/2018,Adult Social Care,ANCHOR,23/01/2018,"1,656.00",73373-RESIDENTIAL & NURSING CARE PLACEMENTS,OP PACKAGE/PLACEMENT COSTS,Third Party Payments,Revenue
Walsall Council,http://opendatacommunities.org/id/metropolitan-district-council/walsall,WC88-319,31/01/2018,Adult Social Care,ANCHOR,23/01/2018,"1,656.00",73373-RESIDENTIAL & NURSING CARE PLACEMENTS,OP PACKAGE/PLACEMENT COSTS,Third Party Payments,Revenue
Walsall Council,http://opendatacommunities.org/id/metropolitan-district-council/walsall,WC88-320,31/01/2018,Adult Social Care,ANCHOR,23/01/2018,"1,656.00",73373-RESIDENTIAL & NURSING CARE PLACEMENTS,OP PACKAGE/PLACEMENT COSTS,Third Party Payments,Revenue
Walsall Council,http://opendatacommunities.org/id/metropolitan-district-council/walsall,WC88-321,31/01/2018,Adult Social Care,ANCHOR,30/01/2018,"1,656.00",73373-RESIDENTIAL & NURSING CARE PLACEMENTS,OP PACKAGE/PLACEMENT COSTS,Third Party Payments,Revenue
Walsall Council,http://opendatacommunities.org/id/metropolitan-district-council/walsall,WC88-322,31/01/2018,Adult Social Care,ANCHOR,30/01/2018,"1,671.43",73373-RESIDENTIAL & NURSING CARE PLACEMENTS,OP PACKAGE/PLACEMENT COSTS,Third Party Payments,Revenue
Walsall Council,http://opendatacommunities.org/id/metropolitan-district-council/walsall,WC88-323,31/01/2018,Adult Social Care,ANCHOR,10/01/2018,"1,800.00",73373-RESIDENTIAL & NURSING CARE PLACEMENTS,OP PACKAGE/PLACEMENT COSTS,Third Party Payments,Revenue
Walsall Council,http://opendatacommunities.org/id/metropolitan-district-council/walsall,WC88-324,31/01/2018,Adult Social Care,ANCHOR,10/01/2018,"1,800.00",73373-RESIDENTIAL & NURSING CARE PLACEMENTS,OP PACKAGE/PLACEMENT COSTS,Third Party Payments,Revenue
Walsall Council,http://opendatacommunities.org/id/metropolitan-district-council/walsall,WC88-325,31/01/2018,Adult Social Care,ANCHOR,16/01/2018,"1,800.00",73373-RESIDENTIAL & NURSING CARE PLACEMENTS,OP PACKAGE/PLACEMENT COSTS,Third Party Payments,Revenue
Walsall Council,http://opendatacommunities.org/id/metropolitan-district-council/walsall,WC88-326,31/01/2018,Adult Social Care,ANCHOR,16/01/2018,"1,800.00",73373-RESIDENTIAL & NURSING CARE PLACEMENTS,OP PACKAGE/PLACEMENT COSTS,Third Party Payments,Revenue
Walsall Council,http://opendatacommunities.org/id/metropolitan-district-council/walsall,WC88-327,31/01/2018,Adult Social Care,ANCHOR,16/01/2018,"1,800.00",73373-RESIDENTIAL & NURSING CARE PLACEMENTS,OP PACKAGE/PLACEMENT COSTS,Third Party Payments,Revenue
Walsall Council,http://opendatacommunities.org/id/metropolitan-district-council/walsall,WC88-328,31/01/2018,Adult Social Care,ANCHOR,16/01/2018,"1,800.00",73373-RESIDENTIAL & NURSING CARE PLACEMENTS,OP PACKAGE/PLACEMENT COSTS,Third Party Payments,Revenue
Walsall Council,http://opendatacommunities.org/id/metropolitan-district-council/walsall,WC88-329,31/01/2018,Adult Social Care,ANCHOR,16/01/2018,"1,800.00",73373-RESIDENTIAL & NURSING CARE PLACEMENTS,OP PACKAGE/PLACEMENT COSTS,Third Party Payments,Revenue
Walsall Council,http://opendatacommunities.org/id/metropolitan-district-council/walsall,WC88-330,31/01/2018,Adult Social Care,ANCHOR,16/01/2018,"1,800.00",73373-RESIDENTIAL & NURSING CARE PLACEMENTS,OP PACKAGE/PLACEMENT COSTS,Third Party Payments,Revenue
Walsall Council,http://opendatacommunities.org/id/metropolitan-district-council/walsall,WC88-331,31/01/2018,Adult Social Care,ANCHOR,16/01/2018,"1,800.00",73373-RESIDENTIAL & NURSING CARE PLACEMENTS,OP PACKAGE/PLACEMENT COSTS,Third Party Payments,Revenue
Walsall Council,http://opendatacommunities.org/id/metropolitan-district-council/walsall,WC88-332,31/01/2018,Adult Social Care,ANCHOR,23/01/2018,"1,800.00",73373-RESIDENTIAL & NURSING CARE PLACEMENTS,OP PACKAGE/PLACEMENT COSTS,Third Party Payments,Revenue
Walsall Council,http://opendatacommunities.org/id/metropolitan-district-council/walsall,WC88-333,31/01/2018,Adult Social Care,ANCHOR,23/01/2018,"1,800.00",73373-RESIDENTIAL & NURSING CARE PLACEMENTS,OP PACKAGE/PLACEMENT COSTS,Third Party Payments,Revenue
Walsall Council,http://opendatacommunities.org/id/metropolitan-district-council/walsall,WC88-334,31/01/2018,Adult Social Care,ANCHOR,23/01/2018,"1,800.00",73373-RESIDENTIAL & NURSING CARE PLACEMENTS,OP PACKAGE/PLACEMENT COSTS,Third Party Payments,Revenue
Walsall Council,http://opendatacommunities.org/id/metropolitan-district-council/walsall,WC88-335,31/01/2018,Adult Social Care,ANCHOR,30/01/2018,"1,816.00",73373-RESIDENTIAL & NURSING CARE PLACEMENTS,OP PACKAGE/PLACEMENT COSTS,Third Party Payments,Revenue
Walsall Council,http://opendatacommunities.org/id/metropolitan-district-council/walsall,WC88-336,31/01/2018,Adult Social Care,ANCHOR,10/01/2018,"1,840.00",73373-RESIDENTIAL & NURSING CARE PLACEMENTS,OP PACKAGE/PLACEMENT COSTS,Third Party Payments,Revenue
Walsall Council,http://opendatacommunities.org/id/metropolitan-district-council/walsall,WC88-337,31/01/2018,Adult Social Care,ANCHOR,10/01/2018,"1,840.00",73373-RESIDENTIAL & NURSING CARE PLACEMENTS,OP PACKAGE/PLACEMENT COSTS,Third Party Payments,Revenue
Walsall Council,http://opendatacommunities.org/id/metropolitan-district-council/walsall,WC88-338,31/01/2018,Adult Social Care,ANCHOR,10/01/2018,"1,840.00",73373-RESIDENTIAL & NURSING CARE PLACEMENTS,OP PACKAGE/PLACEMENT COSTS,Third Party Payments,Revenue
Walsall Council,http://opendatacommunities.org/id/metropolitan-district-council/walsall,WC88-339,31/01/2018,Adult Social Care,ANCHOR,16/01/2018,"1,840.00",73373-RESIDENTIAL & NURSING CARE PLACEMENTS,MENTAL HEALTH PACKAGE/PLACEMENT COSTS,Third Party Payments,Revenue
Walsall Council,http://opendatacommunities.org/id/metropolitan-district-council/walsall,WC88-340,31/01/2018,Adult Social Care,ANCHOR,16/01/2018,"1,840.00",73373-RESIDENTIAL & NURSING CARE PLACEMENTS,OP PACKAGE/PLACEMENT COSTS,Third Party Payments,Revenue
Walsall Council,http://opendatacommunities.org/id/metropolitan-district-council/walsall,WC88-341,31/01/2018,Adult Social Care,ANCHOR,16/01/2018,"1,840.00",73373-RESIDENTIAL & NURSING CARE PLACEMENTS,OP PACKAGE/PLACEMENT COSTS,Third Party Payments,Revenue
Walsall Council,http://opendatacommunities.org/id/metropolitan-district-council/walsall,WC88-342,31/01/2018,Adult Social Care,ANCHOR,16/01/2018,"1,840.00",73373-RESIDENTIAL & NURSING CARE PLACEMENTS,OP PACKAGE/PLACEMENT COSTS,Third Party Payments,Revenue
Walsall Council,http://opendatacommunities.org/id/metropolitan-district-council/walsall,WC88-343,31/01/2018,Adult Social Care,ANCHOR,16/01/2018,"1,840.00",73373-RESIDENTIAL & NURSING CARE PLACEMENTS,OP PACKAGE/PLACEMENT COSTS,Third Party Payments,Revenue
Walsall Council,http://opendatacommunities.org/id/metropolitan-district-council/walsall,WC88-344,31/01/2018,Adult Social Care,ANCHOR,16/01/2018,"1,840.00",73373-RESIDENTIAL & NURSING CARE PLACEMENTS,OP PACKAGE/PLACEMENT COSTS,Third Party Payments,Revenue
Walsall Council,http://opendatacommunities.org/id/metropolitan-district-council/walsall,WC88-345,31/01/2018,Adult Social Care,ANCHOR,16/01/2018,"1,840.00",73373-RESIDENTIAL & NURSING CARE PLACEMENTS,OP PACKAGE/PLACEMENT COSTS,Third Party Payments,Revenue
Walsall Council,http://opendatacommunities.org/id/metropolitan-district-council/walsall,WC88-346,31/01/2018,Adult Social Care,ANCHOR,16/01/2018,"1,840.00",73373-RESIDENTIAL & NURSING CARE PLACEMENTS,OP PACKAGE/PLACEMENT COSTS,Third Party Payments,Revenue
Walsall Council,http://opendatacommunities.org/id/metropolitan-district-council/walsall,WC88-347,31/01/2018,Adult Social Care,ANCHOR,16/01/2018,"1,840.00",73373-RESIDENTIAL & NURSING CARE PLACEMENTS,OP PACKAGE/PLACEMENT COSTS,Third Party Payments,Revenue
Walsall Council,http://opendatacommunities.org/id/metropolitan-district-council/walsall,WC88-348,31/01/2018,Adult Social Care,ANCHOR,16/01/2018,"1,840.00",73373-RESIDENTIAL & NURSING CARE PLACEMENTS,OP PACKAGE/PLACEMENT COSTS,Third Party Payments,Revenue
Walsall Council,http://opendatacommunities.org/id/metropolitan-district-council/walsall,WC88-349,31/01/2018,Adult Social Care,ANCHOR,16/01/2018,"1,840.00",73373-RESIDENTIAL & NURSING CARE PLACEMENTS,OP PACKAGE/PLACEMENT COSTS,Third Party Payments,Revenue
Walsall Council,http://opendatacommunities.org/id/metropolitan-district-council/walsall,WC88-350,31/01/2018,Adult Social Care,ANCHOR,16/01/2018,"1,840.00",73373-RESIDENTIAL & NURSING CARE PLACEMENTS,OP PACKAGE/PLACEMENT COSTS,Third Party Payments,Revenue
Walsall Council,http://opendatacommunities.org/id/metropolitan-district-council/walsall,WC88-351,31/01/2018,Adult Social Care,ANCHOR,30/01/2018,"1,840.00",73373-RESIDENTIAL & NURSING CARE PLACEMENTS,OP PACKAGE/PLACEMENT COSTS,Third Party Payments,Revenue
Walsall Council,http://opendatacommunities.org/id/metropolitan-district-council/walsall,WC88-352,31/01/2018,Adult Social Care,ANCHOR,30/01/2018,"1,840.00",73373-RESIDENTIAL & NURSING CARE PLACEMENTS,OP PACKAGE/PLACEMENT COSTS,Third Party Payments,Revenue
Walsall Council,http://opendatacommunities.org/id/metropolitan-district-council/walsall,WC88-353,31/01/2018,Adult Social Care,ANCHOR,30/01/2018,"1,840.00",73373-RESIDENTIAL & NURSING CARE PLACEMENTS,OP PACKAGE/PLACEMENT COSTS,Third Party Payments,Revenue
Walsall Council,http://opendatacommunities.org/id/metropolitan-district-council/walsall,WC88-354,31/01/2018,Adult Social Care,ANCHOR,30/01/2018,"1,840.00",73373-RESIDENTIAL & NURSING CARE PLACEMENTS,OP PACKAGE/PLACEMENT COSTS,Third Party Payments,Revenue
Walsall Council,http://opendatacommunities.org/id/metropolitan-district-council/walsall,WC88-355,31/01/2018,Adult Social Care,ANCHOR,30/01/2018,"1,840.00",73373-RESIDENTIAL & NURSING CARE PLACEMENTS,OP PACKAGE/PLACEMENT COSTS,Third Party Payments,Revenue
Walsall Council,http://opendatacommunities.org/id/metropolitan-district-council/walsall,WC88-356,31/01/2018,Adult Social Care,ANCHOR,30/01/2018,"1,840.00",73373-RESIDENTIAL & NURSING CARE PLACEMENTS,OP PACKAGE/PLACEMENT COSTS,Third Party Payments,Revenue
Walsall Council,http://opendatacommunities.org/id/metropolitan-district-council/walsall,WC88-357,31/01/2018,Adult Social Care,ANCHOR,30/01/2018,"1,840.00",73373-RESIDENTIAL & NURSING CARE PLACEMENTS,OP PACKAGE/PLACEMENT COSTS,Third Party Payments,Revenue
Walsall Council,http://opendatacommunities.org/id/metropolitan-district-council/walsall,WC88-358,31/01/2018,Adult Social Care,ANCHOR,30/01/2018,"1,840.00",73373-RESIDENTIAL & NURSING CARE PLACEMENTS,OP PACKAGE/PLACEMENT COSTS,Third Party Payments,Revenue
Walsall Council,http://opendatacommunities.org/id/metropolitan-district-council/walsall,WC88-359,31/01/2018,Adult Social Care,ANCHOR,30/01/2018,"1,840.00",73373-RESIDENTIAL & NURSING CARE PLACEMENTS,MENTAL HEALTH PACKAGE/PLACEMENT COSTS,Third Party Payments,Revenue
Walsall Council,http://opendatacommunities.org/id/metropolitan-district-council/walsall,WC88-360,31/01/2018,Adult Social Care,ANCHOR,30/01/2018,"1,840.00",73373-RESIDENTIAL & NURSING CARE PLACEMENTS,OP PACKAGE/PLACEMENT COSTS,Third Party Payments,Revenue
Walsall Council,http://opendatacommunities.org/id/metropolitan-district-council/walsall,WC88-361,31/01/2018,Adult Social Care,ANCHOR,30/01/2018,"1,840.00",73373-RESIDENTIAL & NURSING CARE PLACEMENTS,MENTAL HEALTH PACKAGE/PLACEMENT COSTS,Third Party Payments,Revenue
Walsall Council,http://opendatacommunities.org/id/metropolitan-district-council/walsall,WC88-362,31/01/2018,Adult Social Care,ANCHOR,30/01/2018,"1,840.00",73373-RESIDENTIAL & NURSING CARE PLACEMENTS,OP PACKAGE/PLACEMENT COSTS,Third Party Payments,Revenue
Walsall Council,http://opendatacommunities.org/id/metropolitan-district-council/walsall,WC88-363,31/01/2018,Adult Social Care,ANCHOR,30/01/2018,"1,840.00",73373-RESIDENTIAL & NURSING CARE PLACEMENTS,MENTAL HEALTH PACKAGE/PLACEMENT COSTS,Third Party Payments,Revenue
Walsall Council,http://opendatacommunities.org/id/metropolitan-district-council/walsall,WC88-364,31/01/2018,Adult Social Care,ANCHOR,30/01/2018,"1,840.00",73373-RESIDENTIAL & NURSING CARE PLACEMENTS,OP PACKAGE/PLACEMENT COSTS,Third Party Payments,Revenue
Walsall Council,http://opendatacommunities.org/id/metropolitan-district-council/walsall,WC88-365,31/01/2018,Adult Social Care,ANCHOR,30/01/2018,"1,840.00",73373-RESIDENTIAL & NURSING CARE PLACEMENTS,OP PACKAGE/PLACEMENT COSTS,Third Party Payments,Revenue
Walsall Council,http://opendatacommunities.org/id/metropolitan-district-council/walsall,WC88-366,31/01/2018,Adult Social Care,ANCHOR,30/01/2018,"1,840.00",73373-RESIDENTIAL & NURSING CARE PLACEMENTS,OP PACKAGE/PLACEMENT COSTS,Third Party Payments,Revenue
Walsall Council,http://opendatacommunities.org/id/metropolitan-district-council/walsall,WC88-367,31/01/2018,Adult Social Care,ANCHOR,30/01/2018,"1,840.00",73373-RESIDENTIAL & NURSING CARE PLACEMENTS,OP PACKAGE/PLACEMENT COSTS,Third Party Payments,Revenue
Walsall Council,http://opendatacommunities.org/id/metropolitan-district-council/walsall,WC88-368,31/01/2018,Adult Social Care,ANCHOR,30/01/2018,"1,840.00",73373-RESIDENTIAL & NURSING CARE PLACEMENTS,MENTAL HEALTH PACKAGE/PLACEMENT COSTS,Third Party Payments,Revenue
Walsall Council,http://opendatacommunities.org/id/metropolitan-district-council/walsall,WC88-369,31/01/2018,Adult Social Care,ANCHOR,30/01/2018,"1,996.00",73373-RESIDENTIAL & NURSING CARE PLACEMENTS,OP PACKAGE/PLACEMENT COSTS,Third Party Payments,Revenue
Walsall Council,http://opendatacommunities.org/id/metropolitan-district-council/walsall,WC88-370,31/01/2018,Adult Social Care,ANCHOR,30/01/2018,"1,996.00",73373-RESIDENTIAL & NURSING CARE PLACEMENTS,OP PACKAGE/PLACEMENT COSTS,Third Party Payments,Revenue
Walsall Council,http://opendatacommunities.org/id/metropolitan-district-council/walsall,WC88-371,31/01/2018,Adult Social Care,ANCHOR,30/01/2018,"1,996.00",73373-RESIDENTIAL & NURSING CARE PLACEMENTS,OP PACKAGE/PLACEMENT COSTS,Third Party Payments,Revenue
Walsall Council,http://opendatacommunities.org/id/metropolitan-district-council/walsall,WC88-372,31/01/2018,Adult Social Care,ANCHOR,30/01/2018,"1,996.00",73373-RESIDENTIAL & NURSING CARE PLACEMENTS,OP PACKAGE/PLACEMENT COSTS,Third Party Payments,Revenue
Walsall Council,http://opendatacommunities.org/id/metropolitan-district-council/walsall,WC88-373,31/01/2018,Adult Social Care,ANCHOR,16/01/2018,"2,024.29",73373-RESIDENTIAL & NURSING CARE PLACEMENTS,OP PACKAGE/PLACEMENT COSTS,Third Party Payments,Revenue
Walsall Council,http://opendatacommunities.org/id/metropolitan-district-council/walsall,WC88-374,31/01/2018,Adult Social Care,ANCHOR,10/01/2018,"2,080.00",73373-RESIDENTIAL & NURSING CARE PLACEMENTS,MENTAL HEALTH PACKAGE/PLACEMENT COSTS,Third Party Payments,Revenue
Walsall Council,http://opendatacommunities.org/id/metropolitan-district-council/walsall,WC88-375,31/01/2018,Adult Social Care,ANCHOR,30/01/2018,"2,080.00",73373-RESIDENTIAL & NURSING CARE PLACEMENTS,MENTAL HEALTH PACKAGE/PLACEMENT COSTS,Third Party Payments,Revenue
Walsall Council,http://opendatacommunities.org/id/metropolitan-district-council/walsall,WC88-376,31/01/2018,Adult Social Care,ANCHOR,10/01/2018,"2,180.00",73373-RESIDENTIAL & NURSING CARE PLACEMENTS,OP PACKAGE/PLACEMENT COSTS,Third Party Payments,Revenue
Walsall Council,http://opendatacommunities.org/id/metropolitan-district-council/walsall,WC88-377,31/01/2018,Adult Social Care,ANCHOR,10/01/2018,"2,180.00",73373-RESIDENTIAL & NURSING CARE PLACEMENTS,OP PACKAGE/PLACEMENT COSTS,Third Party Payments,Revenue
Walsall Council,http://opendatacommunities.org/id/metropolitan-district-council/walsall,WC88-378,31/01/2018,Adult Social Care,ANCHOR,10/01/2018,"2,180.00",73373-RESIDENTIAL & NURSING CARE PLACEMENTS,OP PACKAGE/PLACEMENT COSTS,Third Party Payments,Revenue
Walsall Council,http://opendatacommunities.org/id/metropolitan-district-council/walsall,WC88-379,31/01/2018,Adult Social Care,ANCHOR,30/01/2018,"2,180.00",73373-RESIDENTIAL & NURSING CARE PLACEMENTS,MENTAL HEALTH PACKAGE/PLACEMENT COSTS,Third Party Payments,Revenue
Walsall Council,http://opendatacommunities.org/id/metropolitan-district-council/walsall,WC88-380,31/01/2018,Adult Social Care,ANCHOR,30/01/2018,"2,180.00",73373-RESIDENTIAL & NURSING CARE PLACEMENTS,MENTAL HEALTH PACKAGE/PLACEMENT COSTS,Third Party Payments,Revenue
Walsall Council,http://opendatacommunities.org/id/metropolitan-district-council/walsall,WC88-381,31/01/2018,Adult Social Care,ANCHOR,30/01/2018,"2,180.00",73373-RESIDENTIAL & NURSING CARE PLACEMENTS,MENTAL HEALTH PACKAGE/PLACEMENT COSTS,Third Party Payments,Revenue
Walsall Council,http://opendatacommunities.org/id/metropolitan-district-council/walsall,WC88-382,31/01/2018,Adult Social Care,ANCHOR,30/01/2018,"2,180.00",73373-RESIDENTIAL & NURSING CARE PLACEMENTS,OP PACKAGE/PLACEMENT COSTS,Third Party Payments,Revenue
Walsall Council,http://opendatacommunities.org/id/metropolitan-district-council/walsall,WC88-383,31/01/2018,Adult Social Care,ANCHOR,30/01/2018,"2,180.00",73373-RESIDENTIAL & NURSING CARE PLACEMENTS,OP PACKAGE/PLACEMENT COSTS,Third Party Payments,Revenue
Walsall Council,http://opendatacommunities.org/id/metropolitan-district-council/walsall,WC88-384,31/01/2018,Adult Social Care,ANCHOR,30/01/2018,"2,180.00",73373-RESIDENTIAL & NURSING CARE PLACEMENTS,OP PACKAGE/PLACEMENT COSTS,Third Party Payments,Revenue
Walsall Council,http://opendatacommunities.org/id/metropolitan-district-council/walsall,WC88-385,31/01/2018,Adult Social Care,ANCHOR,10/01/2018,"5,792.94",73373-RESIDENTIAL & NURSING CARE PLACEMENTS,OP PACKAGE/PLACEMENT COSTS,Third Party Payments,Revenue
Walsall Council,http://opendatacommunities.org/id/metropolitan-district-council/walsall,WC88-386,31/01/2018,Adult Social Care,ANCHOR,30/01/2018,"7,754.28",73373-RESIDENTIAL & NURSING CARE PLACEMENTS,OP PACKAGE/PLACEMENT COSTS,Third Party Payments,Revenue
Walsall Council,http://opendatacommunities.org/id/metropolitan-district-council/walsall,WC88-387,31/01/2018,Adult Social Care,ANCHOR,30/01/2018,"9,200.00",73373-RESIDENTIAL & NURSING CARE PLACEMENTS,OP PACKAGE/PLACEMENT COSTS,Third Party Payments,Revenue
Walsall Council,http://opendatacommunities.org/id/metropolitan-district-council/walsall,WC88-388,31/01/2018,Childrens,REDACTED,15/01/2018,314.44,74509-SPECIAL GUARDIANSHIP ORDERS,ADOPTION ALLOWANCES,Transfer Payments,Revenue
Walsall Council,http://opendatacommunities.org/id/metropolitan-district-council/walsall,WC88-389,31/01/2018,Childrens,REDACTED,29/01/2018,9.24,60006-NEW-FURNITURE & EQUIPMENT,INTERNAL FOSTER CARE PROVISION,Supplies & Services,Revenue
Walsall Council,http://opendatacommunities.org/id/metropolitan-district-council/walsall,WC88-390,31/01/2018,Childrens,REDACTED,29/01/2018,810.32,74501-MAINTENANCE ALLOWANCE-FOSTER CARERS,INTERNAL FOSTER CARE PROVISION,Transfer Payments,Revenue
Walsall Council,http://opendatacommunities.org/id/metropolitan-district-council/walsall,WC88-391,31/01/2018,Childrens,REDACTED,29/01/2018,897.52,74508-INTERNAL FOSTER CARERS-CARER FEES,INTERNAL FOSTER CARE PROVISION,Transfer Payments,Revenue
Walsall Council,http://opendatacommunities.org/id/metropolitan-district-council/walsall,WC88-392,31/01/2018,Adult Social Care,REDACTED,05/01/2018,"4,980.58",76422-DIRECT PAYMENTS TO SOCIAL SERVICES CLIENTS,OP PACKAGE/PLACEMENT COSTS,Transfer Payments,Revenue
Walsall Council,http://opendatacommunities.org/id/metropolitan-district-council/walsall,WC88-393,31/01/2018,Adult Social Care,ANGEL COURT RESIDENTIAL CARE HOME,30/01/2018,394.29,73373-RESIDENTIAL & NURSING CARE PLACEMENTS,OP PACKAGE/PLACEMENT COSTS,Third Party Payments,Revenue
Walsall Council,http://opendatacommunities.org/id/metropolitan-district-council/walsall,WC88-394,31/01/2018,Adult Social Care,ANGEL COURT RESIDENTIAL CARE HOME,30/01/2018,"1,833.43",73373-RESIDENTIAL & NURSING CARE PLACEMENTS,OP PACKAGE/PLACEMENT COSTS,Third Party Payments,Revenue
Walsall Council,http://opendatacommunities.org/id/metropolitan-district-council/walsall,WC88-395,31/01/2018,Adult Social Care,ANGEL COURT RESIDENTIAL CARE HOME,30/01/2018,"2,118.14",73373-RESIDENTIAL & NURSING CARE PLACEMENTS,OP PACKAGE/PLACEMENT COSTS,Third Party Payments,Revenue
Walsall Council,http://opendatacommunities.org/id/metropolitan-district-council/walsall,WC88-396,31/01/2018,Adult Social Care,ANGEL COURT RESIDENTIAL CARE HOME,30/01/2018,"2,150.07",73373-RESIDENTIAL & NURSING CARE PLACEMENTS,OP PACKAGE/PLACEMENT COSTS,Third Party Payments,Revenue
Walsall Council,http://opendatacommunities.org/id/metropolitan-district-council/walsall,WC88-397,31/01/2018,Childrens,REDACTED,15/01/2018,368.76,74509-SPECIAL GUARDIANSHIP ORDERS,ADOPTION ALLOWANCES,Transfer Payments,Revenue
Walsall Council,http://opendatacommunities.org/id/metropolitan-district-council/walsall,WC88-398,31/01/2018,Childrens,REDACTED,15/01/2018,368.76,74509-SPECIAL GUARDIANSHIP ORDERS,ADOPTION ALLOWANCES,Transfer Payments,Revenue
Walsall Council,http://opendatacommunities.org/id/metropolitan-district-council/walsall,WC88-399,31/01/2018,Childrens,REDACTED,15/01/2018,500.16,74509-SPECIAL GUARDIANSHIP ORDERS,ADOPTION ALLOWANCES,Transfer Payments,Revenue
Walsall Council,http://opendatacommunities.org/id/metropolitan-district-council/walsall,WC88-400,31/01/2018,Childrens,REDACTED,15/01/2018,312.04,74509-SPECIAL GUARDIANSHIP ORDERS,ADOPTION ALLOWANCES,Transfer Payments,Revenue
Walsall Council,http://opendatacommunities.org/id/metropolitan-district-council/walsall,WC88-401,31/01/2018,Adult Social Care,REDACTED,05/01/2018,"2,795.36",76422-DIRECT PAYMENTS TO SOCIAL SERVICES CLIENTS,LD PACKAGE/PLACEMENT COSTS,Transfer Payments,Revenue
Walsall Council,http://opendatacommunities.org/id/metropolitan-district-council/walsall,WC88-402,31/01/2018,Adult Social Care,REDACTED,05/01/2018,680.24,76422-DIRECT PAYMENTS TO SOCIAL SERVICES CLIENTS,OP PACKAGE/PLACEMENT COSTS,Transfer Payments,Revenue
Walsall Council,http://opendatacommunities.org/id/metropolitan-district-council/walsall,WC88-403,31/01/2018,Adult Social Care,REDACTED,05/01/2018,"1,127.52",76422-DIRECT PAYMENTS TO SOCIAL SERVICES CLIENTS,OP PACKAGE/PLACEMENT COSTS,Transfer Payments,Revenue
Walsall Council,http://opendatacommunities.org/id/metropolitan-district-council/walsall,WC88-404,31/01/2018,Adult Social Care,ANSON COURT RESIDENTIAL HOME,10/01/2018,-394.29,73373-RESIDENTIAL & NURSING CARE PLACEMENTS,MENTAL HEALTH PACKAGE/PLACEMENT COSTS,Third Party Payments,Revenue
Walsall Council,http://opendatacommunities.org/id/metropolitan-district-council/walsall,WC88-405,31/01/2018,Adult Social Care,ANSON COURT RESIDENTIAL HOME,30/01/2018,411.42,73373-RESIDENTIAL & NURSING CARE PLACEMENTS,MENTAL HEALTH PACKAGE/PLACEMENT COSTS,Third Party Payments,Revenue
Walsall Council,http://opendatacommunities.org/id/metropolitan-district-council/walsall,WC88-406,31/01/2018,Adult Social Care,ANSON COURT RESIDENTIAL HOME,10/01/2018,"1,840.00",73373-RESIDENTIAL & NURSING CARE PLACEMENTS,MENTAL HEALTH PACKAGE/PLACEMENT COSTS,Third Party Payments,Revenue
Walsall Council,http://opendatacommunities.org/id/metropolitan-district-council/walsall,WC88-407,31/01/2018,Adult Social Care,ANSON COURT RESIDENTIAL HOME,10/01/2018,"1,840.00",73373-RESIDENTIAL & NURSING CARE PLACEMENTS,MENTAL HEALTH PACKAGE/PLACEMENT COSTS,Third Party Payments,Revenue
Walsall Council,http://opendatacommunities.org/id/metropolitan-district-council/walsall,WC88-408,31/01/2018,Adult Social Care,ANSON COURT RESIDENTIAL HOME,10/01/2018,"1,840.00",73373-RESIDENTIAL & NURSING CARE PLACEMENTS,MENTAL HEALTH PACKAGE/PLACEMENT COSTS,Third Party Payments,Revenue
Walsall Council,http://opendatacommunities.org/id/metropolitan-district-council/walsall,WC88-409,31/01/2018,Adult Social Care,ANSON COURT RESIDENTIAL HOME,16/01/2018,"1,840.00",73373-RESIDENTIAL & NURSING CARE PLACEMENTS,OP PACKAGE/PLACEMENT COSTS,Third Party Payments,Revenue
Walsall Council,http://opendatacommunities.org/id/metropolitan-district-council/walsall,WC88-410,31/01/2018,Adult Social Care,ANSON COURT RESIDENTIAL HOME,16/01/2018,"1,840.00",73373-RESIDENTIAL & NURSING CARE PLACEMENTS,OP PACKAGE/PLACEMENT COSTS,Third Party Payments,Revenue
Walsall Council,http://opendatacommunities.org/id/metropolitan-district-council/walsall,WC88-411,31/01/2018,Adult Social Care,ANSON COURT RESIDENTIAL HOME,16/01/2018,"1,840.00",73373-RESIDENTIAL & NURSING CARE PLACEMENTS,OP PACKAGE/PLACEMENT COSTS,Third Party Payments,Revenue
Walsall Council,http://opendatacommunities.org/id/metropolitan-district-council/walsall,WC88-412,31/01/2018,Adult Social Care,ANSON COURT RESIDENTIAL HOME,16/01/2018,"1,840.00",73373-RESIDENTIAL & NURSING CARE PLACEMENTS,OP PACKAGE/PLACEMENT COSTS,Third Party Payments,Revenue
Walsall Council,http://opendatacommunities.org/id/metropolitan-district-council/walsall,WC88-413,31/01/2018,Adult Social Care,ANSON COURT RESIDENTIAL HOME,16/01/2018,"1,840.00",73373-RESIDENTIAL & NURSING CARE PLACEMENTS,OP PACKAGE/PLACEMENT COSTS,Third Party Payments,Revenue
Walsall Council,http://opendatacommunities.org/id/metropolitan-district-council/walsall,WC88-414,31/01/2018,Adult Social Care,ANSON COURT RESIDENTIAL HOME,16/01/2018,"1,840.00",73373-RESIDENTIAL & NURSING CARE PLACEMENTS,OP PACKAGE/PLACEMENT COSTS,Third Party Payments,Revenue
Walsall Council,http://opendatacommunities.org/id/metropolitan-district-council/walsall,WC88-415,31/01/2018,Adult Social Care,ANSON COURT RESIDENTIAL HOME,16/01/2018,"1,840.00",73373-RESIDENTIAL & NURSING CARE PLACEMENTS,OP PACKAGE/PLACEMENT COSTS,Third Party Payments,Revenue
Walsall Council,http://opendatacommunities.org/id/metropolitan-district-council/walsall,WC88-416,31/01/2018,Adult Social Care,ANSON COURT RESIDENTIAL HOME,16/01/2018,"1,840.00",73373-RESIDENTIAL & NURSING CARE PLACEMENTS,OP PACKAGE/PLACEMENT COSTS,Third Party Payments,Revenue
Walsall Council,http://opendatacommunities.org/id/metropolitan-district-council/walsall,WC88-417,31/01/2018,Adult Social Care,ANSON COURT RESIDENTIAL HOME,16/01/2018,"1,840.00",73373-RESIDENTIAL & NURSING CARE PLACEMENTS,MENTAL HEALTH PACKAGE/PLACEMENT COSTS,Third Party Payments,Revenue
Walsall Council,http://opendatacommunities.org/id/metropolitan-district-council/walsall,WC88-418,31/01/2018,Adult Social Care,ANSON COURT RESIDENTIAL HOME,16/01/2018,"1,840.00",73373-RESIDENTIAL & NURSING CARE PLACEMENTS,OP PACKAGE/PLACEMENT COSTS,Third Party Payments,Revenue
Walsall Council,http://opendatacommunities.org/id/metropolitan-district-council/walsall,WC88-419,31/01/2018,Adult Social Care,ANSON COURT RESIDENTIAL HOME,16/01/2018,"1,840.00",73373-RESIDENTIAL & NURSING CARE PLACEMENTS,OP PACKAGE/PLACEMENT COSTS,Third Party Payments,Revenue
Walsall Council,http://opendatacommunities.org/id/metropolitan-district-council/walsall,WC88-420,31/01/2018,Adult Social Care,ANSON COURT RESIDENTIAL HOME,16/01/2018,"1,840.00",73373-RESIDENTIAL & NURSING CARE PLACEMENTS,OP PACKAGE/PLACEMENT COSTS,Third Party Payments,Revenue
Walsall Council,http://opendatacommunities.org/id/metropolitan-district-council/walsall,WC88-421,31/01/2018,Adult Social Care,ANSON COURT RESIDENTIAL HOME,16/01/2018,"1,840.00",73373-RESIDENTIAL & NURSING CARE PLACEMENTS,OP PACKAGE/PLACEMENT COSTS,Third Party Payments,Revenue
Walsall Council,http://opendatacommunities.org/id/metropolitan-district-council/walsall,WC88-422,31/01/2018,Adult Social Care,ANSON COURT RESIDENTIAL HOME,16/01/2018,"1,840.00",73373-RESIDENTIAL & NURSING CARE PLACEMENTS,OP PACKAGE/PLACEMENT COSTS,Third Party Payments,Revenue
Walsall Council,http://opendatacommunities.org/id/metropolitan-district-council/walsall,WC88-423,31/01/2018,Adult Social Care,ANSON COURT RESIDENTIAL HOME,16/01/2018,"1,840.00",73373-RESIDENTIAL & NURSING CARE PLACEMENTS,OP PACKAGE/PLACEMENT COSTS,Third Party Payments,Revenue
Walsall Council,http://opendatacommunities.org/id/metropolitan-district-council/walsall,WC88-424,31/01/2018,Adult Social Care,ANSON COURT RESIDENTIAL HOME,16/01/2018,"1,840.00",73373-RESIDENTIAL & NURSING CARE PLACEMENTS,OP PACKAGE/PLACEMENT COSTS,Third Party Payments,Revenue
Walsall Council,http://opendatacommunities.org/id/metropolitan-district-council/walsall,WC88-425,31/01/2018,Adult Social Care,ANSON COURT RESIDENTIAL HOME,16/01/2018,"1,840.00",73373-RESIDENTIAL & NURSING CARE PLACEMENTS,OP PACKAGE/PLACEMENT COSTS,Third Party Payments,Revenue
Walsall Council,http://opendatacommunities.org/id/metropolitan-district-council/walsall,WC88-426,31/01/2018,Adult Social Care,ANSON COURT RESIDENTIAL HOME,16/01/2018,"1,840.00",73373-RESIDENTIAL & NURSING CARE PLACEMENTS,OP PACKAGE/PLACEMENT COSTS,Third Party Payments,Revenue
Walsall Council,http://opendatacommunities.org/id/metropolitan-district-council/walsall,WC88-427,31/01/2018,Adult Social Care,ANSON COURT RESIDENTIAL HOME,16/01/2018,"1,920.00",73373-RESIDENTIAL & NURSING CARE PLACEMENTS,OP PACKAGE/PLACEMENT COSTS,Third Party Payments,Revenue
Walsall Council,http://opendatacommunities.org/id/metropolitan-district-council/walsall,WC88-428,31/01/2018,Adult Social Care,ANSON COURT RESIDENTIAL HOME,16/01/2018,"1,920.00",73373-RESIDENTIAL & NURSING CARE PLACEMENTS,OP PACKAGE/PLACEMENT COSTS,Third Party Payments,Revenue
Walsall Council,http://opendatacommunities.org/id/metropolitan-district-council/walsall,WC88-429,31/01/2018,Adult Social Care,ANSON COURT RESIDENTIAL HOME,10/01/2018,"2,497.14",73373-RESIDENTIAL & NURSING CARE PLACEMENTS,MENTAL HEALTH PACKAGE/PLACEMENT COSTS,Third Party Payments,Revenue
Walsall Council,http://opendatacommunities.org/id/metropolitan-district-council/walsall,WC88-430,31/01/2018,Adult Social Care,ANSON COURT RESIDENTIAL HOME,16/01/2018,"3,565.71",73373-RESIDENTIAL & NURSING CARE PLACEMENTS,OP PACKAGE/PLACEMENT COSTS,Third Party Payments,Revenue
Walsall Council,http://opendatacommunities.org/id/metropolitan-district-council/walsall,WC88-431,31/01/2018,Adult Social Care,ANSON COURT RESIDENTIAL HOME,30/01/2018,"3,634.29",73373-RESIDENTIAL & NURSING CARE PLACEMENTS,MENTAL HEALTH PACKAGE/PLACEMENT COSTS,Third Party Payments,Revenue
Walsall Council,http://opendatacommunities.org/id/metropolitan-district-council/walsall,WC88-432,31/01/2018,Adult Social Care,ANSON COURT RESIDENTIAL HOME,16/01/2018,"4,920.00",73373-RESIDENTIAL & NURSING CARE PLACEMENTS,MENTAL HEALTH PACKAGE/PLACEMENT COSTS,Third Party Payments,Revenue
Walsall Council,http://opendatacommunities.org/id/metropolitan-district-council/walsall,WC88-433,31/01/2018,Resources and Transformation,ANTALIS LIMITED,23/01/2018,280.00,60500-GENERAL MATERIALS,PRINTING SERVICES,Supplies & Services,Revenue
Walsall Council,http://opendatacommunities.org/id/metropolitan-district-council/walsall,WC88-434,31/01/2018,Childrens,REDACTED,15/01/2018,604.00,74510-RESIDENTS ORDERS,ADOPTION ALLOWANCES,Third Party Payments,Revenue
Walsall Council,http://opendatacommunities.org/id/metropolitan-district-council/walsall,WC88-435,31/01/2018,Economy & Environment,ANTHONY WILKINSON GALLERY LTD,18/01/2018,"1,703.20",62000-EXTERNAL PRINTING SERVICES,NAG - TEMPORARY EXHIBITIONS,Supplies & Services,Revenue
Walsall Council,http://opendatacommunities.org/id/metropolitan-district-council/walsall,WC88-436,31/01/2018,Childrens,REDACTED,15/01/2018,333.12,74509-SPECIAL GUARDIANSHIP ORDERS,ADOPTION ALLOWANCES,Transfer Payments,Revenue
Walsall Council,http://opendatacommunities.org/id/metropolitan-district-council/walsall,WC88-437,31/01/2018,Adult Social Care,ANVILLE COURT CARE LTD,26/01/2018,642.86,73373-RESIDENTIAL & NURSING CARE PLACEMENTS,MENTAL HEALTH PACKAGE/PLACEMENT COSTS,Third Party Payments,Revenue
Walsall Council,http://opendatacommunities.org/id/metropolitan-district-council/walsall,WC88-438,31/01/2018,Adult Social Care,ANVILLE COURT CARE LTD,22/01/2018,"3,321.43",73373-RESIDENTIAL & NURSING CARE PLACEMENTS,MENTAL HEALTH PACKAGE/PLACEMENT COSTS,Third Party Payments,Revenue
Walsall Council,http://opendatacommunities.org/id/metropolitan-district-council/walsall,WC88-439,31/01/2018,Adult Social Care,ANVILLE COURT CARE LTD,23/01/2018,"3,321.43",73373-RESIDENTIAL & NURSING CARE PLACEMENTS,MENTAL HEALTH PACKAGE/PLACEMENT COSTS,Third Party Payments,Revenue
Walsall Council,http://opendatacommunities.org/id/metropolitan-district-council/walsall,WC88-440,31/01/2018,Economy & Environment,APCOA PARKING SERVICES (UK) LTD,08/01/2018,"40,560.89",73025-PROFESSIONAL SERVICES-PRIV CONTRACTOR & OTHER AGENCIES,PARKING SERVICES OFF-STREET,Third Party Payments,Revenue
Walsall Council,http://opendatacommunities.org/id/metropolitan-district-council/walsall,WC88-441,31/01/2018,Economy & Environment,APCOA PARKING SERVICES (UK) LTD,01/01/2018,"45,624.74",73025-PROFESSIONAL SERVICES-PRIV CONTRACTOR & OTHER AGENCIES,PARKING SERVICES OFF-STREET,Third Party Payments,Revenue
Walsall Council,http://opendatacommunities.org/id/metropolitan-district-council/walsall,WC88-442,31/01/2018,Economy & Environment,AQUA FORCE SPECIAL WASTE LTD,05/01/2018,300.00,73029-HAZARDOUS WASTE REMOVAL/DISPOSAL-PRIV CONTRACTOR FEES,WASTE DISPOSAL - RESIDUAL,Third Party Payments,Revenue
Walsall Council,http://opendatacommunities.org/id/metropolitan-district-council/walsall,WC88-443,31/01/2018,Economy & Environment,AQUALYMPIC,01/01/2018,350.00,63124-FEES & LICENCES-SERVICES,WALSALL GALA CENTRE,Supplies & Services,Revenue
Walsall Council,http://opendatacommunities.org/id/metropolitan-district-council/walsall,WC88-444,31/01/2018,Economy & Environment,AQUALYMPIC,30/01/2018,400.00,34305-AGENCY STAFF-EMPLOYEES,BLOXWICH LEISURE CENTRE,Employees,Revenue
Walsall Council,http://opendatacommunities.org/id/metropolitan-district-council/walsall,WC88-445,31/01/2018,Economy & Environment,AQUALYMPIC,22/01/2018,615.00,34305-AGENCY STAFF-EMPLOYEES,OAK PARK,Employees,Revenue
Walsall Council,http://opendatacommunities.org/id/metropolitan-district-council/walsall,WC88-446,31/01/2018,Economy & Environment,AQUALYMPIC,22/01/2018,"1,025.00",34305-AGENCY STAFF-EMPLOYEES,OAK PARK,Employees,Revenue
Walsall Council,http://opendatacommunities.org/id/metropolitan-district-council/walsall,WC88-447,31/01/2018,Economy & Environment,AQUALYMPIC,26/01/2018,"1,047.50",34305-AGENCY STAFF-EMPLOYEES,OAK PARK,Employees,Revenue
Walsall Council,http://opendatacommunities.org/id/metropolitan-district-council/walsall,WC88-448,31/01/2018,Economy & Environment,AQUALYMPIC,08/01/2018,"1,192.50",34305-AGENCY STAFF-EMPLOYEES,OAK PARK,Employees,Revenue
Walsall Council,http://opendatacommunities.org/id/metropolitan-district-council/walsall,WC88-449,31/01/2018,Economy & Environment,AQUALYMPIC,08/01/2018,"2,145.00",34305-AGENCY STAFF-EMPLOYEES,OAK PARK,Employees,Revenue
Walsall Council,http://opendatacommunities.org/id/metropolitan-district-council/walsall,WC88-450,31/01/2018,Adult Social Care,ARBORETUM NURSING HOME.,30/01/2018,"1,050.00",73373-RESIDENTIAL & NURSING CARE PLACEMENTS,OP PACKAGE/PLACEMENT COSTS,Third Party Payments,Revenue
Walsall Council,http://opendatacommunities.org/id/metropolitan-district-council/walsall,WC88-451,31/01/2018,Adult Social Care,ARBORETUM NURSING HOME.,10/01/2018,"2,000.00",73373-RESIDENTIAL & NURSING CARE PLACEMENTS,PD PACKAGE/PLACEMENT COSTS,Third Party Payments,Revenue
Walsall Council,http://opendatacommunities.org/id/metropolitan-district-council/walsall,WC88-452,31/01/2018,Adult Social Care,ARBORETUM NURSING HOME.,10/01/2018,"2,000.00",73373-RESIDENTIAL & NURSING CARE PLACEMENTS,OP PACKAGE/PLACEMENT COSTS,Third Party Payments,Revenue
Walsall Council,http://opendatacommunities.org/id/metropolitan-district-council/walsall,WC88-453,31/01/2018,Adult Social Care,ARBORETUM NURSING HOME.,10/01/2018,"2,080.00",73373-RESIDENTIAL & NURSING CARE PLACEMENTS,OP PACKAGE/PLACEMENT COSTS,Third Party Payments,Revenue
Walsall Council,http://opendatacommunities.org/id/metropolitan-district-council/walsall,WC88-454,31/01/2018,Adult Social Care,ARBORETUM NURSING HOME.,10/01/2018,"2,500.00",73373-RESIDENTIAL & NURSING CARE PLACEMENTS,OP PACKAGE/PLACEMENT COSTS,Third Party Payments,Revenue
Walsall Council,http://opendatacommunities.org/id/metropolitan-district-council/walsall,WC88-455,31/01/2018,Adult Social Care,ARBORETUM NURSING HOME.,16/01/2018,"2,500.00",73373-RESIDENTIAL & NURSING CARE PLACEMENTS,OP PACKAGE/PLACEMENT COSTS,Third Party Payments,Revenue
Walsall Council,http://opendatacommunities.org/id/metropolitan-district-council/walsall,WC88-456,31/01/2018,Adult Social Care,ARBORETUM NURSING HOME.,30/01/2018,"2,750.00",73373-RESIDENTIAL & NURSING CARE PLACEMENTS,OP PACKAGE/PLACEMENT COSTS,Third Party Payments,Revenue
Walsall Council,http://opendatacommunities.org/id/metropolitan-district-council/walsall,WC88-457,31/01/2018,Adult Social Care,ARBORETUM NURSING HOME.,03/01/2018,"14,900.00",73019-PSE'S-PRIV CONTRACTOR FEES,TRANSITIONAL CARE SUPPORT TEAM,Third Party Payments,Revenue
Walsall Council,http://opendatacommunities.org/id/metropolitan-district-council/walsall,WC88-458,31/01/2018,Adult Social Care,ARBORETUM NURSING HOME.,22/01/2018,"14,900.00",73019-PSE'S-PRIV CONTRACTOR FEES,INTEGRATED DISCHARGE TEAM,Third Party Payments,Revenue
Walsall Council,http://opendatacommunities.org/id/metropolitan-district-council/walsall,WC88-459,31/01/2018,Economy & Environment,ARCADIS,17/01/2018,"9,000.00",63000-PROFESSIONAL FEES AND SERVICES,UNCAPITALISED SPEND,Supplies & Services,Revenue
Walsall Council,http://opendatacommunities.org/id/metropolitan-district-council/walsall,WC88-460,31/01/2018,Economy & Environment,ARCADIS,17/01/2018,"9,000.00",63000-PROFESSIONAL FEES AND SERVICES,UNCAPITALISED SPEND,Supplies & Services,Revenue
Walsall Council,http://opendatacommunities.org/id/metropolitan-district-council/walsall,WC88-461,31/01/2018,Economy & Environment,ARCADIS,17/01/2018,"10,000.00",63000-PROFESSIONAL FEES AND SERVICES,UNCAPITALISED SPEND,Supplies & Services,Revenue
Walsall Council,http://opendatacommunities.org/id/metropolitan-district-council/walsall,WC88-462,31/01/2018,Economy & Environment,ARCADIS,17/01/2018,"10,000.00",63000-PROFESSIONAL FEES AND SERVICES,UNCAPITALISED SPEND,Supplies & Services,Revenue
Walsall Council,http://opendatacommunities.org/id/metropolitan-district-council/walsall,WC88-463,31/01/2018,Economy & Environment,ARCADIS,15/01/2018,"25,800.00",01001-OTHER CONSULTANTS FEES,CFR 1147 WALSALL TO WOLVERHAMPTON RAPID TRANSIT,Capital,Capital
Walsall Council,http://opendatacommunities.org/id/metropolitan-district-council/walsall,WC88-464,31/01/2018,Economy & Environment,ARCHWAY TCS LTD,26/01/2018,727.50,73025-PROFESSIONAL SERVICES-PRIV CONTRACTOR & OTHER AGENCIES,DEPOT,Third Party Payments,Revenue
Walsall Council,http://opendatacommunities.org/id/metropolitan-district-council/walsall,WC88-465,31/01/2018,Economy & Environment,ARCO GROUP,26/01/2018,208.81,61500-CLOTHING & LAUNDRY,RESOURCE MANAGEMENT,Supplies & Services,Revenue
Walsall Council,http://opendatacommunities.org/id/metropolitan-district-council/walsall,WC88-466,31/01/2018,Economy & Environment,ARCO GROUP,22/01/2018,239.20,61500-CLOTHING & LAUNDRY,EH DIV GENERAL COSTS,Supplies & Services,Revenue
Walsall Council,http://opendatacommunities.org/id/metropolitan-district-council/walsall,WC88-467,31/01/2018,Economy & Environment,ARCO GROUP,23/01/2018,427.46,61500-CLOTHING & LAUNDRY,EH DIV GENERAL COSTS,Supplies & Services,Revenue
Walsall Council,http://opendatacommunities.org/id/metropolitan-district-council/walsall,WC88-468,31/01/2018,Childrens,ARK FORENSICS LTD,09/01/2018,587.65,73014-LEGAL FEES-PRIV CONTRACTOR FEES,GENERAL MANAGEMENT SUPPORT (INC LEGAL),Third Party Payments,Revenue
Walsall Council,http://opendatacommunities.org/id/metropolitan-district-council/walsall,WC88-469,31/01/2018,Adult Social Care,ARK HOME HEALTHCARE LIMITED,08/01/2018,"32,633.15",73372-DOMICILIARY CARE,OP PACKAGE/PLACEMENT COSTS,Third Party Payments,Revenue
Walsall Council,http://opendatacommunities.org/id/metropolitan-district-council/walsall,WC88-470,31/01/2018,Childrens,ARNFIELD CARE LIMITED,29/01/2018,"15,616.00",74036-EXTERNAL RESIDENTIAL CARE-OTH AGENCY PROVISION,INDEPENDENT RESIDENTIAL HOMES,Third Party Payments,Revenue
Walsall Council,http://opendatacommunities.org/id/metropolitan-district-council/walsall,WC88-471,31/01/2018,Holding Accounts,ARTHUR J GALLAGHER T/A HEATH LAMBERT LIMITED,22/01/2018,"4,500.00",89012-TEACHERS SICKNESS SCHEME PREMIUM INSURANCE POLICY,PUBLIC LIABILITY,Supplies & Services,Revenue
Walsall Council,http://opendatacommunities.org/id/metropolitan-district-council/walsall,WC88-472,31/01/2018,Holding Accounts,ARTHUR J GALLAGHER T/A HEATH LAMBERT LIMITED,17/01/2018,"6,000.00",89012-TEACHERS SICKNESS SCHEME PREMIUM INSURANCE POLICY,PUBLIC LIABILITY,Supplies & Services,Revenue
Walsall Council,http://opendatacommunities.org/id/metropolitan-district-council/walsall,WC88-473,31/01/2018,Childrens,ARTHUR M GRIFFITHS & SON LTD,22/01/2018,"11,056.53",01006-SITE WORKS MAIN CONTRACTORS,CFR 929 KING CHARLES PRIMARY SIGNIFICANT ENLARGEMENT,Capital,Capital
Walsall Council,http://opendatacommunities.org/id/metropolitan-district-council/walsall,WC88-474,31/01/2018,Childrens,ARTHUR M GRIFFITHS & SON LTD,10/01/2018,"206,778.62",01006-SITE WORKS MAIN CONTRACTORS,CFR 929 FIBBERSLEY PRIMARY SIGNIFICANT ENLARGEMENT,Capital,Capital
Walsall Council,http://opendatacommunities.org/id/metropolitan-district-council/walsall,WC88-475,31/01/2018,Economy & Environment,ASCEL,15/01/2018,350.00,30030-EXTERNAL TRAINING,LIBRARY DEVELOPMENT 1,Employees,Revenue
Walsall Council,http://opendatacommunities.org/id/metropolitan-district-council/walsall,WC88-476,31/01/2018,Economy & Environment,ASCOT BUSINESS SOLUTIONS LIMITED,01/01/2018,226.60,63800-COMPUTER EQUIPMENT AND SUPPLIES,DEVELOPMENT MANAGEMENT,Supplies & Services,Revenue
Walsall Council,http://opendatacommunities.org/id/metropolitan-district-council/walsall,WC88-477,31/01/2018,Economy & Environment,ASDA PHARMACY,17/01/2018,322.32,71007-CONTRIBUTION TO PCT,PUBLIC HEALTH BUSINESS SUPPORT,Third Party Payments,Revenue
Walsall Council,http://opendatacommunities.org/id/metropolitan-district-council/walsall,WC88-478,31/01/2018,Adult Social Care,ASH GRANGE CARE HOME,10/01/2018,"-1,242.00",73373-RESIDENTIAL & NURSING CARE PLACEMENTS,OP PACKAGE/PLACEMENT COSTS,Third Party Payments,Revenue
Walsall Council,http://opendatacommunities.org/id/metropolitan-district-council/walsall,WC88-479,31/01/2018,Adult Social Care,ASH GRANGE CARE HOME,30/01/2018,709.71,73373-RESIDENTIAL & NURSING CARE PLACEMENTS,OP PACKAGE/PLACEMENT COSTS,Third Party Payments,Revenue
Walsall Council,http://opendatacommunities.org/id/metropolitan-district-council/walsall,WC88-480,31/01/2018,Adult Social Care,ASH GRANGE CARE HOME,10/01/2018,"1,166.08",73373-RESIDENTIAL & NURSING CARE PLACEMENTS,MENTAL HEALTH PACKAGE/PLACEMENT COSTS,Third Party Payments,Revenue
Walsall Council,http://opendatacommunities.org/id/metropolitan-district-council/walsall,WC88-481,31/01/2018,Adult Social Care,ASH GRANGE CARE HOME,10/01/2018,"1,656.00",73373-RESIDENTIAL & NURSING CARE PLACEMENTS,OP PACKAGE/PLACEMENT COSTS,Third Party Payments,Revenue
Walsall Council,http://opendatacommunities.org/id/metropolitan-district-council/walsall,WC88-482,31/01/2018,Adult Social Care,ASH GRANGE CARE HOME,30/01/2018,"1,656.00",73373-RESIDENTIAL & NURSING CARE PLACEMENTS,OP PACKAGE/PLACEMENT COSTS,Third Party Payments,Revenue
Walsall Council,http://opendatacommunities.org/id/metropolitan-district-council/walsall,WC88-483,31/01/2018,Adult Social Care,ASH GRANGE CARE HOME,30/01/2018,"1,656.00",73373-RESIDENTIAL & NURSING CARE PLACEMENTS,OP PACKAGE/PLACEMENT COSTS,Third Party Payments,Revenue
Walsall Council,http://opendatacommunities.org/id/metropolitan-district-council/walsall,WC88-484,31/01/2018,Adult Social Care,ASH GRANGE CARE HOME,30/01/2018,"1,656.00",73373-RESIDENTIAL & NURSING CARE PLACEMENTS,OP PACKAGE/PLACEMENT COSTS,Third Party Payments,Revenue
Walsall Council,http://opendatacommunities.org/id/metropolitan-district-council/walsall,WC88-485,31/01/2018,Adult Social Care,ASH GRANGE CARE HOME,30/01/2018,"1,656.00",73373-RESIDENTIAL & NURSING CARE PLACEMENTS,OP PACKAGE/PLACEMENT COSTS,Third Party Payments,Revenue
Walsall Council,http://opendatacommunities.org/id/metropolitan-district-council/walsall,WC88-486,31/01/2018,Adult Social Care,ASH GRANGE CARE HOME,30/01/2018,"1,656.00",73373-RESIDENTIAL & NURSING CARE PLACEMENTS,OP PACKAGE/PLACEMENT COSTS,Third Party Payments,Revenue
Walsall Council,http://opendatacommunities.org/id/metropolitan-district-council/walsall,WC88-487,31/01/2018,Adult Social Care,ASH GRANGE CARE HOME,30/01/2018,"1,656.00",73373-RESIDENTIAL & NURSING CARE PLACEMENTS,OP PACKAGE/PLACEMENT COSTS,Third Party Payments,Revenue
Walsall Council,http://opendatacommunities.org/id/metropolitan-district-council/walsall,WC88-488,31/01/2018,Adult Social Care,ASH GRANGE CARE HOME,30/01/2018,"1,684.42",73373-RESIDENTIAL & NURSING CARE PLACEMENTS,OP PACKAGE/PLACEMENT COSTS,Third Party Payments,Revenue
Walsall Council,http://opendatacommunities.org/id/metropolitan-district-council/walsall,WC88-489,31/01/2018,Adult Social Care,ASH GRANGE CARE HOME,10/01/2018,"2,000.00",73373-RESIDENTIAL & NURSING CARE PLACEMENTS,MENTAL HEALTH PACKAGE/PLACEMENT COSTS,Third Party Payments,Revenue
Walsall Council,http://opendatacommunities.org/id/metropolitan-district-council/walsall,WC88-490,31/01/2018,Adult Social Care,ASH GRANGE CARE HOME,10/01/2018,"2,000.00",73373-RESIDENTIAL & NURSING CARE PLACEMENTS,OP PACKAGE/PLACEMENT COSTS,Third Party Payments,Revenue
Walsall Council,http://opendatacommunities.org/id/metropolitan-district-council/walsall,WC88-491,31/01/2018,Adult Social Care,ASH GRANGE CARE HOME,10/01/2018,"2,000.00",73373-RESIDENTIAL & NURSING CARE PLACEMENTS,OP PACKAGE/PLACEMENT COSTS,Third Party Payments,Revenue
Walsall Council,http://opendatacommunities.org/id/metropolitan-district-council/walsall,WC88-492,31/01/2018,Adult Social Care,ASH GRANGE CARE HOME,10/01/2018,"2,000.00",73373-RESIDENTIAL & NURSING CARE PLACEMENTS,OP PACKAGE/PLACEMENT COSTS,Third Party Payments,Revenue
Walsall Council,http://opendatacommunities.org/id/metropolitan-district-council/walsall,WC88-493,31/01/2018,Adult Social Care,ASH GRANGE CARE HOME,10/01/2018,"2,000.00",73373-RESIDENTIAL & NURSING CARE PLACEMENTS,OP PACKAGE/PLACEMENT COSTS,Third Party Payments,Revenue
Walsall Council,http://opendatacommunities.org/id/metropolitan-district-council/walsall,WC88-494,31/01/2018,Adult Social Care,ASH GRANGE CARE HOME,10/01/2018,"2,000.00",73373-RESIDENTIAL & NURSING CARE PLACEMENTS,OP PACKAGE/PLACEMENT COSTS,Third Party Payments,Revenue
Walsall Council,http://opendatacommunities.org/id/metropolitan-district-council/walsall,WC88-495,31/01/2018,Adult Social Care,ASH GRANGE CARE HOME,10/01/2018,"2,000.00",73373-RESIDENTIAL & NURSING CARE PLACEMENTS,OP PACKAGE/PLACEMENT COSTS,Third Party Payments,Revenue
Walsall Council,http://opendatacommunities.org/id/metropolitan-district-council/walsall,WC88-496,31/01/2018,Adult Social Care,ASH GRANGE CARE HOME,10/01/2018,"2,000.00",73373-RESIDENTIAL & NURSING CARE PLACEMENTS,OP PACKAGE/PLACEMENT COSTS,Third Party Payments,Revenue
Walsall Council,http://opendatacommunities.org/id/metropolitan-district-council/walsall,WC88-497,31/01/2018,Adult Social Care,ASH GRANGE CARE HOME,10/01/2018,"2,000.00",73373-RESIDENTIAL & NURSING CARE PLACEMENTS,OP PACKAGE/PLACEMENT COSTS,Third Party Payments,Revenue
Walsall Council,http://opendatacommunities.org/id/metropolitan-district-council/walsall,WC88-498,31/01/2018,Adult Social Care,ASH GRANGE CARE HOME,10/01/2018,"2,000.00",73373-RESIDENTIAL & NURSING CARE PLACEMENTS,OP PACKAGE/PLACEMENT COSTS,Third Party Payments,Revenue
Walsall Council,http://opendatacommunities.org/id/metropolitan-district-council/walsall,WC88-499,31/01/2018,Adult Social Care,ASH GRANGE CARE HOME,10/01/2018,"2,000.00",73373-RESIDENTIAL & NURSING CARE PLACEMENTS,OP PACKAGE/PLACEMENT COSTS,Third Party Payments,Revenue
Walsall Council,http://opendatacommunities.org/id/metropolitan-district-council/walsall,WC88-500,31/01/2018,Adult Social Care,ASH GRANGE CARE HOME,10/01/2018,"2,000.00",73373-RESIDENTIAL & NURSING CARE PLACEMENTS,OP PACKAGE/PLACEMENT COSTS,Third Party Payments,Revenue
Walsall Council,http://opendatacommunities.org/id/metropolitan-district-council/walsall,WC88-501,31/01/2018,Adult Social Care,ASH GRANGE CARE HOME,30/01/2018,"2,000.00",73373-RESIDENTIAL & NURSING CARE PLACEMENTS,MENTAL HEALTH PACKAGE/PLACEMENT COSTS,Third Party Payments,Revenue
Walsall Council,http://opendatacommunities.org/id/metropolitan-district-council/walsall,WC88-502,31/01/2018,Adult Social Care,ASH GRANGE CARE HOME,30/01/2018,"2,000.00",73373-RESIDENTIAL & NURSING CARE PLACEMENTS,OP PACKAGE/PLACEMENT COSTS,Third Party Payments,Revenue
Walsall Council,http://opendatacommunities.org/id/metropolitan-district-council/walsall,WC88-503,31/01/2018,Adult Social Care,ASH GRANGE CARE HOME,30/01/2018,"2,000.00",73373-RESIDENTIAL & NURSING CARE PLACEMENTS,OP PACKAGE/PLACEMENT COSTS,Third Party Payments,Revenue
Walsall Council,http://opendatacommunities.org/id/metropolitan-district-council/walsall,WC88-504,31/01/2018,Adult Social Care,ASH GRANGE CARE HOME,30/01/2018,"2,000.00",73373-RESIDENTIAL & NURSING CARE PLACEMENTS,OP PACKAGE/PLACEMENT COSTS,Third Party Payments,Revenue
Walsall Council,http://opendatacommunities.org/id/metropolitan-district-council/walsall,WC88-505,31/01/2018,Adult Social Care,ASH GRANGE CARE HOME,30/01/2018,"2,000.00",73373-RESIDENTIAL & NURSING CARE PLACEMENTS,OP PACKAGE/PLACEMENT COSTS,Third Party Payments,Revenue
Walsall Council,http://opendatacommunities.org/id/metropolitan-district-council/walsall,WC88-506,31/01/2018,Adult Social Care,ASH GRANGE CARE HOME,30/01/2018,"2,000.00",73373-RESIDENTIAL & NURSING CARE PLACEMENTS,OP PACKAGE/PLACEMENT COSTS,Third Party Payments,Revenue
Walsall Council,http://opendatacommunities.org/id/metropolitan-district-council/walsall,WC88-507,31/01/2018,Adult Social Care,ASH GRANGE CARE HOME,30/01/2018,"2,000.00",73373-RESIDENTIAL & NURSING CARE PLACEMENTS,OP PACKAGE/PLACEMENT COSTS,Third Party Payments,Revenue
Walsall Council,http://opendatacommunities.org/id/metropolitan-district-council/walsall,WC88-508,31/01/2018,Adult Social Care,ASH GRANGE CARE HOME,30/01/2018,"2,000.00",73373-RESIDENTIAL & NURSING CARE PLACEMENTS,OP PACKAGE/PLACEMENT COSTS,Third Party Payments,Revenue
Walsall Council,http://opendatacommunities.org/id/metropolitan-district-council/walsall,WC88-509,31/01/2018,Adult Social Care,ASH GRANGE CARE HOME,30/01/2018,"2,000.00",73373-RESIDENTIAL & NURSING CARE PLACEMENTS,OP PACKAGE/PLACEMENT COSTS,Third Party Payments,Revenue
Walsall Council,http://opendatacommunities.org/id/metropolitan-district-council/walsall,WC88-510,31/01/2018,Adult Social Care,ASH GRANGE CARE HOME,30/01/2018,"2,000.00",73373-RESIDENTIAL & NURSING CARE PLACEMENTS,OP PACKAGE/PLACEMENT COSTS,Third Party Payments,Revenue
Walsall Council,http://opendatacommunities.org/id/metropolitan-district-council/walsall,WC88-511,31/01/2018,Adult Social Care,ASH GRANGE CARE HOME,30/01/2018,"2,000.00",73373-RESIDENTIAL & NURSING CARE PLACEMENTS,OP PACKAGE/PLACEMENT COSTS,Third Party Payments,Revenue
Walsall Council,http://opendatacommunities.org/id/metropolitan-district-council/walsall,WC88-512,31/01/2018,Adult Social Care,ASH GRANGE CARE HOME,10/01/2018,"2,200.00",73373-RESIDENTIAL & NURSING CARE PLACEMENTS,OP PACKAGE/PLACEMENT COSTS,Third Party Payments,Revenue
Walsall Council,http://opendatacommunities.org/id/metropolitan-district-council/walsall,WC88-513,31/01/2018,Adult Social Care,ASH GRANGE CARE HOME,10/01/2018,"2,200.00",73373-RESIDENTIAL & NURSING CARE PLACEMENTS,OP PACKAGE/PLACEMENT COSTS,Third Party Payments,Revenue
Walsall Council,http://opendatacommunities.org/id/metropolitan-district-council/walsall,WC88-514,31/01/2018,Adult Social Care,ASH GRANGE CARE HOME,30/01/2018,"2,200.00",73373-RESIDENTIAL & NURSING CARE PLACEMENTS,OP PACKAGE/PLACEMENT COSTS,Third Party Payments,Revenue
Walsall Council,http://opendatacommunities.org/id/metropolitan-district-council/walsall,WC88-515,31/01/2018,Adult Social Care,ASH GRANGE CARE HOME,30/01/2018,"2,200.00",73373-RESIDENTIAL & NURSING CARE PLACEMENTS,OP PACKAGE/PLACEMENT COSTS,Third Party Payments,Revenue
Walsall Council,http://opendatacommunities.org/id/metropolitan-district-council/walsall,WC88-516,31/01/2018,Adult Social Care,ASH GRANGE CARE HOME,10/01/2018,"2,280.00",73373-RESIDENTIAL & NURSING CARE PLACEMENTS,OP PACKAGE/PLACEMENT COSTS,Third Party Payments,Revenue
Walsall Council,http://opendatacommunities.org/id/metropolitan-district-council/walsall,WC88-517,31/01/2018,Adult Social Care,ASH GRANGE CARE HOME,30/01/2018,"2,280.00",73373-RESIDENTIAL & NURSING CARE PLACEMENTS,OP PACKAGE/PLACEMENT COSTS,Third Party Payments,Revenue
Walsall Council,http://opendatacommunities.org/id/metropolitan-district-council/walsall,WC88-518,31/01/2018,Adult Social Care,ASH GRANGE CARE HOME,10/01/2018,"2,495.72",73373-RESIDENTIAL & NURSING CARE PLACEMENTS,PD PACKAGE/PLACEMENT COSTS,Third Party Payments,Revenue
Walsall Council,http://opendatacommunities.org/id/metropolitan-district-council/walsall,WC88-519,31/01/2018,Adult Social Care,ASH GRANGE CARE HOME,30/01/2018,"2,495.72",73373-RESIDENTIAL & NURSING CARE PLACEMENTS,PD PACKAGE/PLACEMENT COSTS,Third Party Payments,Revenue
Walsall Council,http://opendatacommunities.org/id/metropolitan-district-council/walsall,WC88-520,31/01/2018,Adult Social Care,ASH GRANGE CARE HOME,10/01/2018,"2,745.71",73373-RESIDENTIAL & NURSING CARE PLACEMENTS,OP PACKAGE/PLACEMENT COSTS,Third Party Payments,Revenue
Walsall Council,http://opendatacommunities.org/id/metropolitan-district-council/walsall,WC88-521,31/01/2018,Adult Social Care,ASH GRANGE CARE HOME,30/01/2018,"6,694.86",73373-RESIDENTIAL & NURSING CARE PLACEMENTS,OP PACKAGE/PLACEMENT COSTS,Third Party Payments,Revenue
Walsall Council,http://opendatacommunities.org/id/metropolitan-district-council/walsall,WC88-522,31/01/2018,Adult Social Care,ASH GRANGE CARE HOME,30/01/2018,"14,571.42",73373-RESIDENTIAL & NURSING CARE PLACEMENTS,OP PACKAGE/PLACEMENT COSTS,Third Party Payments,Revenue
Walsall Council,http://opendatacommunities.org/id/metropolitan-district-council/walsall,WC88-523,31/01/2018,Adult Social Care,ASHBOURNE LODGE,16/01/2018,"2,173.99",73373-RESIDENTIAL & NURSING CARE PLACEMENTS,OP PACKAGE/PLACEMENT COSTS,Third Party Payments,Revenue
Walsall Council,http://opendatacommunities.org/id/metropolitan-district-council/walsall,WC88-524,31/01/2018,Adult Social Care,REDACTED,05/01/2018,422.00,76422-DIRECT PAYMENTS TO SOCIAL SERVICES CLIENTS,LD PACKAGE/PLACEMENT COSTS,Transfer Payments,Revenue
Walsall Council,http://opendatacommunities.org/id/metropolitan-district-council/walsall,WC88-525,31/01/2018,Adult Social Care,REDACTED,05/01/2018,"1,092.00",76422-DIRECT PAYMENTS TO SOCIAL SERVICES CLIENTS,LD PACKAGE/PLACEMENT COSTS,Transfer Payments,Revenue
Walsall Council,http://opendatacommunities.org/id/metropolitan-district-council/walsall,WC88-526,31/01/2018,Adult Social Care,REDACTED,05/01/2018,756.00,76422-DIRECT PAYMENTS TO SOCIAL SERVICES CLIENTS,OP PACKAGE/PLACEMENT COSTS,Transfer Payments,Revenue
Walsall Council,http://opendatacommunities.org/id/metropolitan-district-council/walsall,WC88-527,31/01/2018,Adult Social Care,ASSURED HEALTHCARE SOLUTIONS (PARK FARM LODGE),30/01/2018,"9,393.69",73373-RESIDENTIAL & NURSING CARE PLACEMENTS,OP PACKAGE/PLACEMENT COSTS,Third Party Payments,Revenue
Walsall Council,http://opendatacommunities.org/id/metropolitan-district-council/walsall,WC88-528,31/01/2018,Resources and Transformation,ASSURED PLUMBING & GAS INSTALLATIONS LTD,15/01/2018,"2,800.00",01046-OTHER GRANTS,CFR 908 FUEL POVERTY FUND,Capital,Capital
Walsall Council,http://opendatacommunities.org/id/metropolitan-district-council/walsall,WC88-529,31/01/2018,Childrens,ATG CONTRACT SERVICES LIMITED,17/01/2018,"4,146.24",52000-WITH DRIVER-HIRE OF VEHICLES,HOME TO SCHOOL TRANSPORT,Transport,Revenue
Walsall Council,http://opendatacommunities.org/id/metropolitan-district-council/walsall,WC88-530,31/01/2018,Childrens,ATG CONTRACT SERVICES LIMITED,17/01/2018,"9,587.25",52000-WITH DRIVER-HIRE OF VEHICLES,HOME TO SCHOOL TRANSPORT,Transport,Revenue
Walsall Council,http://opendatacommunities.org/id/metropolitan-district-council/walsall,WC88-531,31/01/2018,Economy & Environment,AUCTUS TRAINING SOLUTIONS,24/01/2018,225.00,63000-PROFESSIONAL FEES AND SERVICES,YEI (IMPACT) PROGRAMME,Supplies & Services,Revenue
Walsall Council,http://opendatacommunities.org/id/metropolitan-district-council/walsall,WC88-532,31/01/2018,Economy & Environment,AUCTUS TRAINING SOLUTIONS,24/01/2018,225.00,63000-PROFESSIONAL FEES AND SERVICES,YEI ESF FUNDING,Supplies & Services,Revenue
Walsall Council,http://opendatacommunities.org/id/metropolitan-district-council/walsall,WC88-533,31/01/2018,Economy & Environment,AUCTUS TRAINING SOLUTIONS,29/01/2018,450.00,63000-PROFESSIONAL FEES AND SERVICES,YEI (IMPACT) PROGRAMME,Supplies & Services,Revenue
Walsall Council,http://opendatacommunities.org/id/metropolitan-district-council/walsall,WC88-534,31/01/2018,Economy & Environment,AUCTUS TRAINING SOLUTIONS,29/01/2018,450.00,63000-PROFESSIONAL FEES AND SERVICES,YEI ESF FUNDING,Supplies & Services,Revenue
Walsall Council,http://opendatacommunities.org/id/metropolitan-district-council/walsall,WC88-535,31/01/2018,Economy & Environment,AUCTUS TRAINING SOLUTIONS,22/01/2018,"2,200.00",63000-PROFESSIONAL FEES AND SERVICES,YEI (IMPACT) PROGRAMME,Supplies & Services,Revenue
Walsall Council,http://opendatacommunities.org/id/metropolitan-district-council/walsall,WC88-536,31/01/2018,Economy & Environment,AUCTUS TRAINING SOLUTIONS,22/01/2018,"2,200.00",63000-PROFESSIONAL FEES AND SERVICES,YEI ESF FUNDING,Supplies & Services,Revenue
Walsall Council,http://opendatacommunities.org/id/metropolitan-district-council/walsall,WC88-537,31/01/2018,Economy & Environment,AUCTUS TRAINING SOLUTIONS,31/01/2018,"2,200.00",63000-PROFESSIONAL FEES AND SERVICES,YEI (IMPACT) PROGRAMME,Supplies & Services,Revenue
Walsall Council,http://opendatacommunities.org/id/metropolitan-district-council/walsall,WC88-538,31/01/2018,Economy & Environment,AUCTUS TRAINING SOLUTIONS,31/01/2018,"2,200.00",63000-PROFESSIONAL FEES AND SERVICES,YEI ESF FUNDING,Supplies & Services,Revenue
Walsall Council,http://opendatacommunities.org/id/metropolitan-district-council/walsall,WC88-539,31/01/2018,Economy & Environment,AUCTUS TRAINING SOLUTIONS,10/01/2018,"6,600.00",63000-PROFESSIONAL FEES AND SERVICES,YEI (IMPACT) PROGRAMME,Supplies & Services,Revenue
Walsall Council,http://opendatacommunities.org/id/metropolitan-district-council/walsall,WC88-540,31/01/2018,Economy & Environment,AUCTUS TRAINING SOLUTIONS,10/01/2018,"6,600.00",63000-PROFESSIONAL FEES AND SERVICES,YEI ESF FUNDING,Supplies & Services,Revenue
Walsall Council,http://opendatacommunities.org/id/metropolitan-district-council/walsall,WC88-541,31/01/2018,Economy & Environment,AUCTUS TRAINING SOLUTIONS,29/01/2018,"6,600.00",63000-PROFESSIONAL FEES AND SERVICES,YEI (IMPACT) PROGRAMME,Supplies & Services,Revenue
Walsall Council,http://opendatacommunities.org/id/metropolitan-district-council/walsall,WC88-542,31/01/2018,Economy & Environment,AUCTUS TRAINING SOLUTIONS,29/01/2018,"6,600.00",63000-PROFESSIONAL FEES AND SERVICES,YEI ESF FUNDING,Supplies & Services,Revenue
Walsall Council,http://opendatacommunities.org/id/metropolitan-district-council/walsall,WC88-543,31/01/2018,Economy & Environment,AUDISE BY FREM GROUP LTD,26/01/2018,"22,500.00",60000-FURNITURE & EQUIPMENT,FOREST ARTS CENTRE,Supplies & Services,Revenue
Walsall Council,http://opendatacommunities.org/id/metropolitan-district-council/walsall,WC88-544,31/01/2018,Resources and Transformation,AURORA GRAPHICS & DISPLAYS LTD,17/01/2018,240.00,62008-OUTWORK-PRINT ROOM,PRINTING SERVICES,Supplies & Services,Revenue
Walsall Council,http://opendatacommunities.org/id/metropolitan-district-council/walsall,WC88-545,31/01/2018,Resources and Transformation,AURORA GRAPHICS & DISPLAYS LTD,22/01/2018,299.00,62008-OUTWORK-PRINT ROOM,PRINTING SERVICES,Supplies & Services,Revenue
Walsall Council,http://opendatacommunities.org/id/metropolitan-district-council/walsall,WC88-546,31/01/2018,Adult Social Care,AUTISM WEST MIDLANDS,23/01/2018,"7,479.02",73373-RESIDENTIAL & NURSING CARE PLACEMENTS,LD PACKAGE/PLACEMENT COSTS,Third Party Payments,Revenue
Walsall Council,http://opendatacommunities.org/id/metropolitan-district-council/walsall,WC88-547,31/01/2018,Adult Social Care,AUTISM WEST MIDLANDS 001,23/01/2018,"4,999.33",73373-RESIDENTIAL & NURSING CARE PLACEMENTS,LD PACKAGE/PLACEMENT COSTS,Third Party Payments,Revenue
Walsall Council,http://opendatacommunities.org/id/metropolitan-district-council/walsall,WC88-548,31/01/2018,Economy & Environment,AUTORITE INDUSTRIES (WILLENHALL)LTD,17/01/2018,275.00,52000-WITH DRIVER-HIRE OF VEHICLES,REMOVAL OF UNAUTHORISED ENCAMPMENTS,Transport,Revenue
Walsall Council,http://opendatacommunities.org/id/metropolitan-district-council/walsall,WC88-549,31/01/2018,Economy & Environment,AUTORITE INDUSTRIES (WILLENHALL)LTD,17/01/2018,385.00,52000-WITH DRIVER-HIRE OF VEHICLES,REMOVAL OF UNAUTHORISED ENCAMPMENTS,Transport,Revenue
Walsall Council,http://opendatacommunities.org/id/metropolitan-district-council/walsall,WC88-550,31/01/2018,Adult Social Care,AVE MARIA CARE SERVICES,12/01/2018,467.84,73372-DOMICILIARY CARE,OP PACKAGE/PLACEMENT COSTS,Third Party Payments,Revenue
Walsall Council,http://opendatacommunities.org/id/metropolitan-district-council/walsall,WC88-551,31/01/2018,Adult Social Care,REDACTED,05/01/2018,989.04,76422-DIRECT PAYMENTS TO SOCIAL SERVICES CLIENTS,OP PACKAGE/PLACEMENT COSTS,Transfer Payments,Revenue
Walsall Council,http://opendatacommunities.org/id/metropolitan-district-council/walsall,WC88-552,31/01/2018,Economy & Environment,AXIOMATIC TECHNOLOGY LTD,29/01/2018,689.00,60008-MAINTENANCE-FURNITURE & EQUIPMENT,FOREST ARTS CENTRE,Supplies & Services,Revenue
Walsall Council,http://opendatacommunities.org/id/metropolitan-district-council/walsall,WC88-553,31/01/2018,Childrens,REDACTED,05/01/2018,"1,284.00",76422-DIRECT PAYMENTS TO SOCIAL SERVICES CLIENTS,FAMILY SUPPORT - DIRECT PAYMENTS,Transfer Payments,Revenue
Walsall Council,http://opendatacommunities.org/id/metropolitan-district-council/walsall,WC88-554,31/01/2018,Adult Social Care,REDACTED,05/01/2018,"2,808.00",76422-DIRECT PAYMENTS TO SOCIAL SERVICES CLIENTS,LD PACKAGE/PLACEMENT COSTS,Transfer Payments,Revenue
Walsall Council,http://opendatacommunities.org/id/metropolitan-district-council/walsall,WC88-555,31/01/2018,Childrens,REDACTED,24/01/2018,"1,333.00",60500-GENERAL MATERIALS,PRIMARY CONSULTATIVE GROUP,Supplies & Services,Revenue
Walsall Council,http://opendatacommunities.org/id/metropolitan-district-council/walsall,WC88-556,31/01/2018,Childrens,REDACTED,15/01/2018,9.24,60006-NEW-FURNITURE & EQUIPMENT,FAMILY & FRIENDS FOSTER CARE PROVISION,Supplies & Services,Revenue
Walsall Council,http://opendatacommunities.org/id/metropolitan-district-council/walsall,WC88-557,31/01/2018,Childrens,REDACTED,15/01/2018,345.24,74508-INTERNAL FOSTER CARERS-CARER FEES,FAMILY & FRIENDS FOSTER CARE PROVISION,Transfer Payments,Revenue
Walsall Council,http://opendatacommunities.org/id/metropolitan-district-council/walsall,WC88-558,31/01/2018,Childrens,REDACTED,15/01/2018,985.76,74501-MAINTENANCE ALLOWANCE-FOSTER CARERS,FAMILY & FRIENDS FOSTER CARE PROVISION,Transfer Payments,Revenue
Walsall Council,http://opendatacommunities.org/id/metropolitan-district-council/walsall,WC88-559,31/01/2018,Childrens,REDACTED,01/01/2018,464.00,76000-TRANSFER PAYMENTS - SOCIAL SERVICES CLIENTS,TRANSITION AND LEAVING CARE PLACEMENTS,Transfer Payments,Revenue
Walsall Council,http://opendatacommunities.org/id/metropolitan-district-council/walsall,WC88-560,31/01/2018,Childrens,REDACTED,01/01/2018,464.00,76000-TRANSFER PAYMENTS - SOCIAL SERVICES CLIENTS,TRANSITION AND LEAVING CARE PLACEMENTS,Transfer Payments,Revenue
Walsall Council,http://opendatacommunities.org/id/metropolitan-district-council/walsall,WC88-561,31/01/2018,Childrens,REDACTED,17/01/2018,464.00,76000-TRANSFER PAYMENTS - SOCIAL SERVICES CLIENTS,TRANSITION AND LEAVING CARE PLACEMENTS,Transfer Payments,Revenue
Walsall Council,http://opendatacommunities.org/id/metropolitan-district-council/walsall,WC88-562,31/01/2018,Childrens,REDACTED,17/01/2018,464.00,76000-TRANSFER PAYMENTS - SOCIAL SERVICES CLIENTS,TRANSITION AND LEAVING CARE PLACEMENTS,Transfer Payments,Revenue
Walsall Council,http://opendatacommunities.org/id/metropolitan-district-council/walsall,WC88-563,31/01/2018,Childrens,REDACTED,30/01/2018,464.00,76000-TRANSFER PAYMENTS - SOCIAL SERVICES CLIENTS,TRANSITION AND LEAVING CARE PLACEMENTS,Transfer Payments,Revenue
Walsall Council,http://opendatacommunities.org/id/metropolitan-district-council/walsall,WC88-564,31/01/2018,Childrens,REDACTED,30/01/2018,464.00,76000-TRANSFER PAYMENTS - SOCIAL SERVICES CLIENTS,TRANSITION AND LEAVING CARE PLACEMENTS,Transfer Payments,Revenue
Walsall Council,http://opendatacommunities.org/id/metropolitan-district-council/walsall,WC88-565,31/01/2018,Economy & Environment,BAART HARRIES NEWALL,30/01/2018,"2,046.25",01002-PROJECT FEES,CFR 632 WALSALL ARBORETUM RESTORATION PROGRAMME,Capital,Capital
Walsall Council,http://opendatacommunities.org/id/metropolitan-district-council/walsall,WC88-566,31/01/2018,Childrens,BACK CARE SOLUTIONS LTD,01/01/2018,371.00,60008-MAINTENANCE-FURNITURE & EQUIPMENT,LOOKED AFTER CHILDRENS SOCIAL WORK TEAM,Supplies & Services,Revenue
Walsall Council,http://opendatacommunities.org/id/metropolitan-district-council/walsall,WC88-567,31/01/2018,Economy & Environment,BAKER HALL PARTNERSHIP,05/01/2018,"1,394.75",63000-PROFESSIONAL FEES AND SERVICES,BUILDING CONTROL REVENUE FUNDED,Supplies & Services,Revenue
Walsall Council,http://opendatacommunities.org/id/metropolitan-district-council/walsall,WC88-568,31/01/2018,Adult Social Care,REDACTED,05/01/2018,480.00,76422-DIRECT PAYMENTS TO SOCIAL SERVICES CLIENTS,MENTAL HEALTH PACKAGE/PLACEMENT COSTS,Transfer Payments,Revenue
Walsall Council,http://opendatacommunities.org/id/metropolitan-district-council/walsall,WC88-569,31/01/2018,Adult Social Care,REDACTED,05/01/2018,"3,258.96",76422-DIRECT PAYMENTS TO SOCIAL SERVICES CLIENTS,LD PACKAGE/PLACEMENT COSTS,Transfer Payments,Revenue
Walsall Council,http://opendatacommunities.org/id/metropolitan-district-council/walsall,WC88-570,31/01/2018,Adult Social Care,REDACTED,05/01/2018,800.00,76422-DIRECT PAYMENTS TO SOCIAL SERVICES CLIENTS,OP PACKAGE/PLACEMENT COSTS,Transfer Payments,Revenue
Walsall Council,http://opendatacommunities.org/id/metropolitan-district-council/walsall,WC88-571,31/01/2018,Adult Social Care,REDACTED,30/01/2018,"1,582.86",76422-DIRECT PAYMENTS TO SOCIAL SERVICES CLIENTS,OP PACKAGE/PLACEMENT COSTS,Transfer Payments,Revenue
Walsall Council,http://opendatacommunities.org/id/metropolitan-district-council/walsall,WC88-572,31/01/2018,Childrens,REDACTED,15/01/2018,9.24,60006-NEW-FURNITURE & EQUIPMENT,FAMILY & FRIENDS FOSTER CARE PROVISION,Supplies & Services,Revenue
Walsall Council,http://opendatacommunities.org/id/metropolitan-district-council/walsall,WC88-573,31/01/2018,Childrens,REDACTED,15/01/2018,345.24,74508-INTERNAL FOSTER CARERS-CARER FEES,FAMILY & FRIENDS FOSTER CARE PROVISION,Transfer Payments,Revenue
Walsall Council,http://opendatacommunities.org/id/metropolitan-district-council/walsall,WC88-574,31/01/2018,Childrens,REDACTED,15/01/2018,571.44,74501-MAINTENANCE ALLOWANCE-FOSTER CARERS,FAMILY & FRIENDS FOSTER CARE PROVISION,Transfer Payments,Revenue
Walsall Council,http://opendatacommunities.org/id/metropolitan-district-council/walsall,WC88-575,31/01/2018,Adult Social Care,REDACTED,05/01/2018,849.64,76422-DIRECT PAYMENTS TO SOCIAL SERVICES CLIENTS,OP PACKAGE/PLACEMENT COSTS,Transfer Payments,Revenue
Walsall Council,http://opendatacommunities.org/id/metropolitan-district-council/walsall,WC88-576,31/01/2018,Adult Social Care,REDACTED,05/01/2018,798.00,76422-DIRECT PAYMENTS TO SOCIAL SERVICES CLIENTS,OP PACKAGE/PLACEMENT COSTS,Transfer Payments,Revenue
Walsall Council,http://opendatacommunities.org/id/metropolitan-district-council/walsall,WC88-577,31/01/2018,Economy & Environment,BARCHAM TREES PLC,22/01/2018,276.00,60500-GENERAL MATERIALS,COUNTRYSIDE MANAGEMENT-OTHER,Supplies & Services,Revenue
Walsall Council,http://opendatacommunities.org/id/metropolitan-district-council/walsall,WC88-578,31/01/2018,Economy & Environment,BARCHAM TREES PLC,24/01/2018,350.00,60500-GENERAL MATERIALS,COUNTRYSIDE MANAGEMENT-OTHER,Supplies & Services,Revenue
Walsall Council,http://opendatacommunities.org/id/metropolitan-district-council/walsall,WC88-579,31/01/2018,Childrens,BARNARDOS SERVICES LTD,29/01/2018,"3,116.40",74037-INDEPENDENT FOSTER CARE-OTH AGENCY PROVISION,EXTERNAL FOSTER CARE PROVISION,Third Party Payments,Revenue
Walsall Council,http://opendatacommunities.org/id/metropolitan-district-council/walsall,WC88-580,31/01/2018,Childrens,BARNARDOS SERVICES LTD,22/01/2018,"4,042.99",63102-CONSULTANTS FEES - CORPORATE,INDEPENDENT RESIDENTIAL HOMES,Supplies & Services,Revenue
Walsall Council,http://opendatacommunities.org/id/metropolitan-district-council/walsall,WC88-581,31/01/2018,Resources and Transformation,BARNBOROUGH LTD,22/01/2018,"1,973.07",01044-PURCHASE OF FURNITURE & EQUIPMENT,CFR 1190 SCHOOLS PROJECT,Capital,Capital
Walsall Council,http://opendatacommunities.org/id/metropolitan-district-council/walsall,WC88-582,31/01/2018,Adult Social Care,REDACTED,05/01/2018,490.40,76422-DIRECT PAYMENTS TO SOCIAL SERVICES CLIENTS,OP PACKAGE/PLACEMENT COSTS,Transfer Payments,Revenue
Walsall Council,http://opendatacommunities.org/id/metropolitan-district-council/walsall,WC88-583,31/01/2018,Economy & Environment,BAT FABRICATIONS LTD,05/01/2018,506.00,60006-NEW-FURNITURE & EQUIPMENT,INFRASTRUCTURE MAINTENANCE,Supplies & Services,Revenue
Walsall Council,http://opendatacommunities.org/id/metropolitan-district-council/walsall,WC88-584,31/01/2018,Economy & Environment,BAT FABRICATIONS LTD,05/01/2018,640.00,60006-NEW-FURNITURE & EQUIPMENT,INFRASTRUCTURE MAINTENANCE,Supplies & Services,Revenue
Walsall Council,http://opendatacommunities.org/id/metropolitan-district-council/walsall,WC88-585,31/01/2018,Economy & Environment,BAT FABRICATIONS LTD,26/01/2018,865.00,40018-OTHER-OP MTCE,WALSALL MARKET,Premises,Revenue
Walsall Council,http://opendatacommunities.org/id/metropolitan-district-council/walsall,WC88-586,31/01/2018,Economy & Environment,BAT FABRICATIONS LTD,01/01/2018,"1,600.00",66500-GRANTS TO OTHER ORGS,CENTRAL SERVICES ALLOTMENTS,Third Party Payments,Revenue
Walsall Council,http://opendatacommunities.org/id/metropolitan-district-council/walsall,WC88-587,31/01/2018,Economy & Environment,BAUER CORPORATE SERVICES - BAUER RADIO LTD,26/01/2018,953.00,62523-EVENTS,ARBORETUM,Supplies & Services,Revenue
Walsall Council,http://opendatacommunities.org/id/metropolitan-district-council/walsall,WC88-588,31/01/2018,Economy & Environment,BEADEN POWERLEC LIMITED,22/01/2018,985.00,60008-MAINTENANCE-FURNITURE & EQUIPMENT,DARLASTON LEISURE CENTRE,Supplies & Services,Revenue
Walsall Council,http://opendatacommunities.org/id/metropolitan-district-council/walsall,WC88-589,31/01/2018,Childrens,REDACTED,29/01/2018,9.24,60006-NEW-FURNITURE & EQUIPMENT,INTERNAL FOSTER CARE PROVISION,Supplies & Services,Revenue
Walsall Council,http://opendatacommunities.org/id/metropolitan-district-council/walsall,WC88-590,31/01/2018,Childrens,REDACTED,29/01/2018,530.96,74508-INTERNAL FOSTER CARERS-CARER FEES,INTERNAL FOSTER CARE PROVISION,Transfer Payments,Revenue
Walsall Council,http://opendatacommunities.org/id/metropolitan-district-council/walsall,WC88-591,31/01/2018,Childrens,REDACTED,29/01/2018,650.92,74501-MAINTENANCE ALLOWANCE-FOSTER CARERS,INTERNAL FOSTER CARE PROVISION,Transfer Payments,Revenue
Walsall Council,http://opendatacommunities.org/id/metropolitan-district-council/walsall,WC88-592,31/01/2018,Adult Social Care,REDACTED,11/01/2018,"3,155.71",76422-DIRECT PAYMENTS TO SOCIAL SERVICES CLIENTS,PD PACKAGE/PLACEMENT COSTS,Transfer Payments,Revenue
Walsall Council,http://opendatacommunities.org/id/metropolitan-district-council/walsall,WC88-593,31/01/2018,Economy & Environment,BEATSABAR MUSIC PROJECT CIC,03/01/2018,"4,992.00",66500-GRANTS TO OTHER ORGS,ESF COMMUNITY GRANTS,Third Party Payments,Revenue
Walsall Council,http://opendatacommunities.org/id/metropolitan-district-council/walsall,WC88-594,31/01/2018,Childrens,BECKYS CHILDMINDING SERVICE,09/01/2018,691.68,66505-OTHER-GRANTS TO OTHER ORGS,EARLY YEARS - 2 YR OLDS,Third Party Payments,Revenue
Walsall Council,http://opendatacommunities.org/id/metropolitan-district-council/walsall,WC88-595,31/01/2018,Childrens,BECKYS CHILDMINDING SERVICE,09/01/2018,"3,168.00",66505-OTHER-GRANTS TO OTHER ORGS,EARLY YEARS - 3 YR OLDS,Third Party Payments,Revenue
Walsall Council,http://opendatacommunities.org/id/metropolitan-district-council/walsall,WC88-596,31/01/2018,Adult Social Care,BELVIDERE COURT,16/01/2018,"2,214.29",73373-RESIDENTIAL & NURSING CARE PLACEMENTS,MENTAL HEALTH PACKAGE/PLACEMENT COSTS,Third Party Payments,Revenue
Walsall Council,http://opendatacommunities.org/id/metropolitan-district-council/walsall,WC88-597,31/01/2018,Adult Social Care,BELVIDERE COURT,10/01/2018,"2,435.71",73373-RESIDENTIAL & NURSING CARE PLACEMENTS,OP PACKAGE/PLACEMENT COSTS,Third Party Payments,Revenue
Walsall Council,http://opendatacommunities.org/id/metropolitan-district-council/walsall,WC88-598,31/01/2018,Adult Social Care,BELVIDERE COURT,16/01/2018,"2,435.71",73373-RESIDENTIAL & NURSING CARE PLACEMENTS,OP PACKAGE/PLACEMENT COSTS,Third Party Payments,Revenue
Walsall Council,http://opendatacommunities.org/id/metropolitan-district-council/walsall,WC88-599,31/01/2018,Adult Social Care,BELVIDERE COURT,30/01/2018,"2,435.71",73373-RESIDENTIAL & NURSING CARE PLACEMENTS,OP PACKAGE/PLACEMENT COSTS,Third Party Payments,Revenue
Walsall Council,http://opendatacommunities.org/id/metropolitan-district-council/walsall,WC88-600,31/01/2018,Adult Social Care,BELVIDERE COURT,30/01/2018,"3,764.29",73373-RESIDENTIAL & NURSING CARE PLACEMENTS,MENTAL HEALTH PACKAGE/PLACEMENT COSTS,Third Party Payments,Revenue
Walsall Council,http://opendatacommunities.org/id/metropolitan-district-council/walsall,WC88-601,31/01/2018,Childrens,BELVIDERE SCHOOL,17/01/2018,300.00,77300-ISB-FORMULA ALLOCATION,OUT OF BOROUGH SCHOOLS,Transfer Payments,Revenue
Walsall Council,http://opendatacommunities.org/id/metropolitan-district-council/walsall,WC88-602,31/01/2018,Economy & Environment,BEMROSEBOOTH LTD,26/01/2018,"1,145.00",62001-STATIONERY & GENERAL SUPPLIES-OFFICE EXP,PARKING SERVICES OFF-STREET,Supplies & Services,Revenue
Walsall Council,http://opendatacommunities.org/id/metropolitan-district-council/walsall,WC88-603,31/01/2018,Economy & Environment,BEN RIVERS LTD,10/01/2018,500.00,63000-PROFESSIONAL FEES AND SERVICES,NAG - TEMPORARY EXHIBITIONS,Supplies & Services,Revenue
Walsall Council,http://opendatacommunities.org/id/metropolitan-district-council/walsall,WC88-604,31/01/2018,Adult Social Care,REDACTED,05/01/2018,"2,310.00",76422-DIRECT PAYMENTS TO SOCIAL SERVICES CLIENTS,LD PACKAGE/PLACEMENT COSTS,Transfer Payments,Revenue
Walsall Council,http://opendatacommunities.org/id/metropolitan-district-council/walsall,WC88-605,31/01/2018,Adult Social Care,BENTLEY COURT PRIORY,30/01/2018,-398.70,73373-RESIDENTIAL & NURSING CARE PLACEMENTS,OP PACKAGE/PLACEMENT COSTS,Third Party Payments,Revenue
Walsall Council,http://opendatacommunities.org/id/metropolitan-district-council/walsall,WC88-606,31/01/2018,Adult Social Care,BENTLEY COURT PRIORY,30/01/2018,-287.95,73373-RESIDENTIAL & NURSING CARE PLACEMENTS,OP PACKAGE/PLACEMENT COSTS,Third Party Payments,Revenue
Walsall Council,http://opendatacommunities.org/id/metropolitan-district-council/walsall,WC88-607,31/01/2018,Adult Social Care,BENTLEY COURT PRIORY,30/01/2018,392.85,73373-RESIDENTIAL & NURSING CARE PLACEMENTS,OP PACKAGE/PLACEMENT COSTS,Third Party Payments,Revenue
Walsall Council,http://opendatacommunities.org/id/metropolitan-district-council/walsall,WC88-608,31/01/2018,Adult Social Care,BENTLEY COURT PRIORY,30/01/2018,"1,300.00",73373-RESIDENTIAL & NURSING CARE PLACEMENTS,OP PACKAGE/PLACEMENT COSTS,Third Party Payments,Revenue
Walsall Council,http://opendatacommunities.org/id/metropolitan-district-council/walsall,WC88-609,31/01/2018,Adult Social Care,BENTLEY COURT PRIORY,30/01/2018,"1,800.00",73373-RESIDENTIAL & NURSING CARE PLACEMENTS,OP PACKAGE/PLACEMENT COSTS,Third Party Payments,Revenue
Walsall Council,http://opendatacommunities.org/id/metropolitan-district-council/walsall,WC88-610,31/01/2018,Adult Social Care,BENTLEY COURT PRIORY,30/01/2018,"2,109.24",73373-RESIDENTIAL & NURSING CARE PLACEMENTS,OP PACKAGE/PLACEMENT COSTS,Third Party Payments,Revenue
Walsall Council,http://opendatacommunities.org/id/metropolitan-district-council/walsall,WC88-611,31/01/2018,Adult Social Care,BENTLEY COURT PRIORY,30/01/2018,"2,413.35",73373-RESIDENTIAL & NURSING CARE PLACEMENTS,OP PACKAGE/PLACEMENT COSTS,Third Party Payments,Revenue
Walsall Council,http://opendatacommunities.org/id/metropolitan-district-council/walsall,WC88-612,31/01/2018,Adult Social Care,BENTLEY COURT PRIORY,30/01/2018,"2,435.71",73373-RESIDENTIAL & NURSING CARE PLACEMENTS,OP PACKAGE/PLACEMENT COSTS,Third Party Payments,Revenue
Walsall Council,http://opendatacommunities.org/id/metropolitan-district-council/walsall,WC88-613,31/01/2018,Adult Social Care,BENTLEY COURT PRIORY,30/01/2018,"2,435.72",73373-RESIDENTIAL & NURSING CARE PLACEMENTS,OP PACKAGE/PLACEMENT COSTS,Third Party Payments,Revenue
Walsall Council,http://opendatacommunities.org/id/metropolitan-district-council/walsall,WC88-614,31/01/2018,Adult Social Care,BENTLEY COURT PRIORY,30/01/2018,"2,435.72",73373-RESIDENTIAL & NURSING CARE PLACEMENTS,OP PACKAGE/PLACEMENT COSTS,Third Party Payments,Revenue
Walsall Council,http://opendatacommunities.org/id/metropolitan-district-council/walsall,WC88-615,31/01/2018,Economy & Environment,BENTLEY TENANTS & RESIDENTS ASSOCIATION,22/01/2018,"5,123.50",66500-GRANTS TO OTHER ORGS,ESF COMMUNITY GRANTS,Third Party Payments,Revenue
Walsall Council,http://opendatacommunities.org/id/metropolitan-district-council/walsall,WC88-616,31/01/2018,Childrens,BERRICK COMPUTING LTD,22/01/2018,"1,580.00",63800-COMPUTER EQUIPMENT AND SUPPLIES,SAFEGUARDING BOARD,Supplies & Services,Revenue
Walsall Council,http://opendatacommunities.org/id/metropolitan-district-council/walsall,WC88-617,31/01/2018,Childrens,BERRY GIFFORD LTD,26/01/2018,494.30,76400-RESIDENTS PERSONAL EXPENSES-ALLOWANCES TO S/S CLIENTS,TRANSITION AND LEAVING CARE PLACEMENTS,Transfer Payments,Revenue
Walsall Council,http://opendatacommunities.org/id/metropolitan-district-council/walsall,WC88-618,31/01/2018,Childrens,BERRY GIFFORD LTD,26/01/2018,579.00,76400-RESIDENTS PERSONAL EXPENSES-ALLOWANCES TO S/S CLIENTS,TRANSITION AND LEAVING CARE PLACEMENTS,Transfer Payments,Revenue
Walsall Council,http://opendatacommunities.org/id/metropolitan-district-council/walsall,WC88-619,31/01/2018,Childrens,BERRY GIFFORD LTD,26/01/2018,"1,273.80",76010-ACCOMMODATION AND RELATED COSTS-ASSISTANCE TO S/S CLIENTS,TRANSITION AND LEAVING CARE PLACEMENTS,Transfer Payments,Revenue
Walsall Council,http://opendatacommunities.org/id/metropolitan-district-council/walsall,WC88-620,31/01/2018,Childrens,BERRY GIFFORD LTD,08/01/2018,"6,773.76",76010-ACCOMMODATION AND RELATED COSTS-ASSISTANCE TO S/S CLIENTS,TRANSITION AND LEAVING CARE PLACEMENTS,Transfer Payments,Revenue
Walsall Council,http://opendatacommunities.org/id/metropolitan-district-council/walsall,WC88-621,31/01/2018,Childrens,BERRY GIFFORD LTD,08/01/2018,"7,499.52",76010-ACCOMMODATION AND RELATED COSTS-ASSISTANCE TO S/S CLIENTS,TRANSITION AND LEAVING CARE PLACEMENTS,Transfer Payments,Revenue
Walsall Council,http://opendatacommunities.org/id/metropolitan-district-council/walsall,WC88-622,31/01/2018,Childrens,BERRY GIFFORD LTD,05/01/2018,"8,436.34",76010-ACCOMMODATION AND RELATED COSTS-ASSISTANCE TO S/S CLIENTS,TRANSITION AND LEAVING CARE PLACEMENTS,Transfer Payments,Revenue
Walsall Council,http://opendatacommunities.org/id/metropolitan-district-council/walsall,WC88-623,31/01/2018,Childrens,BERRY GIFFORD LTD,22/01/2018,"11,313.00",76010-ACCOMMODATION AND RELATED COSTS-ASSISTANCE TO S/S CLIENTS,TRANSITION AND LEAVING CARE PLACEMENTS,Transfer Payments,Revenue
Walsall Council,http://opendatacommunities.org/id/metropolitan-district-council/walsall,WC88-624,31/01/2018,Childrens,BERRY GIFFORD LTD,22/01/2018,"11,690.10",76010-ACCOMMODATION AND RELATED COSTS-ASSISTANCE TO S/S CLIENTS,TRANSITION AND LEAVING CARE PLACEMENTS,Transfer Payments,Revenue
Walsall Council,http://opendatacommunities.org/id/metropolitan-district-council/walsall,WC88-625,31/01/2018,Holding Accounts,BERRYMANS LACE MAWER LLP,03/01/2018,"1,069.50",67001-MISC INSURANCES - PAYMENT OF CLAIMS,PUBLIC LIABILITY,Supplies & Services,Revenue
Walsall Council,http://opendatacommunities.org/id/metropolitan-district-council/walsall,WC88-626,31/01/2018,Holding Accounts,BERRYMANS LACE MAWER LLP,22/01/2018,"4,059.50",67001-MISC INSURANCES - PAYMENT OF CLAIMS,PUBLIC LIABILITY,Supplies & Services,Revenue
Walsall Council,http://opendatacommunities.org/id/metropolitan-district-council/walsall,WC88-627,31/01/2018,Holding Accounts,BERRYMANS LACE MAWER LLP,05/01/2018,"4,289.50",67001-MISC INSURANCES - PAYMENT OF CLAIMS,PUBLIC LIABILITY,Supplies & Services,Revenue
Walsall Council,http://opendatacommunities.org/id/metropolitan-district-council/walsall,WC88-628,31/01/2018,Holding Accounts,BERRYMANS LACE MAWER LLP,05/01/2018,"5,784.50",67001-MISC INSURANCES - PAYMENT OF CLAIMS,PUBLIC LIABILITY,Supplies & Services,Revenue
Walsall Council,http://opendatacommunities.org/id/metropolitan-district-council/walsall,WC88-629,31/01/2018,Adult Social Care,REDACTED,05/01/2018,"1,007.84",76422-DIRECT PAYMENTS TO SOCIAL SERVICES CLIENTS,OP PACKAGE/PLACEMENT COSTS,Transfer Payments,Revenue
Walsall Council,http://opendatacommunities.org/id/metropolitan-district-council/walsall,WC88-630,31/01/2018,Adult Social Care,REDACTED,05/01/2018,"1,706.00",76422-DIRECT PAYMENTS TO SOCIAL SERVICES CLIENTS,OP PACKAGE/PLACEMENT COSTS,Transfer Payments,Revenue
Walsall Council,http://opendatacommunities.org/id/metropolitan-district-council/walsall,WC88-631,31/01/2018,Childrens,REDACTED,29/01/2018,9.24,60006-NEW-FURNITURE & EQUIPMENT,INTERNAL FOSTER CARE PROVISION,Supplies & Services,Revenue
Walsall Council,http://opendatacommunities.org/id/metropolitan-district-council/walsall,WC88-632,31/01/2018,Childrens,REDACTED,29/01/2018,367.35,74501-MAINTENANCE ALLOWANCE-FOSTER CARERS,INTERNAL FOSTER CARE PROVISION,Transfer Payments,Revenue
Walsall Council,http://opendatacommunities.org/id/metropolitan-district-council/walsall,WC88-633,31/01/2018,Childrens,REDACTED,29/01/2018,367.35,74501-MAINTENANCE ALLOWANCE-FOSTER CARERS,INTERNAL FOSTER CARE PROVISION,Transfer Payments,Revenue
Walsall Council,http://opendatacommunities.org/id/metropolitan-district-council/walsall,WC88-634,31/01/2018,Childrens,REDACTED,29/01/2018,"1,436.08",74508-INTERNAL FOSTER CARERS-CARER FEES,INTERNAL FOSTER CARE PROVISION,Transfer Payments,Revenue
Walsall Council,http://opendatacommunities.org/id/metropolitan-district-council/walsall,WC88-635,31/01/2018,Adult Social Care,REDACTED,05/01/2018,810.00,76422-DIRECT PAYMENTS TO SOCIAL SERVICES CLIENTS,OP PACKAGE/PLACEMENT COSTS,Transfer Payments,Revenue
Walsall Council,http://opendatacommunities.org/id/metropolitan-district-council/walsall,WC88-636,31/01/2018,Adult Social Care,REDACTED,05/01/2018,968.00,76422-DIRECT PAYMENTS TO SOCIAL SERVICES CLIENTS,OP PACKAGE/PLACEMENT COSTS,Transfer Payments,Revenue
Walsall Council,http://opendatacommunities.org/id/metropolitan-district-council/walsall,WC88-637,31/01/2018,Adult Social Care,BESCOT LODGE RESIDENTIAL CARE HOME,16/01/2018,-854.28,73373-RESIDENTIAL & NURSING CARE PLACEMENTS,OP PACKAGE/PLACEMENT COSTS,Third Party Payments,Revenue
Walsall Council,http://opendatacommunities.org/id/metropolitan-district-council/walsall,WC88-638,31/01/2018,Adult Social Care,BESCOT LODGE RESIDENTIAL CARE HOME,16/01/2018,714.29,73373-RESIDENTIAL & NURSING CARE PLACEMENTS,OP PACKAGE/PLACEMENT COSTS,Third Party Payments,Revenue
Walsall Council,http://opendatacommunities.org/id/metropolitan-district-council/walsall,WC88-639,31/01/2018,Adult Social Care,BESCOT LODGE RESIDENTIAL CARE HOME,16/01/2018,"1,774.29",73373-RESIDENTIAL & NURSING CARE PLACEMENTS,OP PACKAGE/PLACEMENT COSTS,Third Party Payments,Revenue
Walsall Council,http://opendatacommunities.org/id/metropolitan-district-council/walsall,WC88-640,31/01/2018,Adult Social Care,BESCOT LODGE RESIDENTIAL CARE HOME,16/01/2018,"1,833.43",73373-RESIDENTIAL & NURSING CARE PLACEMENTS,OP PACKAGE/PLACEMENT COSTS,Third Party Payments,Revenue
Walsall Council,http://opendatacommunities.org/id/metropolitan-district-council/walsall,WC88-641,31/01/2018,Adult Social Care,BESCOT LODGE RESIDENTIAL CARE HOME,16/01/2018,"1,833.43",73373-RESIDENTIAL & NURSING CARE PLACEMENTS,OP PACKAGE/PLACEMENT COSTS,Third Party Payments,Revenue
Walsall Council,http://opendatacommunities.org/id/metropolitan-district-council/walsall,WC88-642,31/01/2018,Adult Social Care,BESCOT LODGE RESIDENTIAL CARE HOME,16/01/2018,"1,833.43",73373-RESIDENTIAL & NURSING CARE PLACEMENTS,LD PACKAGE/PLACEMENT COSTS,Third Party Payments,Revenue
Walsall Council,http://opendatacommunities.org/id/metropolitan-district-council/walsall,WC88-643,31/01/2018,Adult Social Care,BESCOT LODGE RESIDENTIAL CARE HOME,16/01/2018,"2,037.14",73373-RESIDENTIAL & NURSING CARE PLACEMENTS,OP PACKAGE/PLACEMENT COSTS,Third Party Payments,Revenue
Walsall Council,http://opendatacommunities.org/id/metropolitan-district-council/walsall,WC88-644,31/01/2018,Adult Social Care,BESCOT LODGE RESIDENTIAL CARE HOME,16/01/2018,"2,037.14",73373-RESIDENTIAL & NURSING CARE PLACEMENTS,OP PACKAGE/PLACEMENT COSTS,Third Party Payments,Revenue
Walsall Council,http://opendatacommunities.org/id/metropolitan-district-council/walsall,WC88-645,31/01/2018,Adult Social Care,BESCOT LODGE RESIDENTIAL CARE HOME,16/01/2018,"2,037.14",73373-RESIDENTIAL & NURSING CARE PLACEMENTS,OP PACKAGE/PLACEMENT COSTS,Third Party Payments,Revenue
Walsall Council,http://opendatacommunities.org/id/metropolitan-district-council/walsall,WC88-646,31/01/2018,Adult Social Care,BESCOT LODGE RESIDENTIAL CARE HOME,16/01/2018,"2,214.29",73373-RESIDENTIAL & NURSING CARE PLACEMENTS,OP PACKAGE/PLACEMENT COSTS,Third Party Payments,Revenue
Walsall Council,http://opendatacommunities.org/id/metropolitan-district-council/walsall,WC88-647,31/01/2018,Economy & Environment,BESCOT STADIUM SUNDAY MARKET LTD,10/01/2018,"2,800.00",73025-PROFESSIONAL SERVICES-PRIV CONTRACTOR & OTHER AGENCIES,WILLENHALL MARKET,Third Party Payments,Revenue
Walsall Council,http://opendatacommunities.org/id/metropolitan-district-council/walsall,WC88-648,31/01/2018,Adult Social Care,BETHPHAGE.,10/01/2018,890.65,73374-SUPPORTED & OTHER ACCOMMODATION,LD PACKAGE/PLACEMENT COSTS,Third Party Payments,Revenue
Walsall Council,http://opendatacommunities.org/id/metropolitan-district-council/walsall,WC88-649,31/01/2018,Adult Social Care,BETHPHAGE.,02/01/2018,"1,015.92",73374-SUPPORTED & OTHER ACCOMMODATION,LD PACKAGE/PLACEMENT COSTS,Third Party Payments,Revenue
Walsall Council,http://opendatacommunities.org/id/metropolitan-district-council/walsall,WC88-650,31/01/2018,Adult Social Care,BETHPHAGE.,02/01/2018,"1,015.92",73374-SUPPORTED & OTHER ACCOMMODATION,LD PACKAGE/PLACEMENT COSTS,Third Party Payments,Revenue
Walsall Council,http://opendatacommunities.org/id/metropolitan-district-council/walsall,WC88-651,31/01/2018,Adult Social Care,BETHPHAGE.,05/01/2018,"1,282.50",73374-SUPPORTED & OTHER ACCOMMODATION,LD PACKAGE/PLACEMENT COSTS,Third Party Payments,Revenue
Walsall Council,http://opendatacommunities.org/id/metropolitan-district-council/walsall,WC88-652,31/01/2018,Adult Social Care,BETHPHAGE.,02/01/2018,"1,326.36",73374-SUPPORTED & OTHER ACCOMMODATION,LD PACKAGE/PLACEMENT COSTS,Third Party Payments,Revenue
Walsall Council,http://opendatacommunities.org/id/metropolitan-district-council/walsall,WC88-653,31/01/2018,Adult Social Care,BETHPHAGE.,02/01/2018,"1,326.36",73374-SUPPORTED & OTHER ACCOMMODATION,LD PACKAGE/PLACEMENT COSTS,Third Party Payments,Revenue
Walsall Council,http://opendatacommunities.org/id/metropolitan-district-council/walsall,WC88-654,31/01/2018,Adult Social Care,BETHPHAGE.,02/01/2018,"1,439.24",73374-SUPPORTED & OTHER ACCOMMODATION,LD PACKAGE/PLACEMENT COSTS,Third Party Payments,Revenue
Walsall Council,http://opendatacommunities.org/id/metropolitan-district-council/walsall,WC88-655,31/01/2018,Adult Social Care,BETHPHAGE.,02/01/2018,"1,439.24",73374-SUPPORTED & OTHER ACCOMMODATION,LD PACKAGE/PLACEMENT COSTS,Third Party Payments,Revenue
Walsall Council,http://opendatacommunities.org/id/metropolitan-district-council/walsall,WC88-656,31/01/2018,Adult Social Care,BETHPHAGE.,10/01/2018,"1,674.40",73374-SUPPORTED & OTHER ACCOMMODATION,LD PACKAGE/PLACEMENT COSTS,Third Party Payments,Revenue
Walsall Council,http://opendatacommunities.org/id/metropolitan-district-council/walsall,WC88-657,31/01/2018,Adult Social Care,BETHPHAGE.,10/01/2018,"1,816.90",73374-SUPPORTED & OTHER ACCOMMODATION,LD PACKAGE/PLACEMENT COSTS,Third Party Payments,Revenue
Walsall Council,http://opendatacommunities.org/id/metropolitan-district-council/walsall,WC88-658,31/01/2018,Adult Social Care,BETHPHAGE.,02/01/2018,"2,666.80",73374-SUPPORTED & OTHER ACCOMMODATION,LD PACKAGE/PLACEMENT COSTS,Third Party Payments,Revenue
Walsall Council,http://opendatacommunities.org/id/metropolitan-district-council/walsall,WC88-659,31/01/2018,Adult Social Care,BETHPHAGE.,05/01/2018,"3,366.55",73374-SUPPORTED & OTHER ACCOMMODATION,LD PACKAGE/PLACEMENT COSTS,Third Party Payments,Revenue
Walsall Council,http://opendatacommunities.org/id/metropolitan-district-council/walsall,WC88-660,31/01/2018,Adult Social Care,BETHPHAGE.,02/01/2018,"3,831.92",73374-SUPPORTED & OTHER ACCOMMODATION,LD PACKAGE/PLACEMENT COSTS,Third Party Payments,Revenue
Walsall Council,http://opendatacommunities.org/id/metropolitan-district-council/walsall,WC88-661,31/01/2018,Adult Social Care,BETHPHAGE.,02/01/2018,"3,831.92",73374-SUPPORTED & OTHER ACCOMMODATION,LD PACKAGE/PLACEMENT COSTS,Third Party Payments,Revenue
Walsall Council,http://opendatacommunities.org/id/metropolitan-district-council/walsall,WC88-662,31/01/2018,Adult Social Care,BETHPHAGE.,10/01/2018,"7,180.05",73374-SUPPORTED & OTHER ACCOMMODATION,LD PACKAGE/PLACEMENT COSTS,Third Party Payments,Revenue
Walsall Council,http://opendatacommunities.org/id/metropolitan-district-council/walsall,WC88-663,31/01/2018,Adult Social Care,REDACTED,05/01/2018,949.52,76422-DIRECT PAYMENTS TO SOCIAL SERVICES CLIENTS,MENTAL HEALTH PACKAGE/PLACEMENT COSTS,Transfer Payments,Revenue
Walsall Council,http://opendatacommunities.org/id/metropolitan-district-council/walsall,WC88-664,31/01/2018,Adult Social Care,REDACTED,05/01/2018,"2,767.84",76422-DIRECT PAYMENTS TO SOCIAL SERVICES CLIENTS,OP PACKAGE/PLACEMENT COSTS,Transfer Payments,Revenue
Walsall Council,http://opendatacommunities.org/id/metropolitan-district-council/walsall,WC88-665,31/01/2018,Economy & Environment,BID CENTRE FOR DEAF PEOPLE,15/01/2018,285.30,"62521-INTERPRETATION,TRANSLATION & HUMAN AIDS TO TRANSCRIPTION",ESF COMMUNITY GRANTS,Supplies & Services,Revenue
Walsall Council,http://opendatacommunities.org/id/metropolitan-district-council/walsall,WC88-666,31/01/2018,Childrens,REDACTED,05/01/2018,572.00,76422-DIRECT PAYMENTS TO SOCIAL SERVICES CLIENTS,FAMILY SUPPORT - DIRECT PAYMENTS,Transfer Payments,Revenue
Walsall Council,http://opendatacommunities.org/id/metropolitan-district-council/walsall,WC88-667,31/01/2018,Economy & Environment,BILSTON RESOURCE CENTRE,10/01/2018,568.25,63000-PROFESSIONAL FEES AND SERVICES,YEI (IMPACT) PROGRAMME,Supplies & Services,Revenue
Walsall Council,http://opendatacommunities.org/id/metropolitan-district-council/walsall,WC88-668,31/01/2018,Economy & Environment,BILSTON RESOURCE CENTRE,10/01/2018,568.25,63000-PROFESSIONAL FEES AND SERVICES,YEI ESF FUNDING,Supplies & Services,Revenue
Walsall Council,http://opendatacommunities.org/id/metropolitan-district-council/walsall,WC88-669,31/01/2018,Economy & Environment,BILSTON RESOURCE CENTRE,30/01/2018,568.25,63000-PROFESSIONAL FEES AND SERVICES,YEI (IMPACT) PROGRAMME,Supplies & Services,Revenue
Walsall Council,http://opendatacommunities.org/id/metropolitan-district-council/walsall,WC88-670,31/01/2018,Economy & Environment,BILSTON RESOURCE CENTRE,30/01/2018,568.25,63000-PROFESSIONAL FEES AND SERVICES,YEI ESF FUNDING,Supplies & Services,Revenue
Walsall Council,http://opendatacommunities.org/id/metropolitan-district-council/walsall,WC88-671,31/01/2018,Economy & Environment,BILSTON RESOURCE CENTRE,10/01/2018,964.09,63000-PROFESSIONAL FEES AND SERVICES,YEI (IMPACT) PROGRAMME,Supplies & Services,Revenue
Walsall Council,http://opendatacommunities.org/id/metropolitan-district-council/walsall,WC88-672,31/01/2018,Economy & Environment,BILSTON RESOURCE CENTRE,10/01/2018,964.10,63000-PROFESSIONAL FEES AND SERVICES,YEI ESF FUNDING,Supplies & Services,Revenue
Walsall Council,http://opendatacommunities.org/id/metropolitan-district-council/walsall,WC88-673,31/01/2018,Childrens,BIRCHILLS C OF E COMMUNITY ACADEMY,02/01/2018,"34,320.00",66505-OTHER-GRANTS TO OTHER ORGS,EARLY YEARS - 3 YR OLDS,Third Party Payments,Revenue
Walsall Council,http://opendatacommunities.org/id/metropolitan-district-council/walsall,WC88-674,31/01/2018,Adult Social Care,BIRMINGHAM CITY COUNCIL,09/01/2018,335.00,73372-DOMICILIARY CARE,LD PACKAGE/PLACEMENT COSTS,Third Party Payments,Revenue
Walsall Council,http://opendatacommunities.org/id/metropolitan-district-council/walsall,WC88-675,31/01/2018,Adult Social Care,BIRMINGHAM CITY COUNCIL,09/01/2018,335.00,73372-DOMICILIARY CARE,LD PACKAGE/PLACEMENT COSTS,Third Party Payments,Revenue
Walsall Council,http://opendatacommunities.org/id/metropolitan-district-council/walsall,WC88-676,31/01/2018,Adult Social Care,BIRMINGHAM CITY COUNCIL,09/01/2018,737.00,73374-SUPPORTED & OTHER ACCOMMODATION,LD PACKAGE/PLACEMENT COSTS,Third Party Payments,Revenue
Walsall Council,http://opendatacommunities.org/id/metropolitan-district-council/walsall,WC88-677,31/01/2018,Adult Social Care,BIRMINGHAM CITY COUNCIL,09/01/2018,845.00,73372-DOMICILIARY CARE,LD PACKAGE/PLACEMENT COSTS,Third Party Payments,Revenue
Walsall Council,http://opendatacommunities.org/id/metropolitan-district-council/walsall,WC88-678,31/01/2018,Adult Social Care,BIRMINGHAM CITY COUNCIL,09/01/2018,"1,040.00",73374-SUPPORTED & OTHER ACCOMMODATION,LD PACKAGE/PLACEMENT COSTS,Third Party Payments,Revenue
Walsall Council,http://opendatacommunities.org/id/metropolitan-district-council/walsall,WC88-679,31/01/2018,Adult Social Care,BIRMINGHAM CITY COUNCIL,09/01/2018,"1,170.00",73372-DOMICILIARY CARE,LD PACKAGE/PLACEMENT COSTS,Third Party Payments,Revenue
Walsall Council,http://opendatacommunities.org/id/metropolitan-district-council/walsall,WC88-680,31/01/2018,Adult Social Care,BIRMINGHAM CITY COUNCIL,10/01/2018,"1,206.00",73374-SUPPORTED & OTHER ACCOMMODATION,LD PACKAGE/PLACEMENT COSTS,Third Party Payments,Revenue
Walsall Council,http://opendatacommunities.org/id/metropolitan-district-council/walsall,WC88-681,31/01/2018,Adult Social Care,BIRMINGHAM CITY COUNCIL,09/01/2018,"1,273.00",73372-DOMICILIARY CARE,LD PACKAGE/PLACEMENT COSTS,Third Party Payments,Revenue
Walsall Council,http://opendatacommunities.org/id/metropolitan-district-council/walsall,WC88-682,31/01/2018,Adult Social Care,BIRMINGHAM CITY COUNCIL,09/01/2018,"1,340.00",73374-SUPPORTED & OTHER ACCOMMODATION,LD PACKAGE/PLACEMENT COSTS,Third Party Payments,Revenue
Walsall Council,http://opendatacommunities.org/id/metropolitan-district-council/walsall,WC88-683,31/01/2018,Childrens,BIRMINGHAM CITY COUNCIL,29/01/2018,"1,956.16",74037-INDEPENDENT FOSTER CARE-OTH AGENCY PROVISION,EXTERNAL FOSTER CARE PROVISION,Third Party Payments,Revenue
Walsall Council,http://opendatacommunities.org/id/metropolitan-district-council/walsall,WC88-684,31/01/2018,Economy & Environment,BLACK COUNTRY CHAMBER OF COMMERCE & INDUSTRY.,16/01/2018,500.00,73025-PROFESSIONAL SERVICES-PRIV CONTRACTOR & OTHER AGENCIES,INWARD INVESTMENT TEAM,Third Party Payments,Revenue
Walsall Council,http://opendatacommunities.org/id/metropolitan-district-council/walsall,WC88-685,31/01/2018,Economy & Environment,BLACK COUNTRY CHAMBER OF COMMERCE & INDUSTRY.,05/01/2018,"1,360.00",63000-PROFESSIONAL FEES AND SERVICES,MS-HEAD OF STRATEGIC REGENERATION,Supplies & Services,Revenue
Walsall Council,http://opendatacommunities.org/id/metropolitan-district-council/walsall,WC88-686,31/01/2018,Economy & Environment,BLACK COUNTRY CONSORTIUM LIMITED,02/01/2018,"36,666.17",01045-PRIVATE GRANTS,CFR 1072 CAPITALISATION OF PROJECT OFFICER COSTS,Capital,Capital
Walsall Council,http://opendatacommunities.org/id/metropolitan-district-council/walsall,WC88-687,31/01/2018,Economy & Environment,BLACK COUNTRY CONSORTIUM LIMITED,03/01/2018,"43,597.25",65500-GRANTS TO ASSOCIATIONS,LEP CORE FUNDING,Third Party Payments,Revenue
Walsall Council,http://opendatacommunities.org/id/metropolitan-district-council/walsall,WC88-688,31/01/2018,Economy & Environment,BLACK COUNTRY CONSORTIUM LIMITED,03/01/2018,"102,013.46",65500-GRANTS TO ASSOCIATIONS,LEP- HESELTINE FUNDING,Third Party Payments,Revenue
Walsall Council,http://opendatacommunities.org/id/metropolitan-district-council/walsall,WC88-689,31/01/2018,Economy & Environment,BLACK COUNTRY TRAINING LTD T/A BRITISH HGV TRAINING GROUP,25/01/2018,276.00,30030-EXTERNAL TRAINING,GROUNDS,Employees,Revenue
Walsall Council,http://opendatacommunities.org/id/metropolitan-district-council/walsall,WC88-690,31/01/2018,Childrens,BLACK COUNTRY WOMENS AID,03/01/2018,270.00,30000-INTERNAL TRAINING,WORKFORCE DEVELOPMENT,Employees,Revenue
Walsall Council,http://opendatacommunities.org/id/metropolitan-district-council/walsall,WC88-691,31/01/2018,Childrens,BLACK COUNTRY WOMENS AID,16/01/2018,"16,654.25",63000-PROFESSIONAL FEES AND SERVICES,TOXIC TRIO,Supplies & Services,Revenue
Walsall Council,http://opendatacommunities.org/id/metropolitan-district-council/walsall,WC88-692,31/01/2018,Childrens,BLACK COUNTRY WOMENS AID,16/01/2018,"16,654.25",63000-PROFESSIONAL FEES AND SERVICES,TOXIC TRIO,Supplies & Services,Revenue
Walsall Council,http://opendatacommunities.org/id/metropolitan-district-council/walsall,WC88-693,31/01/2018,Childrens,BLACK COUNTRY WOMENS AID,16/01/2018,"16,654.25",63000-PROFESSIONAL FEES AND SERVICES,TOXIC TRIO,Supplies & Services,Revenue
Walsall Council,http://opendatacommunities.org/id/metropolitan-district-council/walsall,WC88-694,31/01/2018,Childrens,BLACK COUNTRY WOMENS AID,16/01/2018,"22,904.25",63000-PROFESSIONAL FEES AND SERVICES,TOXIC TRIO,Supplies & Services,Revenue
Walsall Council,http://opendatacommunities.org/id/metropolitan-district-council/walsall,WC88-695,31/01/2018,Childrens,BLAKENALL HEATH JMI SCHOOL,11/01/2018,"59,880.00",77302-ISB-SCHOOL STANDARDS GRANT,BLAKENALL HEATH JUNIOR SCHOOL,Transfer Payments,Revenue
Walsall Council,http://opendatacommunities.org/id/metropolitan-district-council/walsall,WC88-696,31/01/2018,Adult Social Care,REDACTED,05/01/2018,"1,521.60",76422-DIRECT PAYMENTS TO SOCIAL SERVICES CLIENTS,OP PACKAGE/PLACEMENT COSTS,Transfer Payments,Revenue
Walsall Council,http://opendatacommunities.org/id/metropolitan-district-council/walsall,WC88-697,31/01/2018,Childrens,BLOXWICH ACADEMY,02/01/2018,"33,000.00",66505-OTHER-GRANTS TO OTHER ORGS,EARLY YEARS - 3 YR OLDS,Third Party Payments,Revenue
Walsall Council,http://opendatacommunities.org/id/metropolitan-district-council/walsall,WC88-698,31/01/2018,Adult Social Care,BLOXWICH COMMUNITY PARTNERSHIP.,29/01/2018,279.00,73372-DOMICILIARY CARE,OP PACKAGE/PLACEMENT COSTS,Third Party Payments,Revenue
Walsall Council,http://opendatacommunities.org/id/metropolitan-district-council/walsall,WC88-699,31/01/2018,Resources and Transformation,BLOXWICH COMMUNITY PARTNERSHIP.,02/01/2018,"7,333.34",66500-GRANTS TO OTHER ORGS,BLOXWICH COMMUNITY PARTNERSHIP,Third Party Payments,Revenue
Walsall Council,http://opendatacommunities.org/id/metropolitan-district-council/walsall,WC88-700,31/01/2018,Childrens,BLUE GIRAFFE CHILDCARE,02/01/2018,"4,841.60",66505-OTHER-GRANTS TO OTHER ORGS,EARLY YEARS - 2 YR OLDS,Third Party Payments,Revenue
Walsall Council,http://opendatacommunities.org/id/metropolitan-district-council/walsall,WC88-701,31/01/2018,Childrens,BLUE GIRAFFE CHILDCARE,02/01/2018,"5,808.00",66505-OTHER-GRANTS TO OTHER ORGS,EARLY YEARS - 3 YR OLDS,Third Party Payments,Revenue
Walsall Council,http://opendatacommunities.org/id/metropolitan-district-council/walsall,WC88-702,31/01/2018,Childrens,BLUE GIRAFFE CHILDCARE,16/01/2018,"5,808.00",66505-OTHER-GRANTS TO OTHER ORGS,EARLY YEARS - 3 YR OLDS,Third Party Payments,Revenue
Walsall Council,http://opendatacommunities.org/id/metropolitan-district-council/walsall,WC88-703,31/01/2018,Economy & Environment,BME UNITED LTD,15/01/2018,"2,774.00",63253-PAYMENT TO CONTRACTOR,SMOKING CESSATION,Third Party Payments,Revenue
Walsall Council,http://opendatacommunities.org/id/metropolitan-district-council/walsall,WC88-704,31/01/2018,Economy & Environment,BME UNITED LTD,22/01/2018,"5,152.37",66500-GRANTS TO OTHER ORGS,ESF COMMUNITY GRANTS,Third Party Payments,Revenue
Walsall Council,http://opendatacommunities.org/id/metropolitan-district-council/walsall,WC88-705,31/01/2018,Resources and Transformation,BORSHCH LTD,26/01/2018,225.00,60000-FURNITURE & EQUIPMENT,WALSALL CRISIS SUPPORT SCHEME,Supplies & Services,Revenue
Walsall Council,http://opendatacommunities.org/id/metropolitan-district-council/walsall,WC88-706,31/01/2018,Resources and Transformation,BORSHCH LTD,17/01/2018,237.49,60000-FURNITURE & EQUIPMENT,WALSALL CRISIS SUPPORT SCHEME,Supplies & Services,Revenue
Walsall Council,http://opendatacommunities.org/id/metropolitan-district-council/walsall,WC88-707,31/01/2018,Resources and Transformation,BORSHCH LTD,19/01/2018,237.49,60000-FURNITURE & EQUIPMENT,WALSALL CRISIS SUPPORT SCHEME,Supplies & Services,Revenue
Walsall Council,http://opendatacommunities.org/id/metropolitan-district-council/walsall,WC88-708,31/01/2018,Resources and Transformation,BORSHCH LTD,19/01/2018,237.49,60000-FURNITURE & EQUIPMENT,WALSALL CRISIS SUPPORT SCHEME,Supplies & Services,Revenue
Walsall Council,http://opendatacommunities.org/id/metropolitan-district-council/walsall,WC88-709,31/01/2018,Resources and Transformation,BORSHCH LTD,22/01/2018,237.49,60000-FURNITURE & EQUIPMENT,WALSALL CRISIS SUPPORT SCHEME,Supplies & Services,Revenue
Walsall Council,http://opendatacommunities.org/id/metropolitan-district-council/walsall,WC88-710,31/01/2018,Resources and Transformation,BORSHCH LTD,19/01/2018,270.83,60000-FURNITURE & EQUIPMENT,WALSALL CRISIS SUPPORT SCHEME,Supplies & Services,Revenue
Walsall Council,http://opendatacommunities.org/id/metropolitan-district-council/walsall,WC88-711,31/01/2018,Resources and Transformation,BORSHCH LTD,22/01/2018,287.50,60000-FURNITURE & EQUIPMENT,WALSALL CRISIS SUPPORT SCHEME,Supplies & Services,Revenue
Walsall Council,http://opendatacommunities.org/id/metropolitan-district-council/walsall,WC88-712,31/01/2018,Resources and Transformation,BORSHCH LTD,24/01/2018,287.50,60000-FURNITURE & EQUIPMENT,WALSALL CRISIS SUPPORT SCHEME,Supplies & Services,Revenue
Walsall Council,http://opendatacommunities.org/id/metropolitan-district-council/walsall,WC88-713,31/01/2018,Resources and Transformation,BORSHCH LTD,24/01/2018,287.50,60000-FURNITURE & EQUIPMENT,WALSALL CRISIS SUPPORT SCHEME,Supplies & Services,Revenue
Walsall Council,http://opendatacommunities.org/id/metropolitan-district-council/walsall,WC88-714,31/01/2018,Resources and Transformation,BORSHCH LTD,17/01/2018,291.66,60000-FURNITURE & EQUIPMENT,WALSALL CRISIS SUPPORT SCHEME,Supplies & Services,Revenue
Walsall Council,http://opendatacommunities.org/id/metropolitan-district-council/walsall,WC88-715,31/01/2018,Resources and Transformation,BORSHCH LTD,19/01/2018,291.66,60000-FURNITURE & EQUIPMENT,WALSALL CRISIS SUPPORT SCHEME,Supplies & Services,Revenue
Walsall Council,http://opendatacommunities.org/id/metropolitan-district-council/walsall,WC88-716,31/01/2018,Resources and Transformation,BORSHCH LTD,19/01/2018,291.66,60000-FURNITURE & EQUIPMENT,WALSALL CRISIS SUPPORT SCHEME,Supplies & Services,Revenue
Walsall Council,http://opendatacommunities.org/id/metropolitan-district-council/walsall,WC88-717,31/01/2018,Resources and Transformation,BORSHCH LTD,19/01/2018,291.66,60000-FURNITURE & EQUIPMENT,WALSALL CRISIS SUPPORT SCHEME,Supplies & Services,Revenue
Walsall Council,http://opendatacommunities.org/id/metropolitan-district-council/walsall,WC88-718,31/01/2018,Resources and Transformation,BORSHCH LTD,19/01/2018,291.66,60000-FURNITURE & EQUIPMENT,WALSALL CRISIS SUPPORT SCHEME,Supplies & Services,Revenue
Walsall Council,http://opendatacommunities.org/id/metropolitan-district-council/walsall,WC88-719,31/01/2018,Resources and Transformation,BORSHCH LTD,24/01/2018,291.66,60000-FURNITURE & EQUIPMENT,WALSALL CRISIS SUPPORT SCHEME,Supplies & Services,Revenue
Walsall Council,http://opendatacommunities.org/id/metropolitan-district-council/walsall,WC88-720,31/01/2018,Resources and Transformation,BORSHCH LTD,17/01/2018,295.83,60000-FURNITURE & EQUIPMENT,WALSALL CRISIS SUPPORT SCHEME,Supplies & Services,Revenue
Walsall Council,http://opendatacommunities.org/id/metropolitan-district-council/walsall,WC88-721,31/01/2018,Resources and Transformation,BORSHCH LTD,19/01/2018,295.83,60000-FURNITURE & EQUIPMENT,WALSALL CRISIS SUPPORT SCHEME,Supplies & Services,Revenue
Walsall Council,http://opendatacommunities.org/id/metropolitan-district-council/walsall,WC88-722,31/01/2018,Resources and Transformation,BORSHCH LTD,19/01/2018,295.83,60000-FURNITURE & EQUIPMENT,WALSALL CRISIS SUPPORT SCHEME,Supplies & Services,Revenue
Walsall Council,http://opendatacommunities.org/id/metropolitan-district-council/walsall,WC88-723,31/01/2018,Resources and Transformation,BORSHCH LTD,17/01/2018,304.16,60000-FURNITURE & EQUIPMENT,WALSALL CRISIS SUPPORT SCHEME,Supplies & Services,Revenue
Walsall Council,http://opendatacommunities.org/id/metropolitan-district-council/walsall,WC88-724,31/01/2018,Resources and Transformation,BORSHCH LTD,17/01/2018,379.16,60000-FURNITURE & EQUIPMENT,WALSALL CRISIS SUPPORT SCHEME,Supplies & Services,Revenue
Walsall Council,http://opendatacommunities.org/id/metropolitan-district-council/walsall,WC88-725,31/01/2018,Resources and Transformation,BORSHCH LTD,19/01/2018,412.49,60000-FURNITURE & EQUIPMENT,WALSALL CRISIS SUPPORT SCHEME,Supplies & Services,Revenue
Walsall Council,http://opendatacommunities.org/id/metropolitan-district-council/walsall,WC88-726,31/01/2018,Resources and Transformation,BORSHCH LTD,19/01/2018,425.00,60000-FURNITURE & EQUIPMENT,WALSALL CRISIS SUPPORT SCHEME,Supplies & Services,Revenue
Walsall Council,http://opendatacommunities.org/id/metropolitan-district-council/walsall,WC88-727,31/01/2018,Resources and Transformation,BORSHCH LTD,26/01/2018,425.00,60000-FURNITURE & EQUIPMENT,WALSALL CRISIS SUPPORT SCHEME,Supplies & Services,Revenue
Walsall Council,http://opendatacommunities.org/id/metropolitan-district-council/walsall,WC88-728,31/01/2018,Resources and Transformation,BORSHCH LTD,17/01/2018,433.33,60000-FURNITURE & EQUIPMENT,WALSALL CRISIS SUPPORT SCHEME,Supplies & Services,Revenue
Walsall Council,http://opendatacommunities.org/id/metropolitan-district-council/walsall,WC88-729,31/01/2018,Resources and Transformation,BORSHCH LTD,17/01/2018,433.33,60000-FURNITURE & EQUIPMENT,WALSALL CRISIS SUPPORT SCHEME,Supplies & Services,Revenue
Walsall Council,http://opendatacommunities.org/id/metropolitan-district-council/walsall,WC88-730,31/01/2018,Resources and Transformation,BORSHCH LTD,17/01/2018,433.33,60000-FURNITURE & EQUIPMENT,WALSALL CRISIS SUPPORT SCHEME,Supplies & Services,Revenue
Walsall Council,http://opendatacommunities.org/id/metropolitan-district-council/walsall,WC88-731,31/01/2018,Resources and Transformation,BORSHCH LTD,17/01/2018,433.33,60000-FURNITURE & EQUIPMENT,WALSALL CRISIS SUPPORT SCHEME,Supplies & Services,Revenue
Walsall Council,http://opendatacommunities.org/id/metropolitan-district-council/walsall,WC88-732,31/01/2018,Resources and Transformation,BORSHCH LTD,17/01/2018,433.33,60000-FURNITURE & EQUIPMENT,WALSALL CRISIS SUPPORT SCHEME,Supplies & Services,Revenue
Walsall Council,http://opendatacommunities.org/id/metropolitan-district-council/walsall,WC88-733,31/01/2018,Resources and Transformation,BORSHCH LTD,17/01/2018,433.33,60000-FURNITURE & EQUIPMENT,WALSALL CRISIS SUPPORT SCHEME,Supplies & Services,Revenue
Walsall Council,http://opendatacommunities.org/id/metropolitan-district-council/walsall,WC88-734,31/01/2018,Resources and Transformation,BORSHCH LTD,19/01/2018,433.33,60000-FURNITURE & EQUIPMENT,WALSALL CRISIS SUPPORT SCHEME,Supplies & Services,Revenue
Walsall Council,http://opendatacommunities.org/id/metropolitan-district-council/walsall,WC88-735,31/01/2018,Resources and Transformation,BORSHCH LTD,19/01/2018,433.33,60000-FURNITURE & EQUIPMENT,WALSALL CRISIS SUPPORT SCHEME,Supplies & Services,Revenue
Walsall Council,http://opendatacommunities.org/id/metropolitan-district-council/walsall,WC88-736,31/01/2018,Resources and Transformation,BORSHCH LTD,19/01/2018,433.33,60000-FURNITURE & EQUIPMENT,WALSALL CRISIS SUPPORT SCHEME,Supplies & Services,Revenue
Walsall Council,http://opendatacommunities.org/id/metropolitan-district-council/walsall,WC88-737,31/01/2018,Resources and Transformation,BORSHCH LTD,19/01/2018,433.33,60000-FURNITURE & EQUIPMENT,WALSALL CRISIS SUPPORT SCHEME,Supplies & Services,Revenue
Walsall Council,http://opendatacommunities.org/id/metropolitan-district-council/walsall,WC88-738,31/01/2018,Resources and Transformation,BORSHCH LTD,19/01/2018,433.33,60000-FURNITURE & EQUIPMENT,WALSALL CRISIS SUPPORT SCHEME,Supplies & Services,Revenue
Walsall Council,http://opendatacommunities.org/id/metropolitan-district-council/walsall,WC88-739,31/01/2018,Resources and Transformation,BORSHCH LTD,19/01/2018,433.33,60000-FURNITURE & EQUIPMENT,WALSALL CRISIS SUPPORT SCHEME,Supplies & Services,Revenue
Walsall Council,http://opendatacommunities.org/id/metropolitan-district-council/walsall,WC88-740,31/01/2018,Resources and Transformation,BORSHCH LTD,19/01/2018,433.33,60000-FURNITURE & EQUIPMENT,WALSALL CRISIS SUPPORT SCHEME,Supplies & Services,Revenue
Walsall Council,http://opendatacommunities.org/id/metropolitan-district-council/walsall,WC88-741,31/01/2018,Resources and Transformation,BORSHCH LTD,22/01/2018,433.33,60000-FURNITURE & EQUIPMENT,WALSALL CRISIS SUPPORT SCHEME,Supplies & Services,Revenue
Walsall Council,http://opendatacommunities.org/id/metropolitan-district-council/walsall,WC88-742,31/01/2018,Resources and Transformation,BORSHCH LTD,22/01/2018,433.33,60000-FURNITURE & EQUIPMENT,WALSALL CRISIS SUPPORT SCHEME,Supplies & Services,Revenue
Walsall Council,http://opendatacommunities.org/id/metropolitan-district-council/walsall,WC88-743,31/01/2018,Resources and Transformation,BORSHCH LTD,22/01/2018,433.33,60000-FURNITURE & EQUIPMENT,WALSALL CRISIS SUPPORT SCHEME,Supplies & Services,Revenue
Walsall Council,http://opendatacommunities.org/id/metropolitan-district-council/walsall,WC88-744,31/01/2018,Resources and Transformation,BORSHCH LTD,22/01/2018,433.33,60000-FURNITURE & EQUIPMENT,WALSALL CRISIS SUPPORT SCHEME,Supplies & Services,Revenue
Walsall Council,http://opendatacommunities.org/id/metropolitan-district-council/walsall,WC88-745,31/01/2018,Resources and Transformation,BORSHCH LTD,22/01/2018,433.33,60000-FURNITURE & EQUIPMENT,WALSALL CRISIS SUPPORT SCHEME,Supplies & Services,Revenue
Walsall Council,http://opendatacommunities.org/id/metropolitan-district-council/walsall,WC88-746,31/01/2018,Resources and Transformation,BORSHCH LTD,24/01/2018,433.33,60000-FURNITURE & EQUIPMENT,WALSALL CRISIS SUPPORT SCHEME,Supplies & Services,Revenue
Walsall Council,http://opendatacommunities.org/id/metropolitan-district-council/walsall,WC88-747,31/01/2018,Resources and Transformation,BORSHCH LTD,24/01/2018,433.33,60000-FURNITURE & EQUIPMENT,WALSALL CRISIS SUPPORT SCHEME,Supplies & Services,Revenue
Walsall Council,http://opendatacommunities.org/id/metropolitan-district-council/walsall,WC88-748,31/01/2018,Resources and Transformation,BORSHCH LTD,26/01/2018,433.33,60000-FURNITURE & EQUIPMENT,WALSALL CRISIS SUPPORT SCHEME,Supplies & Services,Revenue
Walsall Council,http://opendatacommunities.org/id/metropolitan-district-council/walsall,WC88-749,31/01/2018,Resources and Transformation,BORSHCH LTD,17/01/2018,437.50,60000-FURNITURE & EQUIPMENT,WALSALL CRISIS SUPPORT SCHEME,Supplies & Services,Revenue
Walsall Council,http://opendatacommunities.org/id/metropolitan-district-council/walsall,WC88-750,31/01/2018,Resources and Transformation,BORSHCH LTD,19/01/2018,441.66,60000-FURNITURE & EQUIPMENT,WALSALL CRISIS SUPPORT SCHEME,Supplies & Services,Revenue
Walsall Council,http://opendatacommunities.org/id/metropolitan-district-council/walsall,WC88-751,31/01/2018,Resources and Transformation,BORSHCH LTD,22/01/2018,487.49,60000-FURNITURE & EQUIPMENT,WALSALL CRISIS SUPPORT SCHEME,Supplies & Services,Revenue
Walsall Council,http://opendatacommunities.org/id/metropolitan-district-council/walsall,WC88-752,31/01/2018,Childrens,BOULTON TRAVEL LIMITED,17/01/2018,"1,442.00",52000-WITH DRIVER-HIRE OF VEHICLES,HOME TO SCHOOL TRANSPORT,Transport,Revenue
Walsall Council,http://opendatacommunities.org/id/metropolitan-district-council/walsall,WC88-753,31/01/2018,Childrens,BOULTON TRAVEL LIMITED,17/01/2018,"1,512.00",52000-WITH DRIVER-HIRE OF VEHICLES,HOME TO SCHOOL TRANSPORT,Transport,Revenue
Walsall Council,http://opendatacommunities.org/id/metropolitan-district-council/walsall,WC88-754,31/01/2018,Childrens,BOULTON TRAVEL LIMITED,17/01/2018,"1,708.00",52000-WITH DRIVER-HIRE OF VEHICLES,HOME TO SCHOOL TRANSPORT,Transport,Revenue
Walsall Council,http://opendatacommunities.org/id/metropolitan-district-council/walsall,WC88-755,31/01/2018,Resources and Transformation,BOURNEMOUTH CONVENTION BUREAU LTD,11/01/2018,328.13,30030-EXTERNAL TRAINING,CORPORATE MANAGEMENT TEAM,Employees,Revenue
Walsall Council,http://opendatacommunities.org/id/metropolitan-district-council/walsall,WC88-756,31/01/2018,Resources and Transformation,BPP PROFESSIONAL EDUCATION,29/01/2018,"1,169.72",30030-EXTERNAL TRAINING,FINANCE,Employees,Revenue
Walsall Council,http://opendatacommunities.org/id/metropolitan-district-council/walsall,WC88-757,31/01/2018,Economy & Environment,BRADVALE LTD T/A INSPIRE HEALTHCARE SERVICES,18/01/2018,284.98,60008-MAINTENANCE-FURNITURE & EQUIPMENT,DARLASTON LEISURE CENTRE,Supplies & Services,Revenue
Walsall Council,http://opendatacommunities.org/id/metropolitan-district-council/walsall,WC88-758,31/01/2018,Economy & Environment,BRADVALE LTD T/A INSPIRE HEALTHCARE SERVICES,09/01/2018,583.20,60500-GENERAL MATERIALS,ARBORETUM VISITOR CENTRE,Supplies & Services,Revenue
Walsall Council,http://opendatacommunities.org/id/metropolitan-district-council/walsall,WC88-759,31/01/2018,Economy & Environment,BRADVALE LTD T/A INSPIRE HEALTHCARE SERVICES,09/01/2018,583.20,60500-GENERAL MATERIALS,ARBORETUM VISITOR CENTRE,Supplies & Services,Revenue
Walsall Council,http://opendatacommunities.org/id/metropolitan-district-council/walsall,WC88-760,31/01/2018,Economy & Environment,BRADVALE LTD T/A INSPIRE HEALTHCARE SERVICES,09/01/2018,583.20,60500-GENERAL MATERIALS,ARBORETUM VISITOR CENTRE,Supplies & Services,Revenue
Walsall Council,http://opendatacommunities.org/id/metropolitan-district-council/walsall,WC88-761,31/01/2018,Economy & Environment,BRADVALE LTD T/A INSPIRE HEALTHCARE SERVICES,09/01/2018,583.20,60500-GENERAL MATERIALS,ARBORETUM VISITOR CENTRE,Supplies & Services,Revenue
